Department Family,Entity,Date,Expense Type,Expense Area,Supplier,Transaction Number,Amount,Description
Department for Education,Core,08/02/2024,Auditors Services,Operational Finance,National Audit Office,CORE-PINV-072655,"247,500.00",Assurance
Department for Education,Core,07/02/2024,Other Goods and Services,Operational Finance,Montagu Evans Llp,CORE-PINV-072386,"173,550.00",Professional Services - Accountancy
Department for Education,Core,12/02/2024,Other Costs,Operational Finance,Mercurius It Ltd,CORE-PINV-072711,"55,023.90",Software Development
Department for Education,Core,12/02/2024,Other Costs,Operational Finance,Mercurius It Ltd,CORE-PINV-072712,"55,023.90",Software Development
Department for Education,Core,07/02/2024,Other Costs,Operational Finance,Agile Management Solutions Ltd,CORE-PINV-072348,"4,694.10",Software Development
Department for Education,Core,07/02/2024,Other Costs,Operational Finance,Agile Management Solutions Ltd,CORE-PINV-072348,"11,735.25",Software Development
Department for Education,Core,07/02/2024,Other Costs,Operational Finance,Agile Management Solutions Ltd,CORE-PINV-072348,"11,735.25",Software Development
Department for Education,Core,07/02/2024,Other Costs,Operational Finance,Agile Management Solutions Ltd,CORE-PINV-072348,"11,735.25",Software Development
Department for Education,Core,07/02/2024,Other Costs,Operational Finance,Agile Management Solutions Ltd,CORE-PINV-072348,"4,694.10",Software Development
Department for Education,Core,07/02/2024,Other Costs,Operational Finance,Agile Management Solutions Ltd,CORE-PINV-072348,"4,694.10",Software Development
Department for Education,Core,07/02/2024,Other Costs,Operational Finance,Agile Management Solutions Ltd,CORE-PINV-072348,"4,694.10",Software Development
Department for Education,Core,07/02/2024,Other Costs,Operational Finance,Agile Management Solutions Ltd,CORE-PINV-072348,"4,694.10",Software Development
Department for Education,Core,07/02/2024,Other Costs,Operational Finance,Agile Management Solutions Ltd,CORE-PINV-072348,"53,982.15",Software Development
Department for Education,Core,07/02/2024,Other Costs,Operational Finance,Agile Management Solutions Ltd,CORE-PINV-072349,"51,635.10",Software Development
Department for Education,Core,07/02/2024,Other Costs,Operational Finance,Agile Management Solutions Ltd,CORE-PINV-072349,"7,041.15",Software Development
Department for Education,Core,07/02/2024,Other Costs,Operational Finance,Agile Management Solutions Ltd,CORE-PINV-072349,"39,899.85",Software Development
Department for Education,Core,07/02/2024,Other Costs,Operational Finance,Agile Management Solutions Ltd,CORE-PINV-072349,"14,082.30",Software Development
Department for Education,Core,07/02/2024,Other Costs,Operational Finance,Agile Management Solutions Ltd,CORE-PINV-072349,"2,347.05",Software Development
Department for Education,Core,07/02/2024,Other Costs,Operational Finance,Agile Management Solutions Ltd,CORE-PINV-072349,"7,041.15",Software Development
Department for Education,Core,01/02/2024,Other Costs,Estates,Arcadis Llp,CORE-PINV-071839,"140,976.04",Building Improvements
Department for Education,Core,15/02/2024,Other Costs,Estates,Isg Construction Limited,CORE-PINV-072849,"67,398.95",Building Improvements
Department for Education,Core,20/02/2024,Other Costs,Estates,Willmott Dixon Construction Limited,CORE-PINV-073275,"2,226,633.70",Building Improvements
Department for Education,Core,19/02/2024,Other Costs,Estates,Mace Limited,CORE-PINV-072270,"38,079.72",Building Improvements
Department for Education,Core,12/02/2024,Other Goods and Services,Operational Finance,Cabinet Office,CORE-PINV-072858,"97,969.00",Professional Services
Department for Education,Core,15/02/2024,Other Goods and Services,Commercial,The Chartered Institute Of Procurement And Supply,CORE-PINV-073117,"33,600.00",Research and Evaluation
Department for Education,Core,15/02/2024,Staff - Temporary Staff,Commercial,Alexander Mann Solutions Limited,CORE-PINV-073081,"34,995.95",Short term and agency staff
Department for Education,Core,15/02/2024,Other Goods and Services,Commercial,Nexer Digital Ltd,CORE-PINV-073088,"30,537.50",Research and Evaluation
Department for Education,Core,19/02/2024,Other Goods and Services,Commercial,Cognizant Worldwide Limited,CORE-PINV-071475,"50,760.28",Professional Services
Department for Education,Core,19/02/2024,Other Costs,Commercial,Cognizant Worldwide Limited,CORE-PINV-071474,"35,031.86",Software Development
Department for Education,Core,05/02/2024,Other Goods and Services,Commercial,Willis Limited,CORE-PINV-072309,"115,335.00",Professional Services
Department for Education,Core,29/02/2024,Other Goods and Services,Commercial,Willis Limited,CORE-PINV-073876,"83,310.00",Professional Services
Department for Education,Core,09/02/2024,Other Goods and Services,Commercial,Topmark Claims Management Part Of The Davies Group,CORE-PINV-072675,"41,174.40",Professional Services
Department for Education,Core,29/02/2024,Grants Expenditure,Commercial,Hounslow London Borough Council,CUPS0076575,"65,000.00",Capital grants - Local Government
Department for Education,Core,29/02/2024,Grants Expenditure,Commercial,Luton Borough Council,CUPS0076576,"55,000.00",Capital grants - Local Government
Department for Education,Core,12/02/2024,Legal,Commercial,The Government Legal Department,CORE-PINV-072769,"339,750.00",Professional Services - Legal
Department for Education,Core,12/02/2024,Staff - Secondee,Commercial,Cabinet Office,CORE-PINV-072850,"66,348.00",Fast Streamer Costs
Department for Education,Core,28/02/2024,Staff - Temporary Staff,Commercial,Alexander Mann Solutions Limited,CORE-PINV-073723,"25,822.32",Short term and agency staff
Department for Education,Core,08/02/2024,Legal,Human Resources,The Government Legal Department,CORE-PINV-072686,"58,327.97",Professional Services - Government Legal Department
Department for Education,Core,16/02/2024,Legal,Human Resources,The Government Legal Department,CORE-PINV-073125,"41,086.66",Professional Services - Government Legal Department
Department for Education,Core,16/02/2024,Legal,Human Resources,Ministry Of Justice,CORE-PINV-073238,"103,848.00",Professional Services - Legal
Department for Education,Core,28/02/2024,HR Service Costs,Human Resources,Cabinet Office,CORE-PINV-073720,"449,952.00",Contracted out HR services
Department for Education,Core,22/02/2024,Staff - Bonuses,Human Resources,Edenred (Incentives And Motivation) Limited,CORE-PINV-073536,"73,740.00",Rewards and Recognition
Department for Education,Core,28/02/2024,IS/IT,Human Resources,Workday Ltd,CORE-PINV-072088,"1,300,322.00",Software licences
Department for Education,Core,15/02/2024,IS/IT,Human Resources,Workday Ltd,CORE-PINV-073025,"144,026.00",Software licences
Department for Education,Core,16/02/2024,IS/IT,Customer Experience and Digital,Cognizant Worldwide Limited,CORE-PINV-072845,"177,624.00",Systems Operations
Department for Education,Core,13/02/2024,IS/IT,Technology,Unify Holding Uk 1 Limited,CORE-PINV-072721,"25,463.69",Telecoms
Department for Education,Core,05/02/2024,Other Costs,Technology,Computacenter (Uk) Limited,CORE-PCR-002750,"-31,939.80",Software Development
Department for Education,Core,05/02/2024,Other Costs,Technology,Computacenter (Uk) Limited,CORE-PINV-070592,"31,939.80",Software Development
Department for Education,Core,16/02/2024,Staff - Temporary Staff,Customer Experience and Digital,Cognizant Worldwide Limited,CORE-PINV-072291,"45,227.78",Professional Services
Department for Education,Core,20/02/2024,Staff - Temporary Staff,Customer Experience and Digital,Farsight Consulting Limited,CORE-PINV-073301,"29,409.60",Professional Services
Department for Education,Core,14/02/2024,Other Goods and Services,Customer Experience and Digital,Kpmg Llp,CORE-PINV-072880,"99,962.40",Professional Services
Department for Education,Core,20/02/2024,Staff - Temporary Staff,Customer Experience and Digital,Andigital Limited,CORE-PINV-073175,"63,216.00",Professional Services
Department for Education,Core,19/02/2024,Staff - Temporary Staff,Customer Experience and Digital,Andigital Limited,CORE-PINV-073176,"154,011.00",Professional Services
Department for Education,Core,19/02/2024,Staff - Temporary Staff,Customer Experience and Digital,Andigital Limited,CORE-PINV-073178,"28,116.00",Professional Services
Department for Education,Core,08/02/2024,Other Goods and Services,Customer Experience and Digital,Faculty Science Limited,CORE-PINV-072501,"172,717.37",Research and Evaluation
Department for Education,Core,22/02/2024,Other Goods and Services,Technology,Ncc Group Security Services Limited,CORE-PINV-073457,"214,440.00",Professional Services
Department for Education,Core,19/02/2024,IS/IT,Technology,Computacenter (Uk) Limited,CORE-PINV-072926,"1,270,423.02",End User Software and Hardware
Department for Education,Core,05/02/2024,IS/IT,Technology,Bytes Software Services Limited,CORE-PINV-072259,"1,605,865.46",End User Software and Hardware
Department for Education,Core,09/02/2024,IS/IT,Technology,Sol-Tec Limited,CORE-PINV-072609,"33,660.00",Professional Services
Department for Education,Core,13/02/2024,IS/IT,Technology,Sol-Tec Limited,CORE-PINV-072671,"25,080.00",Professional Services
Department for Education,Core,14/02/2024,Staff - Temporary Staff,Technology,Methods Business And Digital Technology Limited,CORE-PINV-072707,"317,664.00",Professional Services
Department for Education,Core,16/02/2024,Other Costs,Technology,Sol-Tec Limited,CORE-PINV-072570,"87,563.50",End User Software and Hardware
Department for Education,Core,21/02/2024,Staff - Temporary Staff,Technology,Farsight Consulting Limited,CORE-PINV-073461,"29,232.00",Professional Services
Department for Education,Core,13/02/2024,Staff - Temporary Staff,Technology,Nexer Digital Ltd,CORE-PINV-072704,"41,865.00",Professional Services
Department for Education,Core,20/02/2024,Staff - Temporary Staff,Technology,Engine Partners Uk Llp - Engine Transformation,CORE-PINV-073261,"37,329.60",Professional Services
Department for Education,Core,27/02/2024,Other Goods and Services,SARDIS,I.F.F Research Limited,CORE-PINV-073692,"69,607.00",Research and Evaluation
Department for Education,Core,27/02/2024,Other Goods and Services,SARDIS,Sheffield Hallam University,CORE-PCR-002812,"-134,702.00",Research and Evaluation
Department for Education,Core,27/02/2024,Other Goods and Services,SARDIS,Sheffield Hallam University,CORE-PINV-072838,"134,702.00",Research and Evaluation
Department for Education,Core,27/02/2024,Other Goods and Services,SARDIS,Sheffield Hallam University,CORE-PINV-073654,"127,287.00",Research and Evaluation
Department for Education,Core,07/02/2024,Other Goods and Services,SARDIS,Institute For Employment Studies,CORE-PINV-072393,"38,096.00",Research and Evaluation
Department for Education,Core,05/02/2024,Other Goods and Services,SARDIS,Bmg Research Ltd,CORE-PINV-072258,"30,775.00",Research and Evaluation
Department for Education,Core,19/02/2024,Other Goods and Services,SARDIS,Cardiff University,CORE-PINV-063640,"50,000.00",Research and Evaluation
Department for Education,Core,12/02/2024,Other Goods and Services,SARDIS,Cooper Gibson Ltd,CORE-PINV-072710,"25,055.50",Research and Evaluation
Department for Education,Core,05/02/2024,Other Costs,SARDIS,I.F.F Research Limited,CORE-PINV-072184,"67,627.43",Research and development
Department for Education,Core,05/02/2024,Other Costs,SARDIS,I.F.F Research Limited,CORE-PINV-072185,"73,093.17",Research and development
Department for Education,Core,05/02/2024,Other Costs,SARDIS,I.F.F Research Limited,CORE-PINV-072186,"110,483.52",Research and development
Department for Education,Core,07/02/2024,Other Costs,SARDIS,Sheffield Hallam University,CORE-PINV-072395,"45,270.40",Research and development
Department for Education,Core,01/02/2024,Other Costs,SARDIS,Institute For Employment Studies,CORE-PINV-072067,"35,620.00",Research and development
Department for Education,Core,27/02/2024,Other Costs,SARDIS,University College London,CORE-PINV-073697,"462,514.00",Research and development
Department for Education,Core,08/02/2024,Other Costs,SARDIS,Institute Of Fiscal Studies,CORE-PINV-072508,"99,080.00",Research and development
Department for Education,Core,22/02/2024,Other Costs,Data,Engine Partners Uk Llp - Engine Transformation,CORE-PINV-072764,"313,750.00",Software Development
Department for Education,Core,21/02/2024,Other Costs,Data,Engine Partners Uk Llp - Engine Transformation,CORE-PINV-072758,"148,410.00",Software Development
Department for Education,Core,22/02/2024,Other Costs,Data,Engine Partners Uk Llp - Engine Transformation,CORE-PINV-071229,"50,760.00",Software Development
Department for Education,Core,22/02/2024,Other Costs,Data,Engine Partners Uk Llp - Engine Transformation,CORE-PINV-073512,"102,870.00",Software Development
Department for Education,Core,06/02/2024,IS/IT,Data,Bramble Hub Limited,CORE-PINV-071304,"74,790.00",ICT repair and maintenance
Department for Education,Core,21/02/2024,IS/IT,Data,Engine Partners Uk Llp - Engine Transformation,CORE-PINV-072749,"32,984.00",ICT repair and maintenance
Department for Education,Core,21/02/2024,IS/IT,Data,Engine Partners Uk Llp - Engine Transformation,CORE-PINV-072753,"83,904.00",ICT repair and maintenance
Department for Education,Core,21/02/2024,IS/IT,Data,Engine Partners Uk Llp - Engine Transformation,CORE-PINV-072763,"62,952.00",ICT repair and maintenance
Department for Education,Core,28/02/2024,Staff - Other,SARDIS,Cabinet Office,CORE-PINV-073699,"44,616.00",Recruitment Advertising
Department for Education,Core,08/02/2024,IS/IT,SARDIS,Hive It Limited,CORE-PINV-072580,"237,175.48",Systems Operations
Department for Education,Core,01/02/2024,Other Costs,Data,Granicus-Firmstep,CORE-PINV-071462,"108,360.00",Software Development
Department for Education,Core,07/02/2024,IS/IT,Data,Bramble Hub Limited,CORE-PINV-072045,"38,880.00",Support - Managed Services
Department for Education,Core,28/02/2024,IS/IT,Data,Bramble Hub Limited,CORE-PINV-072807,"25,740.00",Support - Managed Services
Department for Education,Core,28/02/2024,IS/IT,Data,Bramble Hub Limited,CORE-PINV-072901,"25,740.00",ICT repair and maintenance
Department for Education,Core,14/02/2024,IS/IT,Data,Solirius Ltd,CORE-PINV-072885,"25,080.00",Support - Managed Services
Department for Education,Core,14/02/2024,IS/IT,Data,Solirius Ltd,CORE-PINV-072897,"48,441.60",Support - Managed Services
Department for Education,Core,14/02/2024,IS/IT,Data,Solirius Ltd,CORE-PINV-072899,"32,947.20",Support - Managed Services
Department for Education,Core,19/02/2024,IS/IT,Data,Solirius Ltd,CORE-PINV-073204,"44,304.00",Support - Managed Services
Department for Education,Core,28/02/2024,IS/IT,Data,Scrumconnect Limited,CORE-PINV-072581,"51,870.00",Support - Managed Services
Department for Education,Core,01/02/2024,IS/IT,Data,Rm Plc,CORE-PINV-072075,"628,658.00",Systems Operations
Department for Education,Core,16/02/2024,IS/IT,Data,Cognizant Worldwide Limited,CORE-PINV-073041,"28,562.69",Systems Operations
Department for Education,Core,19/02/2024,IS/IT,Data,Cognizant Worldwide Limited,CORE-PINV-073205,"50,154.05",Systems Operations
Department for Education,Core,22/02/2024,IS/IT,Data,Opencast Software Europe Limited,CORE-PINV-073527,"206,190.00",Systems Operations
Department for Education,Core,22/02/2024,IS/IT,Data,Opencast Software Europe Limited,CORE-PINV-073528,"160,410.00",Systems Operations
Department for Education,Core,22/02/2024,IS/IT,Data,Opencast Software Europe Limited,CORE-PINV-073533,"29,040.00",Systems Operations
Department for Education,Core,28/02/2024,IS/IT,Data,Avolution (Uk) Limited,CORE-PINV-073716,"65,180.40",Support - Managed Services
Department for Education,Core,15/02/2024,IS/IT,Strategic Policy Directorate,Tpximpact Limited,CORE-PINV-073038,"100,632.50",Systems Development
Department for Education,Core,05/02/2024,Grants Expenditure,Strategic Policy Directorate,Royal Horticultural Society,CORE-MAIN-052487,"64,994.00",Capital grants - Private Sector
Department for Education,Core,05/02/2024,Grants Expenditure,Strategic Policy Directorate,Royal Horticultural Society,CORE-MAIN-052488,"120,466.35",Capital grants - Private Sector
Department for Education,Core,19/02/2024,Grants Expenditure,Strategic Policy Directorate,Royal Horticultural Society,CUPS0077469,"70,000.00",Capital grants - Private Sector
Department for Education,Core,19/02/2024,Grants Expenditure,Strategic Policy Directorate,Royal Horticultural Society,CUPS0077470,"243,293.80",Capital grants - Private Sector
Department for Education,Core,09/02/2024,Grants Expenditure,Capital Directorate,Portakabin Limited,D-PINV062846,"166,226.58",Current grants - Academy Trust
Department for Education,Core,13/02/2024,Grants Expenditure,Capital Directorate,Jisc Services Limited,D-PINV063006,"515,091.00",Current grants - Private Sector
Department for Education,Core,09/02/2024,Other Costs,Capital Directorate,Mott Macdonald Limited,D-PINV062764,"120,363.60", Energy Pods Project
Department for Education,Core,09/02/2024,Other Costs,Capital Directorate,Mott Macdonald Limited,D-PINV062780,"51,637.20", Energy Pods Project
Department for Education,Core,16/02/2024,Grants Expenditure,Capital Directorate,Exceed Academies Trust,DU00105101,"29,939.00",Capital grants - Academy Trust
Department for Education,Core,02/02/2024,Grants Expenditure,Capital Directorate,Delta Academies Trust,DU00104668,"25,241.51",Capital grants - Academy Trust
Department for Education,Core,02/02/2024,Grants Expenditure,Capital Directorate,Delta Academies Trust,DU00104672,"25,284.66",Capital grants - Academy Trust
Department for Education,Core,16/02/2024,Grants Expenditure,Capital Directorate,Delta Academies Trust,DU00105033,"29,417.02",Capital grants - Academy Trust
Department for Education,Core,16/02/2024,Grants Expenditure,Capital Directorate,Delta Academies Trust,DU00105038,"29,407.40",Capital grants - Academy Trust
Department for Education,Core,16/02/2024,Grants Expenditure,Capital Directorate,Delta Academies Trust,DU00105051,"25,905.85",Capital grants - Academy Trust
Department for Education,Core,16/02/2024,Grants Expenditure,Capital Directorate,Dudley Metropolitan Borough Council,DU00104998,"51,550.16",Capital grants - Local Government
Department for Education,Core,02/02/2024,Grants Expenditure,Capital Directorate,Sandwell Metro Borough Council,DU00104662,"31,597.00",Capital grants - Local Government
Department for Education,Core,02/02/2024,Grants Expenditure,Capital Directorate,Sandwell Metro Borough Council,DU00104697,"48,859.84",Capital grants - Local Government
Department for Education,Core,02/02/2024,Grants Expenditure,Capital Directorate,Sandwell Metro Borough Council,DU00104708,"29,256.21",Capital grants - Local Government
Department for Education,Core,09/02/2024,Grants Expenditure,Capital Directorate,Sandwell Metro Borough Council,DU00104872,"30,421.63",Capital grants - Local Government
Department for Education,Core,09/02/2024,Grants Expenditure,Capital Directorate,Sandwell Metro Borough Council,DU00104925,"67,302.62",Capital grants - Local Government
Department for Education,Core,09/02/2024,Grants Expenditure,Capital Directorate,Sandwell Metro Borough Council,DU00104964,"27,649.28",Capital grants - Local Government
Department for Education,Core,16/02/2024,Grants Expenditure,Capital Directorate,Sandwell Metro Borough Council,DU00104995,"54,164.31",Capital grants - Local Government
Department for Education,Core,16/02/2024,Grants Expenditure,Capital Directorate,Sandwell Metro Borough Council,DU00105107,"35,233.90",Capital grants - Local Government
Department for Education,Core,23/02/2024,Grants Expenditure,Capital Directorate,Sandwell Metro Borough Council,DU00106080,"44,164.57",Capital grants - Local Government
Department for Education,Core,23/02/2024,Grants Expenditure,Capital Directorate,Sandwell Metro Borough Council,DU00106173,"26,692.04",Capital grants - Local Government
Department for Education,Core,23/02/2024,Grants Expenditure,Capital Directorate,Sandwell Metro Borough Council,DU00106195,"44,483.00",Capital grants - Local Government
Department for Education,Core,02/02/2024,Grants Expenditure,Capital Directorate,Walsall Metro Borough Council,DU00104782,"44,243.38",Capital grants - Local Government
Department for Education,Core,02/02/2024,Grants Expenditure,Capital Directorate,Walsall Metro Borough Council,DU00104795,"30,462.48",Capital grants - Local Government
Department for Education,Core,09/02/2024,Grants Expenditure,Capital Directorate,Walsall Metro Borough Council,DU00104851,"60,570.92",Capital grants - Local Government
Department for Education,Core,23/02/2024,Grants Expenditure,Capital Directorate,Walsall Metro Borough Council,DU00106138,"32,558.10",Capital grants - Local Government
Department for Education,Core,09/02/2024,Grants Expenditure,Capital Directorate,Knowsley Metro Borough Council,DU00104942,"39,432.39",Capital grants - Local Government
Department for Education,Core,23/02/2024,Grants Expenditure,Capital Directorate,Knowsley Metro Borough Council,DU00106176,"29,808.00",Capital grants - Local Government
Department for Education,Core,02/02/2024,Grants Expenditure,Capital Directorate,Liverpool City Council,DU00104773,"31,282.06",Capital grants - Local Government
Department for Education,Core,09/02/2024,Grants Expenditure,Capital Directorate,Sefton Metropolitan Borough Council,DU00104854,"39,205.72",Capital grants - Local Government
Department for Education,Core,09/02/2024,Grants Expenditure,Capital Directorate,Sefton Metropolitan Borough Council,DU00104951,"54,036.00",Capital grants - Local Government
Department for Education,Core,09/02/2024,Grants Expenditure,Capital Directorate,Wirral Metro Borough Council,DU00104901,"45,479.98",Capital grants - Local Government
Department for Education,Core,09/02/2024,Grants Expenditure,Capital Directorate,Wirral Metro Borough Council,DU00104941,"33,906.52",Capital grants - Local Government
Department for Education,Core,16/02/2024,Grants Expenditure,Capital Directorate,Wirral Metro Borough Council,DU00104991,"33,946.84",Capital grants - Local Government
Department for Education,Core,23/02/2024,Grants Expenditure,Capital Directorate,Bury Metro Borough Council,DU00106126,"50,884.00",Capital grants - Local Government
Department for Education,Core,02/02/2024,Grants Expenditure,Capital Directorate,Oldham Metropolitan Borough Council,DU00104661,"29,627.26",Capital grants - Local Government
Department for Education,Core,02/02/2024,Grants Expenditure,Capital Directorate,Oldham Metropolitan Borough Council,DU00104716,"57,981.96",Capital grants - Local Government
Department for Education,Core,02/02/2024,Grants Expenditure,Capital Directorate,Oldham Metropolitan Borough Council,DU00104759,"29,043.16",Capital grants - Local Government
Department for Education,Core,09/02/2024,Grants Expenditure,Capital Directorate,Oldham Metropolitan Borough Council,DU00104894,"50,839.80",Capital grants - Local Government
Department for Education,Core,09/02/2024,Grants Expenditure,Capital Directorate,Salford City Council,DU00104896,"29,984.29",Capital grants - Local Government
Department for Education,Core,02/02/2024,Grants Expenditure,Capital Directorate,Tameside Metro Borough Council,DU00104686,"35,019.35",Capital grants - Local Government
Department for Education,Core,02/02/2024,Grants Expenditure,Capital Directorate,Tameside Metro Borough Council,DU00104760,"35,609.55",Capital grants - Local Government
Department for Education,Core,09/02/2024,Grants Expenditure,Capital Directorate,Tameside Metro Borough Council,DU00104891,"27,421.24",Capital grants - Local Government
Department for Education,Core,09/02/2024,Grants Expenditure,Capital Directorate,Tameside Metro Borough Council,DU00104956,"35,692.65",Capital grants - Local Government
Department for Education,Core,23/02/2024,Grants Expenditure,Capital Directorate,Tameside Metro Borough Council,DU00106075,"40,859.91",Capital grants - Local Government
Department for Education,Core,02/02/2024,Grants Expenditure,Capital Directorate,Bradford City Council,DU00104680,"35,777.16",Capital grants - Local Government
Department for Education,Core,02/02/2024,Grants Expenditure,Capital Directorate,Bradford City Council,DU00104702,"38,640.00",Capital grants - Local Government
Department for Education,Core,16/02/2024,Grants Expenditure,Capital Directorate,Bradford City Council,DU00104988,"33,434.36",Capital grants - Local Government
Department for Education,Core,16/02/2024,Grants Expenditure,Capital Directorate,Bradford City Council,DU00104996,"107,065.68",Capital grants - Local Government
Department for Education,Core,16/02/2024,Grants Expenditure,Capital Directorate,Bradford City Council,DU00105016,"38,234.70",Capital grants - Local Government
Department for Education,Core,16/02/2024,Grants Expenditure,Capital Directorate,Kirklees Metro Council,DU00105008,"33,065.78",Capital grants - Local Government
Department for Education,Core,09/02/2024,Grants Expenditure,Capital Directorate,Leeds City Council,DU00104841,"42,526.38",Capital grants - Local Government
Department for Education,Core,09/02/2024,Grants Expenditure,Capital Directorate,Leeds City Council,DU00104880,"34,786.34",Capital grants - Local Government
Department for Education,Core,02/02/2024,Grants Expenditure,Capital Directorate,South Tyneside Council,DU00104675,"31,854.53",Capital grants - Local Government
Department for Education,Core,02/02/2024,Grants Expenditure,Capital Directorate,South Tyneside Council,DU00104766,"50,614.70",Capital grants - Local Government
Department for Education,Core,23/02/2024,Grants Expenditure,Capital Directorate,South Gloucestershire Council,DU00106191,"53,268.14",Capital grants - Local Government
Department for Education,Core,09/02/2024,Grants Expenditure,Capital Directorate,Hartlepool Borough Council,DU00104914,"35,202.08",Capital grants - Local Government
Department for Education,Core,23/02/2024,Grants Expenditure,Capital Directorate,Hartlepool Borough Council,DU00106122,"43,243.35",Capital grants - Local Government
Department for Education,Core,23/02/2024,Grants Expenditure,Capital Directorate,Hartlepool Borough Council,DU00106174,"44,762.04",Capital grants - Local Government
Department for Education,Core,16/02/2024,Grants Expenditure,Capital Directorate,Middlesbrough Council,DU00105055,"45,045.03",Capital grants - Local Government
Department for Education,Core,16/02/2024,Grants Expenditure,Capital Directorate,Middlesbrough Council,DU00105106,"42,991.11",Capital grants - Local Government
Department for Education,Core,02/02/2024,Grants Expenditure,Capital Directorate,Derby City Council,DU00104657,"37,291.00",Capital grants - Local Government
Department for Education,Core,02/02/2024,Grants Expenditure,Capital Directorate,Durham County Council,DU00104721,"29,468.41",Capital grants - Local Government
Department for Education,Core,16/02/2024,Grants Expenditure,Capital Directorate,Stoke On Trent City Council,DU00105052,"31,833.04",Capital grants - Local Government
Department for Education,Core,09/02/2024,Grants Expenditure,Capital Directorate,Cambridgeshire County Council,DU00104960,"41,158.55",Capital grants - Local Government
Department for Education,Core,16/02/2024,Grants Expenditure,Capital Directorate,Cambridgeshire County Council,DU00105062,"81,797.47",Capital grants - Local Government
Department for Education,Core,16/02/2024,Grants Expenditure,Capital Directorate,Cambridgeshire County Council,DU00105088,"31,102.30",Capital grants - Local Government
Department for Education,Core,16/02/2024,Grants Expenditure,Capital Directorate,Cambridgeshire County Council,DU00105109,"191,342.94",Capital grants - Local Government
Department for Education,Core,23/02/2024,Grants Expenditure,Capital Directorate,Cambridgeshire County Council,DU00106116,"50,263.57",Capital grants - Local Government
Department for Education,Core,02/02/2024,Grants Expenditure,Capital Directorate,Halton Borough Council,DU00104780,"37,115.31",Capital grants - Local Government
Department for Education,Core,02/02/2024,Grants Expenditure,Capital Directorate,Halton Borough Council,DU00104799,"29,616.88",Capital grants - Local Government
Department for Education,Core,16/02/2024,Grants Expenditure,Capital Directorate,Halton Borough Council,DU00104986,"37,821.60",Capital grants - Local Government
Department for Education,Core,16/02/2024,Grants Expenditure,Capital Directorate,Halton Borough Council,DU00105074,"27,094.00",Capital grants - Local Government
Department for Education,Core,16/02/2024,Grants Expenditure,Capital Directorate,Halton Borough Council,DU00105104,"27,708.00",Capital grants - Local Government
Department for Education,Core,23/02/2024,Grants Expenditure,Capital Directorate,Halton Borough Council,DU00106109,"38,204.26",Capital grants - Local Government
Department for Education,Core,09/02/2024,Grants Expenditure,Capital Directorate,Blackpool Borough Council,DU00104843,"37,204.73",Capital grants - Local Government
Department for Education,Core,09/02/2024,Grants Expenditure,Capital Directorate,Nottinghamshire County Council,DU00104886,"47,380.00",Capital grants - Local Government
Department for Education,Core,09/02/2024,Grants Expenditure,Capital Directorate,Nottingham City Council,DU00104961,"42,545.01",Capital grants - Local Government
Department for Education,Core,16/02/2024,Grants Expenditure,Capital Directorate,Nottingham City Council,DU00104975,"101,854.35",Capital grants - Local Government
Department for Education,Core,16/02/2024,Grants Expenditure,Capital Directorate,Nottingham City Council,DU00105108,"41,828.84",Capital grants - Local Government
Department for Education,Core,09/02/2024,Grants Expenditure,Capital Directorate,Cornwall Council,DU00104888,"27,212.60",Capital grants - Local Government
Department for Education,Core,02/02/2024,Grants Expenditure,Capital Directorate,Norfolk County Council,DU00104649,"30,434.27",Capital grants - Local Government
Department for Education,Core,02/02/2024,Grants Expenditure,Capital Directorate,Norfolk County Council,DU00104674,"34,052.86",Capital grants - Local Government
Department for Education,Core,02/02/2024,Grants Expenditure,Capital Directorate,Norfolk County Council,DU00104734,"37,335.45",Capital grants - Local Government
Department for Education,Core,23/02/2024,Grants Expenditure,Capital Directorate,Norfolk County Council,DU00106196,"58,321.84",Capital grants - Local Government
Department for Education,Core,23/02/2024,Grants Expenditure,Capital Directorate,Somerset Council,DU00106143,"28,298.00",Capital grants - Local Government
Department for Education,Core,02/02/2024,Grants Expenditure,Capital Directorate,Central Bedfordshire Council,DU00104753,"51,082.14",Capital grants - Local Government
Department for Education,Core,23/02/2024,Grants Expenditure,Capital Directorate,Bedford Borough Council,DU00106106,"29,714.32",Capital grants - Local Government
Department for Education,Core,16/02/2024,Grants Expenditure,Capital Directorate,United Learning Trust,DU00105009,"134,223.10",Capital grants - Academy Trust
Department for Education,Core,16/02/2024,Grants Expenditure,Capital Directorate,United Learning Trust,DU00105010,"128,392.26",Capital grants - Academy Trust
Department for Education,Core,16/02/2024,Grants Expenditure,Capital Directorate,United Learning Trust,DU00105090,"128,192.49",Capital grants - Academy Trust
Department for Education,Core,23/02/2024,Grants Expenditure,Capital Directorate,The Active Learning Trust Limited,DU00106108,"79,318.17",Capital grants - Academy Trust
Department for Education,Core,02/02/2024,Grants Expenditure,Capital Directorate,All Saints Catholic Collegiate,DU00104789,"28,097.10",Capital grants - Academy Trust
Department for Education,Core,09/02/2024,Grants Expenditure,Capital Directorate,Anglian Learning,DU00104830,"31,821.81",Capital grants - Academy Trust
Department for Education,Core,09/02/2024,Grants Expenditure,Capital Directorate,Archway Learning Trust,DU00104906,"86,236.00",Capital grants - Academy Trust
Department for Education,Core,09/02/2024,Grants Expenditure,Capital Directorate,Archway Learning Trust,DU00104936,"46,082.00",Capital grants - Academy Trust
Department for Education,Core,09/02/2024,Grants Expenditure,Capital Directorate,Archway Learning Trust,DU00104937,"30,870.00",Capital grants - Academy Trust
Department for Education,Core,09/02/2024,Grants Expenditure,Capital Directorate,Archway Learning Trust,DU00104938,"52,130.00",Capital grants - Academy Trust
Department for Education,Core,09/02/2024,Grants Expenditure,Capital Directorate,Archway Learning Trust,DU00104943,"25,493.76",Capital grants - Academy Trust
Department for Education,Core,09/02/2024,Grants Expenditure,Capital Directorate,Archway Learning Trust,DU00104946,"47,651.00",Capital grants - Academy Trust
Department for Education,Core,09/02/2024,Grants Expenditure,Capital Directorate,Archway Learning Trust,DU00104948,"77,400.00",Capital grants - Academy Trust
Department for Education,Core,23/02/2024,Grants Expenditure,Capital Directorate,Astrea Academy Trust,DU00106155,"118,205.76",Capital grants - Academy Trust
Department for Education,Core,02/02/2024,Grants Expenditure,Capital Directorate,Beckfoot Trust,DU00104620,"32,561.53",Capital grants - Academy Trust
Department for Education,Core,02/02/2024,Grants Expenditure,Capital Directorate,Beckfoot Trust,DU00104644,"100,045.98",Capital grants - Academy Trust
Department for Education,Core,02/02/2024,Grants Expenditure,Capital Directorate,Beckfoot Trust,DU00104645,"41,393.59",Capital grants - Academy Trust
Department for Education,Core,02/02/2024,Grants Expenditure,Capital Directorate,Beckfoot Trust,DU00104647,"41,563.57",Capital grants - Academy Trust
Department for Education,Core,02/02/2024,Grants Expenditure,Capital Directorate,Bodmin College,DU00104727,"42,710.22",Capital grants - Academy Trust
Department for Education,Core,02/02/2024,Grants Expenditure,Capital Directorate,Bradford Academy,DU00104696,"73,803.00",Capital grants - Academy Trust
Department for Education,Core,02/02/2024,Grants Expenditure,Capital Directorate,Castle Phoenix Trust,DU00104769,"85,674.98",Capital grants - Academy Trust
Department for Education,Core,23/02/2024,Grants Expenditure,Capital Directorate,Catcote Academy,DU00106177,"160,094.21",Capital grants - Academy Trust
Department for Education,Core,02/02/2024,Grants Expenditure,Capital Directorate,Anthem Schools Trust,DU00104652,"45,440.24",Capital grants - Academy Trust
Department for Education,Core,02/02/2024,Grants Expenditure,Capital Directorate,Anthem Schools Trust,DU00104687,"53,694.00",Capital grants - Academy Trust
Department for Education,Core,02/02/2024,Grants Expenditure,Capital Directorate,Cockburn Multi Academy Trust,DU00104772,"63,525.30",Capital grants - Academy Trust
Department for Education,Core,09/02/2024,Grants Expenditure,Capital Directorate,The Co-Operative Academies Trust,DU00104833,"42,173.00",Capital grants - Academy Trust
Department for Education,Core,02/02/2024,Grants Expenditure,Capital Directorate,Derby Diocesan Academy Trust,DU00104677,"32,395.43",Capital grants - Academy Trust
Department for Education,Core,02/02/2024,Grants Expenditure,Capital Directorate,Derby Diocesan Academy Trust,DU00104714,"61,830.27",Capital grants - Local Government
Department for Education,Core,09/02/2024,Grants Expenditure,Capital Directorate,Diocese Of Chichester Academy Trust,DU00104953,"29,859.80",Capital grants - Academy Trust
Department for Education,Core,09/02/2024,Grants Expenditure,Capital Directorate,Diocese Of Southwell And Nottingham Multi-Academy Trust,DU00104837,"93,844.49",Capital grants - Academy Trust
Department for Education,Core,09/02/2024,Grants Expenditure,Capital Directorate,Diocese Of Southwell And Nottingham Multi-Academy Trust,DU00104916,"40,138.48",Capital grants - Academy Trust
Department for Education,Core,16/02/2024,Grants Expenditure,Capital Directorate,Droylsden Academy,DU00105019,"81,272.00",Capital grants - Academy Trust
Department for Education,Core,09/02/2024,Grants Expenditure,Capital Directorate,E-Act,DU00104871,"48,326.35",Capital grants - Academy Trust
Department for Education,Core,09/02/2024,Grants Expenditure,Capital Directorate,E-Act,DU00104873,"62,636.61",Capital grants - Academy Trust
Department for Education,Core,09/02/2024,Grants Expenditure,Capital Directorate,E-Act,DU00104876,"73,828.84",Capital grants - Academy Trust
Department for Education,Core,02/02/2024,Grants Expenditure,Capital Directorate,Elston Hall Learning Trust,DU00104796,"47,907.97",Capital grants - Academy Trust
Department for Education,Core,02/02/2024,Grants Expenditure,Capital Directorate,Elston Hall Learning Trust,DU00104798,"70,302.00",Capital grants - Academy Trust
Department for Education,Core,02/02/2024,Grants Expenditure,Capital Directorate,Equals Trust,DU00104776,"36,162.62",Capital grants - Academy Trust
Department for Education,Core,09/02/2024,Grants Expenditure,Capital Directorate,Fernwood School,DU00104949,"110,460.00",Capital grants - Academy Trust
Department for Education,Core,02/02/2024,Grants Expenditure,Capital Directorate,Flying High Trust,DU00104683,"37,878.71",Capital grants - Academy Trust
Department for Education,Core,02/02/2024,Grants Expenditure,Capital Directorate,Forward As One Church Of England Multi Academy Trust,DU00104750,"31,642.78",Capital grants - Academy Trust
Department for Education,Core,02/02/2024,Grants Expenditure,Capital Directorate,Forward As One Church Of England Multi Academy Trust,DU00104751,"30,187.76",Capital grants - Academy Trust
Department for Education,Core,09/02/2024,Grants Expenditure,Capital Directorate,Fylde Coast Academy Trust,DU00104921,"96,361.40",Capital grants - Academy Trust
Department for Education,Core,09/02/2024,Grants Expenditure,Capital Directorate,Fylde Coast Academy Trust,DU00104923,"49,856.60",Capital grants - Academy Trust
Department for Education,Core,02/02/2024,Grants Expenditure,Capital Directorate,University Of Brighton Academies Trust,DU00104725,"110,468.53",Capital grants - Academy Trust
Department for Education,Core,16/02/2024,Grants Expenditure,Capital Directorate,University Of Brighton Academies Trust,DU00104969,"46,653.57",Capital grants - Academy Trust
Department for Education,Core,09/02/2024,Grants Expenditure,Capital Directorate,Lingfield Education Trust,DU00104939,"52,854.70",Capital grants - Academy Trust
Department for Education,Core,02/02/2024,Grants Expenditure,Capital Directorate,"Hope Learning Trust, York",DU00104623,"223,322.38",Capital grants - Academy Trust
Department for Education,Core,02/02/2024,Grants Expenditure,Capital Directorate,Horizons Specialist Academy Trust,DU00104764,"29,082.77",Capital grants - Academy Trust
Department for Education,Core,09/02/2024,Grants Expenditure,Capital Directorate,Enrich Learning Trust,DU00104806,"77,774.32",Capital grants - Academy Trust
Department for Education,Core,02/02/2024,Grants Expenditure,Capital Directorate,Inspiration Trust,DU00104741,"57,303.48",Capital grants - Academy Trust
Department for Education,Core,02/02/2024,Grants Expenditure,Capital Directorate,Inspiration Trust,DU00104746,"40,676.98",Capital grants - Academy Trust
Department for Education,Core,02/02/2024,Grants Expenditure,Capital Directorate,Iqra Academy,DU00104671,"111,122.70",Capital grants - Academy Trust
Department for Education,Core,02/02/2024,Grants Expenditure,Capital Directorate,Kensworth Church Of England Academy,DU00104618,"26,442.60",Capital grants - Academy Trust
Department for Education,Core,16/02/2024,Grants Expenditure,Capital Directorate,Landau Forte Charitable Trust,DU00104976,"73,571.24",Capital grants - Academy Trust
Department for Education,Core,02/02/2024,Grants Expenditure,Capital Directorate,Lincoln Anglican Academy Trust,DU00104641,"62,881.12",Capital grants - Academy Trust
Department for Education,Core,02/02/2024,Grants Expenditure,Capital Directorate,Lincoln Anglican Academy Trust,DU00104646,"40,016.13",Capital grants - Academy Trust
Department for Education,Core,02/02/2024,Grants Expenditure,Capital Directorate,Macmillan Academy,DU00104719,"26,132.48",Capital grants - Academy Trust
Department for Education,Core,02/02/2024,Grants Expenditure,Capital Directorate,Maltby Learning Trust,DU00104689,"68,528.36",Capital grants - Academy Trust
Department for Education,Core,02/02/2024,Grants Expenditure,Capital Directorate,Maltby Learning Trust,DU00104694,"92,883.44",Capital grants - Academy Trust
Department for Education,Core,02/02/2024,Grants Expenditure,Capital Directorate,New College Durham Academies Trust,DU00104678,"58,242.21",Capital grants - Academy Trust
Department for Education,Core,09/02/2024,Grants Expenditure,Capital Directorate,Oasis Community Learning,DU00104926,"33,960.58",Capital grants - Academy Trust
Department for Education,Core,09/02/2024,Grants Expenditure,Capital Directorate,Oasis Community Learning,DU00104928,"119,599.97",Capital grants - Academy Trust
Department for Education,Core,09/02/2024,Grants Expenditure,Capital Directorate,Oasis Community Learning,DU00104929,"32,905.86",Capital grants - Academy Trust
Department for Education,Core,09/02/2024,Grants Expenditure,Capital Directorate,Oasis Community Learning,DU00104930,"37,554.14",Capital grants - Academy Trust
Department for Education,Core,09/02/2024,Grants Expenditure,Capital Directorate,Oasis Community Learning,DU00104931,"92,625.50",Capital grants - Academy Trust
Department for Education,Core,23/02/2024,Grants Expenditure,Capital Directorate,Oasis Community Learning,DU00106152,"114,169.03",Capital grants - Academy Trust
Department for Education,Core,23/02/2024,Grants Expenditure,Capital Directorate,Oasis Community Learning,DU00106153,"102,090.53",Capital grants - Academy Trust
Department for Education,Core,09/02/2024,Grants Expenditure,Capital Directorate,Old Basford School,DU00104883,"77,543.12",Capital grants - Academy Trust
Department for Education,Core,09/02/2024,Grants Expenditure,Capital Directorate,Ormiston Academies Trust,DU00104855,"73,044.24",Capital grants - Academy Trust
Department for Education,Core,09/02/2024,Grants Expenditure,Capital Directorate,Ormiston Academies Trust,DU00104856,"70,936.54",Capital grants - Academy Trust
Department for Education,Core,09/02/2024,Grants Expenditure,Capital Directorate,Ormiston Academies Trust,DU00104857,"117,032.87",Capital grants - Academy Trust
Department for Education,Core,09/02/2024,Grants Expenditure,Capital Directorate,Ormiston Academies Trust,DU00104858,"68,656.24",Capital grants - Academy Trust
Department for Education,Core,09/02/2024,Grants Expenditure,Capital Directorate,Ormiston Academies Trust,DU00104859,"85,877.60",Capital grants - Academy Trust
Department for Education,Core,09/02/2024,Grants Expenditure,Capital Directorate,Ormiston Academies Trust,DU00104860,"103,464.58",Capital grants - Academy Trust
Department for Education,Core,09/02/2024,Grants Expenditure,Capital Directorate,Ormiston Academies Trust,DU00104862,"87,074.37",Capital grants - Academy Trust
Department for Education,Core,09/02/2024,Grants Expenditure,Capital Directorate,Ormiston Academies Trust,DU00104864,"58,215.19",Capital grants - Academy Trust
Department for Education,Core,09/02/2024,Grants Expenditure,Capital Directorate,Ormiston Academies Trust,DU00104866,"61,881.99",Capital grants - Academy Trust
Department for Education,Core,09/02/2024,Grants Expenditure,Capital Directorate,Ormiston Academies Trust,DU00104868,"57,632.17",Capital grants - Academy Trust
Department for Education,Core,09/02/2024,Grants Expenditure,Capital Directorate,Ormiston Academies Trust,DU00104869,"93,204.76",Capital grants - Academy Trust
Department for Education,Core,09/02/2024,Grants Expenditure,Capital Directorate,Ormiston Academies Trust,DU00104881,"25,904.97",Capital grants - Academy Trust
Department for Education,Core,09/02/2024,Grants Expenditure,Capital Directorate,Ormiston Academies Trust,DU00104934,"117,146.85",Capital grants - Academy Trust
Department for Education,Core,09/02/2024,Grants Expenditure,Capital Directorate,Ormiston Academies Trust,DU00104962,"103,207.38",Capital grants - Academy Trust
Department for Education,Core,16/02/2024,Grants Expenditure,Capital Directorate,Ormiston Academies Trust,DU00105076,"67,896.18",Capital grants - Academy Trust
Department for Education,Core,23/02/2024,Grants Expenditure,Capital Directorate,Ormiston Academies Trust,DU00106101,"77,409.27",Capital grants - Academy Trust
Department for Education,Core,23/02/2024,Grants Expenditure,Capital Directorate,Ormiston Academies Trust,DU00106171,"36,628.87",Capital grants - Academy Trust
Department for Education,Core,23/02/2024,Grants Expenditure,Capital Directorate,Ormiston Academies Trust,DU00106172,"78,522.81",Capital grants - Academy Trust
Department for Education,Core,02/02/2024,Grants Expenditure,Capital Directorate,Our Lady Of Lourdes Catholic Multi-Academy Trust,DU00104655,"42,110.14",Capital grants - Academy Trust
Department for Education,Core,09/02/2024,Grants Expenditure,Capital Directorate,Our Lady Of Lourdes Catholic Multi-Academy Trust,DU00104846,"80,230.59",Capital grants - Academy Trust
Department for Education,Core,02/02/2024,Grants Expenditure,Capital Directorate,Our Lady Of Perpetual Succour Catholic Primary School,DU00104622,"65,601.35",Capital grants - Academy Trust
Department for Education,Core,02/02/2024,Grants Expenditure,Capital Directorate,Sexey'S School,DU00104693,"26,427.69",Capital grants - Academy Trust
Department for Education,Core,02/02/2024,Grants Expenditure,Capital Directorate,Sir Christopher Hatton Academy,DU00104790,"27,386.65",Capital grants - Academy Trust
Department for Education,Core,02/02/2024,Grants Expenditure,Capital Directorate,Sir Christopher Hatton Academy,DU00104791,"30,220.56",Capital grants - Academy Trust
Department for Education,Core,16/02/2024,Grants Expenditure,Capital Directorate,South Pennine Academies,DU00105029,"61,670.81",Capital grants - Academy Trust
Department for Education,Core,02/02/2024,Grants Expenditure,Capital Directorate,St Bart'S Multi Academy Trust,DU00104701,"33,825.46",Capital grants - Academy Trust
Department for Education,Core,02/02/2024,Grants Expenditure,Capital Directorate,St Bart'S Multi Academy Trust,DU00104732,"27,474.72",Capital grants - Academy Trust
Department for Education,Core,09/02/2024,Grants Expenditure,Capital Directorate,St Bart'S Multi Academy Trust,DU00104823,"51,188.32",Capital grants - Academy Trust
Department for Education,Core,09/02/2024,Grants Expenditure,Capital Directorate,St Bart'S Multi Academy Trust,DU00104829,"27,713.05",Capital grants - Academy Trust
Department for Education,Core,02/02/2024,Grants Expenditure,Capital Directorate,St Patrick'S Catholic Primary School,DU00104745,"25,592.66",Capital grants - Academy Trust
Department for Education,Core,16/02/2024,Grants Expenditure,Capital Directorate,Summerbank Primary Academy,DU00105061,"31,973.62",Capital grants - Academy Trust
Department for Education,Core,16/02/2024,Grants Expenditure,Capital Directorate,Swale Academies Trust,DU00105066,"27,947.62",Capital grants - Academy Trust
Department for Education,Core,09/02/2024,Grants Expenditure,Capital Directorate,Swinton Academy,DU00104818,"29,201.54",Capital grants - Academy Trust
Department for Education,Core,09/02/2024,Grants Expenditure,Capital Directorate,Thames Primary Academy,DU00104935,"92,219.18",Capital grants - Academy Trust
Department for Education,Core,09/02/2024,Grants Expenditure,Capital Directorate,The Bishop Wheeler Catholic Academy Trust,DU00104844,"28,051.47",Capital grants - Academy Trust
Department for Education,Core,02/02/2024,Grants Expenditure,Capital Directorate,The Diocese Of Ely Multi-Academy Trust,DU00104670,"27,893.00",Capital grants - Local Government
Department for Education,Core,02/02/2024,Grants Expenditure,Capital Directorate,The Hathershaw College,DU00104699,"53,136.22",Capital grants - Academy Trust
Department for Education,Core,16/02/2024,Grants Expenditure,Capital Directorate,Kernow Learning Multi Academy Trust,DU00105053,"43,312.05",Capital grants - Academy Trust
Department for Education,Core,09/02/2024,Grants Expenditure,Capital Directorate,The Romero Catholic Academy,DU00104870,"137,405.60",Capital grants - Academy Trust
Department for Education,Core,23/02/2024,Grants Expenditure,Capital Directorate,The Salterns Academy Trust,DU00106180,"88,139.32",Capital grants - Academy Trust
Department for Education,Core,23/02/2024,Grants Expenditure,Capital Directorate,The Salterns Academy Trust,DU00106186,"61,972.30",Capital grants - Academy Trust
Department for Education,Core,23/02/2024,Grants Expenditure,Capital Directorate,The St John Bosco Catholic Academy,DU00106197,"64,184.00",Capital grants - Academy Trust
Department for Education,Core,23/02/2024,Grants Expenditure,Capital Directorate,The Two Counties Trust,DU00106192,"71,373.88",Capital grants - Academy Trust
Department for Education,Core,16/02/2024,Grants Expenditure,Capital Directorate,The Wensum Trust,DU00105007,"63,801.08",Capital grants - Academy Trust
Department for Education,Core,09/02/2024,Grants Expenditure,Capital Directorate,Vision Academy Learning Trust,DU00104920,"39,278.79",Capital grants - Academy Trust
Department for Education,Core,09/02/2024,Grants Expenditure,Capital Directorate,Waterton Academy Trust,DU00104836,"28,516.54",Capital grants - Academy Trust
Department for Education,Core,16/02/2024,Grants Expenditure,Capital Directorate,West Cliff Primary School,DU00105037,"27,193.39",Capital grants - Academy Trust
Department for Education,Core,23/02/2024,Grants Expenditure,Capital Directorate,White Woods Primary Academy Trust,DU00106114,"34,031.06",Capital grants - Academy Trust
Department for Education,Core,16/02/2024,Grants Expenditure,Capital Directorate,Jesson'S Cofe Primary School (Va),DU00105040,"31,011.80",Capital grants - Local Government
Department for Education,Core,23/02/2024,Grants Expenditure,Capital Directorate,Birmingham Church Schools Fund,DU00106097,"39,603.84",Capital grants - Local Government
Department for Education,Core,23/02/2024,Grants Expenditure,Capital Directorate,Manchester Diocesan Board Of Education,DU00106107,"25,928.33",Capital grants - Local Government
Department for Education,Core,23/02/2024,Grants Expenditure,Capital Directorate,Liverpool Diocesan Board Of Finance ( St,DU00106154,"106,884.00",Capital grants - Local Government
Department for Education,Core,09/02/2024,Grants Expenditure,Capital Directorate,Diocese Of Salford,DU00104875,"30,809.03",Capital grants - Local Government
Department for Education,Core,16/02/2024,Grants Expenditure,Capital Directorate,Diocese Of Salford,DU00104968,"43,797.16",Capital grants - Local Government
Department for Education,Core,16/02/2024,Grants Expenditure,Capital Directorate,Diocese Of Salford,DU00104984,"148,088.24",Capital grants - Local Government
Department for Education,Core,23/02/2024,Grants Expenditure,Capital Directorate,Diocese Of Salford,DU00106129,"27,677.08",Capital grants - Local Government
Department for Education,Core,23/02/2024,Grants Expenditure,Capital Directorate,Diocese Of Salford,DU00106144,"41,434.30",Capital grants - Local Government
Department for Education,Core,09/02/2024,Grants Expenditure,Capital Directorate,Birmingham Rc Diocesan Trustees Reg. Dev,DU00104893,"55,483.29",Capital grants - Local Government
Department for Education,Core,23/02/2024,Grants Expenditure,Capital Directorate,Birmingham Rc Diocesan Trustees Reg. Dev,DU00106151,"36,698.40",Capital grants - Local Government
Department for Education,Core,09/02/2024,Grants Expenditure,Capital Directorate,The Orchard School,DU00104963,"-27,649.28",Capital grants - Local Government
Department for Education,Core,16/02/2024,Grants Expenditure,Capital Directorate,Norwich Diocesan Board Of Finance Limited(The),DU00105041,"64,819.20",Capital grants - Local Government
Department for Education,Core,02/02/2024,Grants Expenditure,Capital Directorate,Archdiocese Of Liverpool,DU00104705,"39,882.67",Capital grants - Local Government
Department for Education,Core,02/02/2024,Grants Expenditure,Capital Directorate,Archdiocese Of Liverpool,DU00104710,"29,983.42",Capital grants - Local Government
Department for Education,Core,09/02/2024,Grants Expenditure,Capital Directorate,Archdiocese Of Liverpool,DU00104813,"39,957.12",Capital grants - Local Government
Department for Education,Core,09/02/2024,Grants Expenditure,Capital Directorate,Archdiocese Of Liverpool,DU00104957,"137,425.39",Capital grants - Local Government
Department for Education,Core,16/02/2024,Grants Expenditure,Capital Directorate,Archdiocese Of Liverpool,DU00105057,"47,497.34",Capital grants - Local Government
Department for Education,Core,16/02/2024,Grants Expenditure,Capital Directorate,Archdiocese Of Liverpool,DU00105089,"44,690.40",Capital grants - Local Government
Department for Education,Core,23/02/2024,Grants Expenditure,Capital Directorate,"Royds Hall, A Share Academy",DU00106194,"135,418.47",Capital grants - Academy Trust
Department for Education,Core,23/02/2024,Grants Expenditure,Capital Directorate,"Thornhill Community Academy, A Share Academy",DU00106193,"105,263.61",Capital grants - Academy Trust
Department for Education,Core,09/02/2024,Grants Expenditure,Capital Directorate,The Children'S Endeavour Trust,DU00104918,"25,072.65",Capital grants - Academy Trust
Department for Education,Core,09/02/2024,Grants Expenditure,Capital Directorate,Bilborough College,DU00104877,"163,841.58",Capital grants - Academy Trust
Department for Education,Core,09/02/2024,Grants Expenditure,Capital Directorate,Falcon Education Academies Trust,DU00104807,"97,611.98",Capital grants - Academy Trust
Department for Education,Core,02/02/2024,Grants Expenditure,Capital Directorate,Xp School Trust Limited,DU00104797,"55,367.20",Capital grants - Academy Trust
Department for Education,Core,09/02/2024,Grants Expenditure,Capital Directorate,The Legacy Learning Trust ,DU00104839,"65,913.29",Capital grants - Academy Trust
Department for Education,Core,23/02/2024,Grants Expenditure,Capital Directorate,The Legacy Learning Trust ,DU00106072,"26,854.89",Capital grants - Academy Trust
Department for Education,Core,16/02/2024,Grants Expenditure,Capital Directorate,Victorious Academies Trust,DU00105020,"33,784.55",Capital grants - Academy Trust
Department for Education,Core,16/02/2024,Grants Expenditure,Capital Directorate,Carlton Academy Trust,DU00105003,"70,953.31",Capital grants - Academy Trust
Department for Education,Core,16/02/2024,Grants Expenditure,Capital Directorate,Carlton Academy Trust,DU00105006,"81,355.36",Capital grants - Academy Trust
Department for Education,Core,16/02/2024,Grants Expenditure,Capital Directorate,James Montgomery Academy Trust,DU00105072,"31,839.09",Capital grants - Academy Trust
Department for Education,Core,23/02/2024,Grants Expenditure,Capital Directorate,James Montgomery Academy Trust,DU00106131,"26,495.76",Capital grants - Academy Trust
Department for Education,Core,02/02/2024,Grants Expenditure,Capital Directorate,Eckington School,DU00104634,"36,721.57",Capital grants - Academy Trust
Department for Education,Core,27/02/2024,Other Goods and Services,Capital Directorate,Pricewaterhousecoopers Llp,D-PINV063278,"511,558.13",Professional Services
Department for Education,Core,20/02/2024,Other Goods and Services,Capital Directorate,Collingwood College,DU00105786,"93,796.00",Professional Services
Department for Education,Core,15/02/2024,Other Goods and Services,Capital Directorate,Rider Levett Bucknall Uk Limited,D-PINV062815,"68,264.16",Professional Services
Department for Education,Core,23/02/2024,Other Goods and Services,Capital Directorate,Rider Levett Bucknall Uk Limited,D-PINV063407,"51,863.22",Professional Services
Department for Education,Core,05/02/2024,Other Goods and Services,Capital Directorate,Wsp Uk Limited,D-PINV062637,"221,473.20",Professional Services
Department for Education,Core,15/02/2024,Other Goods and Services,Capital Directorate,Pick Everard,D-PINV062903,"68,934.00",Professional Services
Department for Education,Core,09/02/2024,Other Goods and Services,Capital Directorate,Ove Arup And Partners Limited,D-PCR001418,"-151,274.40",Professional Services
Department for Education,Core,19/02/2024,Other Goods and Services,Capital Directorate,Ove Arup And Partners Limited,D-PINV059962,"151,274.40",Professional Services
Department for Education,Core,09/02/2024,Other Goods and Services,Capital Directorate,Ove Arup And Partners Limited,D-PINV061519,"51,068.40",Professional Services
Department for Education,Core,09/02/2024,Other Goods and Services,Capital Directorate,Ove Arup And Partners Limited,D-PINV062777,"75,378.00",Professional Services
Department for Education,Core,19/02/2024,IS/IT,Capital Directorate,Cognizant Worldwide Limited,D-PINV063060,"59,346.78",Systems Development
Department for Education,Core,21/02/2024,Grants Expenditure,Capital Directorate,Ermysted'S Grammar School,D-CINV006229,"61,649.46",Capital grants - Local Government
Department for Education,Core,21/02/2024,Grants Expenditure,Capital Directorate,Jfs,D-CINV006268,"305,928.00",Capital grants - Local Government
Department for Education,Core,07/02/2024,Grants Expenditure,Capital Directorate,The Camden School For Girls,D-CINV006155,"31,212.00",Capital grants - Local Government
Department for Education,Core,21/02/2024,Grants Expenditure,Capital Directorate,The Camden School For Girls,D-CINV006286,"43,209.50",Capital grants - Local Government
Department for Education,Core,01/02/2024,Grants Expenditure,Capital Directorate,Suffolk County Council,CL071637,"418,866.34",Capital grants - Local Government
Department for Education,Core,16/02/2024,Grants Expenditure,Capital Directorate,Salford City Council,D-CINV006174,"47,168.24",Capital Grant - Local Government
Department for Education,Core,26/02/2024,Grants Expenditure,Capital Directorate,Hampshire County Council,D-CINV006310,"79,631.36",Capital Grant - Local Government
Department for Education,Core,26/02/2024,Grants Expenditure,Capital Directorate,Lincolnshire County Council,D-CINV006278,"726,950.84",Capital Grant - Local Government
Department for Education,Core,26/02/2024,Grants Expenditure,Capital Directorate,Solihull Metro Borough Council,D-CINV006309,"161,978.29",Capital Grant - Local Government
Department for Education,Core,02/02/2024,Grants Expenditure,Capital Directorate,Wolverhampton City Council,D-CINV006090,"400,529.39",Capital Grant - Local Government
Department for Education,Core,02/02/2024,Grants Expenditure,Capital Directorate,Rochdale Borough Council,D-CINV006070,"34,833.28",Capital Grant - Local Government
Department for Education,Core,26/02/2024,Grants Expenditure,Capital Directorate,Bristol City Council,D-CINV006304,"66,500.42",Capital Grant - Local Government
Department for Education,Core,16/02/2024,Grants Expenditure,Capital Directorate,East Riding Of Yorkshire Council,D-CINV006173,"184,143.00",Capital Grant - Local Government
Department for Education,Core,26/02/2024,Grants Expenditure,Capital Directorate,Gloucestershire County Council,D-CINV006274,"565,939.00",Capital Grant - Local Government
Department for Education,Core,26/02/2024,Grants Expenditure,Capital Directorate,Oxfordshire County Council,D-CINV006306,"91,540.28",Capital Grant - Local Government
Department for Education,Core,23/02/2024,Grants Expenditure,Capital Directorate,Oxfordshire County Council,D-CINV006307,"50,388.20",Capital Grant - Local Government
Department for Education,Core,19/02/2024,IS/IT,Capital Directorate,Cognizant Worldwide Limited,D-PINV063059,"29,838.06",Systems Development
Department for Education,Core,19/02/2024,IS/IT,Capital Directorate,Cognizant Worldwide Limited,D-PINV063061,"116,665.74",Systems Development
Department for Education,Core,01/02/2024,Grants Expenditure,Capital Directorate,Barking And Dagenham London Borough Council,DU00104478,"419,116.14",Capital grants - Local Government
Department for Education,Core,01/02/2024,Grants Expenditure,Capital Directorate,Barnet London Borough Council,DU00104479,"623,409.73",Capital grants - Local Government
Department for Education,Core,01/02/2024,Grants Expenditure,Capital Directorate,Bexley London Borough Council,DU00104480,"517,521.63",Capital grants - Local Government
Department for Education,Core,01/02/2024,Grants Expenditure,Capital Directorate,Brent London Borough Council,DU00104481,"408,873.40",Capital grants - Local Government
Department for Education,Core,01/02/2024,Grants Expenditure,Capital Directorate,Bromley London Borough Council,DU00104482,"564,626.48",Capital grants - Local Government
Department for Education,Core,01/02/2024,Grants Expenditure,Capital Directorate,Croydon London Borough Council,DU00104483,"712,257.11",Capital grants - Local Government
Department for Education,Core,01/02/2024,Grants Expenditure,Capital Directorate,Ealing London Borough Council,DU00104484,"504,273.42",Capital grants - Local Government
Department for Education,Core,01/02/2024,Grants Expenditure,Capital Directorate,Enfield London Borough Council,DU00104485,"525,971.94",Capital grants - Local Government
Department for Education,Core,01/02/2024,Grants Expenditure,Capital Directorate,Haringey London Borough Council,DU00104486,"427,894.08",Capital grants - Local Government
Department for Education,Core,01/02/2024,Grants Expenditure,Capital Directorate,Harrow London Borough Council,DU00104487,"368,824.83",Capital grants - Local Government
Department for Education,Core,01/02/2024,Grants Expenditure,Capital Directorate,Havering London Borough Council,DU00104488,"566,841.27",Capital grants - Local Government
Department for Education,Core,01/02/2024,Grants Expenditure,Capital Directorate,London Borough Of Hillingdon,DU00104489,"510,796.22",Capital grants - Local Government
Department for Education,Core,01/02/2024,Grants Expenditure,Capital Directorate,Hounslow London Borough Council,DU00104490,"383,923.74",Capital grants - Local Government
Department for Education,Core,01/02/2024,Grants Expenditure,Capital Directorate,Royal Borough Of Kingston Upon Thames Council,DU00104491,"274,938.95",Capital grants - Local Government
Department for Education,Core,01/02/2024,Grants Expenditure,Capital Directorate,Merton Borough Council,DU00104492,"312,985.16",Capital grants - Local Government
Department for Education,Core,01/02/2024,Grants Expenditure,Capital Directorate,Newham London Borough Council,DU00104493,"502,893.49",Capital grants - Local Government
Department for Education,Core,01/02/2024,Grants Expenditure,Capital Directorate,Redbridge London Borough Council,DU00104494,"536,675.58",Capital grants - Local Government
Department for Education,Core,01/02/2024,Grants Expenditure,Capital Directorate,Richmond Upon Thames London Borough Council,DU00104495,"273,103.76",Capital grants - Local Government
Department for Education,Core,01/02/2024,Grants Expenditure,Capital Directorate,London Borough Of Sutton,DU00104496,"387,584.84",Capital grants - Local Government
Department for Education,Core,01/02/2024,Grants Expenditure,Capital Directorate,Waltham Forest London Borough Council,DU00104497,"535,502.73",Capital grants - Local Government
Department for Education,Core,01/02/2024,Grants Expenditure,Capital Directorate,Birmingham City Council,DU00104498,"1,679,208.66",Capital grants - Local Government
Department for Education,Core,01/02/2024,Grants Expenditure,Capital Directorate,Coventry City Council,DU00104499,"530,241.03",Capital grants - Local Government
Department for Education,Core,01/02/2024,Grants Expenditure,Capital Directorate,Dudley Metropolitan Borough Council,DU00104500,"443,764.05",Capital grants - Local Government
Department for Education,Core,01/02/2024,Grants Expenditure,Capital Directorate,Sandwell Metro Borough Council,DU00104501,"428,938.52",Capital grants - Local Government
Department for Education,Core,01/02/2024,Grants Expenditure,Capital Directorate,Solihull Metro Borough Council,DU00104502,"405,915.78",Capital grants - Local Government
Department for Education,Core,01/02/2024,Grants Expenditure,Capital Directorate,Walsall Metro Borough Council,DU00104503,"430,887.04",Capital grants - Local Government
Department for Education,Core,01/02/2024,Grants Expenditure,Capital Directorate,Wolverhampton City Council,DU00104504,"333,385.83",Capital grants - Local Government
Department for Education,Core,01/02/2024,Grants Expenditure,Capital Directorate,Knowsley Metro Borough Council,DU00104505,"361,901.84",Capital grants - Local Government
Department for Education,Core,01/02/2024,Grants Expenditure,Capital Directorate,Liverpool City Council,DU00104506,"887,058.01",Capital grants - Local Government
Department for Education,Core,01/02/2024,Grants Expenditure,Capital Directorate,St Helens Metro Borough Council,DU00104507,"328,897.81",Capital grants - Local Government
Department for Education,Core,01/02/2024,Grants Expenditure,Capital Directorate,Sefton Metropolitan Borough Council,DU00104508,"534,202.04",Capital grants - Local Government
Department for Education,Core,01/02/2024,Grants Expenditure,Capital Directorate,Wirral Metro Borough Council,DU00104509,"603,723.12",Capital grants - Local Government
Department for Education,Core,01/02/2024,Grants Expenditure,Capital Directorate,Bolton Metro Borough Council,DU00104510,"631,429.63",Capital grants - Local Government
Department for Education,Core,01/02/2024,Grants Expenditure,Capital Directorate,Bury Metro Borough Council,DU00104511,"387,093.89",Capital grants - Local Government
Department for Education,Core,01/02/2024,Grants Expenditure,Capital Directorate,Manchester City Council,DU00104512,"757,527.84",Capital grants - Local Government
Department for Education,Core,01/02/2024,Grants Expenditure,Capital Directorate,Oldham Metropolitan Borough Council,DU00104513,"480,440.44",Capital grants - Local Government
Department for Education,Core,01/02/2024,Grants Expenditure,Capital Directorate,Rochdale Borough Council,DU00104514,"424,680.54",Capital grants - Local Government
Department for Education,Core,01/02/2024,Grants Expenditure,Capital Directorate,Salford City Council,DU00104515,"527,903.74",Capital grants - Local Government
Department for Education,Core,01/02/2024,Grants Expenditure,Capital Directorate,Stockport Metro Borough Council,DU00104516,"638,921.05",Capital grants - Local Government
Department for Education,Core,01/02/2024,Grants Expenditure,Capital Directorate,Tameside Metro Borough Council,DU00104517,"551,827.73",Capital grants - Local Government
Department for Education,Core,01/02/2024,Grants Expenditure,Capital Directorate,Trafford Borough Council,DU00104518,"561,467.68",Capital grants - Local Government
Department for Education,Core,01/02/2024,Grants Expenditure,Capital Directorate,Wigan Metropolitan Borough Council,DU00104519,"710,704.70",Capital grants - Local Government
Department for Education,Core,01/02/2024,Grants Expenditure,Capital Directorate,Barnsley Metropolitan Borough Council,DU00104520,"480,714.98",Capital grants - Local Government
Department for Education,Core,01/02/2024,Grants Expenditure,Capital Directorate,Doncaster Metro Borough Council,DU00104521,"600,416.78",Capital grants - Local Government
Department for Education,Core,01/02/2024,Grants Expenditure,Capital Directorate,Rotherham Borough Council,DU00104522,"538,652.02",Capital grants - Local Government
Department for Education,Core,01/02/2024,Grants Expenditure,Capital Directorate,Sheffield City Council,DU00104523,"849,082.41",Capital grants - Local Government
Department for Education,Core,01/02/2024,Grants Expenditure,Capital Directorate,Bradford City Council,DU00104524,"962,533.31",Capital grants - Local Government
Department for Education,Core,01/02/2024,Grants Expenditure,Capital Directorate,Calderdale Metro Borough Council,DU00104525,"411,693.03",Capital grants - Local Government
Department for Education,Core,01/02/2024,Grants Expenditure,Capital Directorate,Kirklees Metro Council,DU00104526,"899,328.00",Capital grants - Local Government
Department for Education,Core,01/02/2024,Grants Expenditure,Capital Directorate,Leeds City Council,DU00104527,"1,468,854.51",Capital grants - Local Government
Department for Education,Core,01/02/2024,Grants Expenditure,Capital Directorate,Wakefield City Council,DU00104528,"675,421.81",Capital grants - Local Government
Department for Education,Core,01/02/2024,Grants Expenditure,Capital Directorate,Gateshead Council,DU00104529,"393,406.86",Capital grants - Local Government
Department for Education,Core,01/02/2024,Grants Expenditure,Capital Directorate,Newcastle Upon Tyne City Council,DU00104530,"416,499.70",Capital grants - Local Government
Department for Education,Core,01/02/2024,Grants Expenditure,Capital Directorate,North Tyneside Metro Borough Council,DU00104531,"441,271.52",Capital grants - Local Government
Department for Education,Core,01/02/2024,Grants Expenditure,Capital Directorate,South Tyneside Council,DU00104532,"288,885.18",Capital grants - Local Government
Department for Education,Core,01/02/2024,Grants Expenditure,Capital Directorate,Sunderland City Metro Borough Council,DU00104533,"457,492.75",Capital grants - Local Government
Department for Education,Core,01/02/2024,Grants Expenditure,Capital Directorate,Bath And North East Somerset Council,DU00104534,"349,260.13",Capital grants - Local Government
Department for Education,Core,01/02/2024,Grants Expenditure,Capital Directorate,Bristol City Council,DU00104535,"852,370.46",Capital grants - Local Government
Department for Education,Core,01/02/2024,Grants Expenditure,Capital Directorate,North Somerset Council,DU00104536,"350,148.88",Capital grants - Local Government
Department for Education,Core,01/02/2024,Grants Expenditure,Capital Directorate,South Gloucestershire Council,DU00104537,"612,693.20",Capital grants - Local Government
Department for Education,Core,01/02/2024,Grants Expenditure,Capital Directorate,Hartlepool Borough Council,DU00104538,"121,357.76",Capital grants - Local Government
Department for Education,Core,01/02/2024,Grants Expenditure,Capital Directorate,Middlesbrough Council,DU00104539,"230,785.58",Capital grants - Local Government
Department for Education,Core,01/02/2024,Grants Expenditure,Capital Directorate,Redcar And Cleveland Borough Council,DU00104540,"219,873.37",Capital grants - Local Government
Department for Education,Core,01/02/2024,Grants Expenditure,Capital Directorate,Stockton On Tees Borough Council,DU00104541,"406,787.53",Capital grants - Local Government
Department for Education,Core,01/02/2024,Grants Expenditure,Capital Directorate,Kingston Upon Hull City Council,DU00104542,"427,581.02",Capital grants - Local Government
Department for Education,Core,01/02/2024,Grants Expenditure,Capital Directorate,East Riding Of Yorkshire Council,DU00104543,"678,991.03",Capital grants - Local Government
Department for Education,Core,01/02/2024,Grants Expenditure,Capital Directorate,North East Lincolnshire Council,DU00104544,"307,995.68",Capital grants - Local Government
Department for Education,Core,01/02/2024,Grants Expenditure,Capital Directorate,North Lincolnshire Council,DU00104545,"319,099.91",Capital grants - Local Government
Department for Education,Core,01/02/2024,Grants Expenditure,Capital Directorate,North Yorkshire County Council,DU00104546,"1,162,103.41",Capital grants - Local Government
Department for Education,Core,01/02/2024,Grants Expenditure,Capital Directorate,City Of York Council,DU00104547,"333,636.20",Capital grants - Local Government
Department for Education,Core,01/02/2024,Grants Expenditure,Capital Directorate,Luton Borough Council,DU00104548,"295,598.51",Capital grants - Local Government
Department for Education,Core,01/02/2024,Grants Expenditure,Capital Directorate,Buckinghamshire Council,DU00104551,"999,832.29",Capital grants - Local Government
Department for Education,Core,01/02/2024,Grants Expenditure,Capital Directorate,Milton Keynes Council,DU00104552,"625,614.84",Capital grants - Local Government
Department for Education,Core,01/02/2024,Grants Expenditure,Capital Directorate,Derbyshire County Council,DU00104553,"1,658,298.37",Capital grants - Local Government
Department for Education,Core,01/02/2024,Grants Expenditure,Capital Directorate,Derby City Council,DU00104554,"479,424.06",Capital grants - Local Government
Department for Education,Core,01/02/2024,Grants Expenditure,Capital Directorate,Durham County Council,DU00104557,"968,392.95",Capital grants - Local Government
Department for Education,Core,01/02/2024,Grants Expenditure,Capital Directorate,East Sussex County Council,DU00104559,"823,378.76",Capital grants - Local Government
Department for Education,Core,01/02/2024,Grants Expenditure,Capital Directorate,Brighton And Hove City Council,DU00104560,"412,288.84",Capital grants - Local Government
Department for Education,Core,01/02/2024,Grants Expenditure,Capital Directorate,Hampshire County Council,DU00104561,"2,828,451.92",Capital grants - Local Government
Department for Education,Core,01/02/2024,Grants Expenditure,Capital Directorate,Portsmouth City Council,DU00104562,"379,178.63",Capital grants - Local Government
Department for Education,Core,01/02/2024,Grants Expenditure,Capital Directorate,Southampton City Council,DU00104563,"413,357.09",Capital grants - Local Government
Department for Education,Core,01/02/2024,Grants Expenditure,Capital Directorate,Leicestershire County Council,DU00104564,"1,177,525.30",Capital grants - Local Government
Department for Education,Core,01/02/2024,Grants Expenditure,Capital Directorate,Leicester City Council,DU00104565,"557,968.05",Capital grants - Local Government
Department for Education,Core,01/02/2024,Grants Expenditure,Capital Directorate,Rutland County Council,DU00104566,"57,296.25",Capital grants - Local Government
Department for Education,Core,01/02/2024,Grants Expenditure,Capital Directorate,Staffordshire County Council,DU00104567,"1,644,364.34",Capital grants - Local Government
Department for Education,Core,01/02/2024,Grants Expenditure,Capital Directorate,Stoke On Trent City Council,DU00104568,"434,500.53",Capital grants - Local Government
Department for Education,Core,01/02/2024,Grants Expenditure,Capital Directorate,Wiltshire County Council,DU00104569,"1,106,833.34",Capital grants - Local Government
Department for Education,Core,01/02/2024,Grants Expenditure,Capital Directorate,Swindon Borough Council,DU00104570,"459,497.78",Capital grants - Local Government
Department for Education,Core,01/02/2024,Grants Expenditure,Capital Directorate,Bracknell Forest Borough Council,DU00104571,"232,095.30",Capital grants - Local Government
Department for Education,Core,01/02/2024,Grants Expenditure,Capital Directorate,Royal Borough Of Windsor And Maidenhead,DU00104572,"273,672.00",Capital grants - Local Government
Department for Education,Core,01/02/2024,Grants Expenditure,Capital Directorate,West Berkshire Council,DU00104573,"316,198.43",Capital grants - Local Government
Department for Education,Core,01/02/2024,Grants Expenditure,Capital Directorate,Reading Borough Council,DU00104574,"270,382.50",Capital grants - Local Government
Department for Education,Core,01/02/2024,Grants Expenditure,Capital Directorate,Slough Borough Council,DU00104575,"220,828.40",Capital grants - Local Government
Department for Education,Core,01/02/2024,Grants Expenditure,Capital Directorate,Wokingham Council,DU00104576,"309,618.40",Capital grants - Local Government
Department for Education,Core,01/02/2024,Grants Expenditure,Capital Directorate,Cambridgeshire County Council,DU00104577,"1,023,359.88",Capital grants - Local Government
Department for Education,Core,01/02/2024,Grants Expenditure,Capital Directorate,Peterborough City Council,DU00104578,"415,299.71",Capital grants - Local Government
Department for Education,Core,01/02/2024,Grants Expenditure,Capital Directorate,Halton Borough Council,DU00104579,"314,798.59",Capital grants - Local Government
Department for Education,Core,01/02/2024,Grants Expenditure,Capital Directorate,Warrington Borough Council,DU00104580,"455,440.53",Capital grants - Local Government
Department for Education,Core,01/02/2024,Grants Expenditure,Capital Directorate,Devon County Council,DU00104581,"1,482,972.24",Capital grants - Local Government
Department for Education,Core,01/02/2024,Grants Expenditure,Capital Directorate,Plymouth City Council,DU00104582,"434,787.80",Capital grants - Local Government
Department for Education,Core,01/02/2024,Grants Expenditure,Capital Directorate,Torbay Council,DU00104583,"198,653.59",Capital grants - Local Government
Department for Education,Core,01/02/2024,Grants Expenditure,Capital Directorate,Essex County Council,DU00104584,"2,857,358.82",Capital grants - Local Government
Department for Education,Core,01/02/2024,Grants Expenditure,Capital Directorate,Southend On Sea Borough Council,DU00104585,"223,982.03",Capital grants - Local Government
Department for Education,Core,01/02/2024,Grants Expenditure,Capital Directorate,Thurrock Borough Council,DU00104586,"361,794.66",Capital grants - Local Government
Department for Education,Core,01/02/2024,Grants Expenditure,Capital Directorate,Herefordshire Council,DU00104587,"296,167.46",Capital grants - Local Government
Department for Education,Core,01/02/2024,Grants Expenditure,Capital Directorate,Worcestershire County Council,DU00104588,"1,080,474.67",Capital grants - Local Government
Department for Education,Core,01/02/2024,Grants Expenditure,Capital Directorate,Kent County Council,DU00104589,"2,658,723.19",Capital grants - Local Government
Department for Education,Core,01/02/2024,Grants Expenditure,Capital Directorate,Medway Council,DU00104590,"564,464.90",Capital grants - Local Government
Department for Education,Core,01/02/2024,Grants Expenditure,Capital Directorate,Lancashire County Council,DU00104591,"2,519,794.60",Capital grants - Local Government
Department for Education,Core,01/02/2024,Grants Expenditure,Capital Directorate,Blackburn With Darwen Borough Council,DU00104592,"335,263.59",Capital grants - Local Government
Department for Education,Core,01/02/2024,Grants Expenditure,Capital Directorate,Blackpool Borough Council,DU00104593,"219,180.62",Capital grants - Local Government
Department for Education,Core,01/02/2024,Grants Expenditure,Capital Directorate,Nottinghamshire County Council,DU00104594,"1,814,561.14",Capital grants - Local Government
Department for Education,Core,01/02/2024,Grants Expenditure,Capital Directorate,Nottingham City Council,DU00104595,"490,743.25",Capital grants - Local Government
Department for Education,Core,01/02/2024,Grants Expenditure,Capital Directorate,Shropshire Council,DU00104596,"541,143.52",Capital grants - Local Government
Department for Education,Core,01/02/2024,Grants Expenditure,Capital Directorate,Telford And Wrekin Council,DU00104597,"342,549.15",Capital grants - Local Government
Department for Education,Core,01/02/2024,Grants Expenditure,Capital Directorate,Cornwall Council,DU00104600,"1,039,675.26",Capital grants - Local Government
Department for Education,Core,01/02/2024,Grants Expenditure,Capital Directorate,Gloucestershire County Council,DU00104601,"1,175,969.15",Capital grants - Local Government
Department for Education,Core,01/02/2024,Grants Expenditure,Capital Directorate,Hertfordshire County Council,DU00104602,"2,289,973.82",Capital grants - Local Government
Department for Education,Core,01/02/2024,Grants Expenditure,Capital Directorate,Isle Of Wight Council,DU00104603,"200,969.63",Capital grants - Local Government
Department for Education,Core,01/02/2024,Grants Expenditure,Capital Directorate,Lincolnshire County Council,DU00104604,"1,461,094.28",Capital grants - Local Government
Department for Education,Core,01/02/2024,Grants Expenditure,Capital Directorate,Norfolk County Council,DU00104605,"1,578,584.04",Capital grants - Local Government
Department for Education,Core,01/02/2024,Grants Expenditure,Capital Directorate,Northumberland County Council,DU00104606,"593,109.50",Capital grants - Local Government
Department for Education,Core,01/02/2024,Grants Expenditure,Capital Directorate,Oxfordshire County Council,DU00104607,"1,286,299.59",Capital grants - Local Government
Department for Education,Core,01/02/2024,Grants Expenditure,Capital Directorate,Somerset Council,DU00104608,"995,342.20",Capital grants - Local Government
Department for Education,Core,01/02/2024,Grants Expenditure,Capital Directorate,Suffolk County Council,DU00104609,"1,205,216.12",Capital grants - Local Government
Department for Education,Core,01/02/2024,Grants Expenditure,Capital Directorate,Surrey County Council,DU00104610,"1,755,052.72",Capital grants - Local Government
Department for Education,Core,01/02/2024,Grants Expenditure,Capital Directorate,Warwickshire County Council,DU00104611,"999,359.94",Capital grants - Local Government
Department for Education,Core,01/02/2024,Grants Expenditure,Capital Directorate,West Sussex County Council,DU00104612,"1,872,120.93",Capital grants - Local Government
Department for Education,Core,01/02/2024,Grants Expenditure,Capital Directorate,Westminster City Council,DU00104477,"137,898.04",Capital grants - Local Government
Department for Education,Core,01/02/2024,Grants Expenditure,Capital Directorate,Lambeth London Borough Council,DU00104472,"472,602.99",Capital grants - Local Government
Department for Education,Core,01/02/2024,Grants Expenditure,Capital Directorate,Royal Borough Of Kensington And Chelsea Council,DU00104471,"105,847.02",Capital grants - Local Government
Department for Education,Core,01/02/2024,Grants Expenditure,Capital Directorate,Hackney London Borough Council,DU00104468,"665,760.77",Capital grants - Local Government
Department for Education,Core,01/02/2024,Grants Expenditure,Capital Directorate,Southwark London Borough Council,DU00104474,"427,278.85",Capital grants - Local Government
Department for Education,Core,01/02/2024,Grants Expenditure,Capital Directorate,Hammersmith And Fulham London Borough Council,DU00104469,"178,163.19",Capital grants - Local Government
Department for Education,Core,01/02/2024,Grants Expenditure,Capital Directorate,Greenwich London Borough Council,DU00104467,"510,706.44",Capital grants - Local Government
Department for Education,Core,01/02/2024,Grants Expenditure,Capital Directorate,Wandsworth Borough Council,DU00104476,"369,901.61",Capital grants - Local Government
Department for Education,Core,01/02/2024,Grants Expenditure,Capital Directorate,Camden London Borough Council,DU00104466,"224,149.66",Capital grants - Local Government
Department for Education,Core,01/02/2024,Grants Expenditure,Capital Directorate,Islington London Borough Council,DU00104470,"245,013.36",Capital grants - Local Government
Department for Education,Core,01/02/2024,Grants Expenditure,Capital Directorate,London Borough Of Tower Hamlets,DU00104475,"411,466.99",Capital grants - Local Government
Department for Education,Core,01/02/2024,Grants Expenditure,Capital Directorate,Lewisham London Borough Council,DU00104473,"594,626.85",Capital grants - Local Government
Department for Education,Core,01/02/2024,Grants Expenditure,Capital Directorate,Central Bedfordshire Council,DU00104550,"649,384.71",Capital grants - Local Government
Department for Education,Core,01/02/2024,Grants Expenditure,Capital Directorate,Bedford Borough Council,DU00104549,"294,915.95",Capital grants - Local Government
Department for Education,Core,01/02/2024,Grants Expenditure,Capital Directorate,Cheshire West And Chester Council,DU00104599,"676,056.85",Capital grants - Local Government
Department for Education,Core,01/02/2024,Grants Expenditure,Capital Directorate,Cheshire East Council,DU00104598,"748,976.98",Capital grants - Local Government
Department for Education,Core,01/02/2024,Grants Expenditure,Capital Directorate,Darlington Borough Council,DU00104558,"184,334.65",Capital grants - Local Government
Department for Education,Core,01/02/2024,Grants Expenditure,Capital Directorate,"Bournemouth, Christchurch And Poole Council",DU00104556,"576,380.38",Capital grants - Local Government
Department for Education,Core,01/02/2024,Grants Expenditure,Capital Directorate,Dorset Council,DU00104555,"550,846.60",Capital grants - Local Government
Department for Education,Core,01/02/2024,Grants Expenditure,Capital Directorate,West Northamptonshire Council,DU00104614,"921,309.14",Capital grants - Local Government
Department for Education,Core,01/02/2024,Grants Expenditure,Capital Directorate,North Northamptonshire Council,DU00104613,"736,940.01",Capital grants - Local Government
Department for Education,Core,01/02/2024,Grants Expenditure,Capital Directorate,Cumberland Council,DU00104615,"593,012.42",Capital grants - Local Government
Department for Education,Core,01/02/2024,Grants Expenditure,Capital Directorate,Westmorland And Furness Council,DU00104616,"440,476.07",Capital grants - Local Government
Department for Education,Core,13/02/2024,Grants Income,Capital Directorate,Psbp Midlands Limited,D-PCR001290,"-33,006.50",Capital Contributions
Department for Education,Core,07/02/2024,Other Costs,Capital Directorate,Ark Kings Academy,DU00104372,"-27,969.00",PF2 - Revenue Grants
Department for Education,Core,07/02/2024,Other Costs,Capital Directorate,Ark Kings Academy,DU00106012,"27,969.00",PF2 - Revenue Grants
Department for Education,Core,07/02/2024,Other Costs,Capital Directorate,Ark Kings Academy,DU00106014,"1,059.99",PF2 - Revenue Grants
Department for Education,Core,07/02/2024,Other Costs,Capital Directorate,Beckfoot Upper Heaton,DU00104380,"-26,292.00",PF2 - Revenue Grants
Department for Education,Core,07/02/2024,Other Costs,Capital Directorate,Beckfoot Upper Heaton,DU00106015,"26,292.00",PF2 - Revenue Grants
Department for Education,Core,07/02/2024,Other Costs,Capital Directorate,Beckfoot Upper Heaton,DU00106018,208.39,PF2 - Revenue Grants
Department for Education,Core,07/02/2024,Other Costs,Capital Directorate,Bishop'S Hatfield Girls' School,DU00104384,"-30,759.00",PF2 - Revenue Grants
Department for Education,Core,07/02/2024,Other Costs,Capital Directorate,Bishop'S Hatfield Girls' School,DU00106019,"30,759.00",PF2 - Revenue Grants
Department for Education,Core,07/02/2024,Other Costs,Capital Directorate,Bishop'S Hatfield Girls' School,DU00106021,"2,394.96",PF2 - Revenue Grants
Department for Education,Core,07/02/2024,Other Costs,Capital Directorate,David Nieper Academy,DU00104387,"-28,914.00",PF2 - Revenue Grants
Department for Education,Core,07/02/2024,Other Costs,Capital Directorate,David Nieper Academy,DU00106022,"28,914.00",PF2 - Revenue Grants
Department for Education,Core,07/02/2024,Other Costs,Capital Directorate,David Nieper Academy,DU00106024,683.61,PF2 - Revenue Grants
Department for Education,Core,07/02/2024,Other Costs,Capital Directorate,Greenwood Academy,DU00104394,"-35,853.00",PF2 - Revenue Grants
Department for Education,Core,07/02/2024,Other Costs,Capital Directorate,Greenwood Academy,DU00106025,"35,853.00",PF2 - Revenue Grants
Department for Education,Core,07/02/2024,Other Costs,Capital Directorate,Greenwood Academy,DU00106027,314.94,PF2 - Revenue Grants
Department for Education,Core,07/02/2024,Other Costs,Capital Directorate,Harrogate High School,DU00104397,"-29,601.00",PF2 - Revenue Grants
Department for Education,Core,07/02/2024,Other Costs,Capital Directorate,Harrogate High School,DU00104398,"-32,018.10",PF2 - Revenue Grants
Department for Education,Core,07/02/2024,Other Costs,Capital Directorate,Harrogate High School,DU00106028,"29,601.00",PF2 - Revenue Grants
Department for Education,Core,07/02/2024,Other Costs,Capital Directorate,Harrogate High School,DU00106029,"32,018.10",PF2 - Revenue Grants
Department for Education,Core,07/02/2024,Other Costs,Capital Directorate,Harrogate High School,DU00106031,448.1,PF2 - Revenue Grants
Department for Education,Core,07/02/2024,Other Costs,Capital Directorate,Hawes Side Academy,DU00106034,378.21,PF2 - Revenue Grants
Department for Education,Core,07/02/2024,Other Costs,Capital Directorate,Longdean School,DU00104408,"-45,045.00",PF2 - Revenue Grants
Department for Education,Core,07/02/2024,Other Costs,Capital Directorate,Longdean School,DU00106035,"45,045.00",PF2 - Revenue Grants
Department for Education,Core,07/02/2024,Other Costs,Capital Directorate,Longdean School,DU00106038,"2,883.41",PF2 - Revenue Grants
Department for Education,Core,07/02/2024,Other Costs,Capital Directorate,Neston High School,DU00104412,"-50,694.00",PF2 - Revenue Grants
Department for Education,Core,07/02/2024,Other Costs,Capital Directorate,Neston High School,DU00106039,"50,694.00",PF2 - Revenue Grants
Department for Education,Core,07/02/2024,Other Costs,Capital Directorate,Neston High School,DU00106042,719.74,PF2 - Revenue Grants
Department for Education,Core,07/02/2024,Other Costs,Capital Directorate,Plantsbrook School,DU00104416,"-47,433.00",PF2 - Revenue Grants
Department for Education,Core,07/02/2024,Other Costs,Capital Directorate,Plantsbrook School,DU00106043,"47,433.00",PF2 - Revenue Grants
Department for Education,Core,07/02/2024,Other Costs,Capital Directorate,Plantsbrook School,DU00106045,"3,034.50",PF2 - Revenue Grants
Department for Education,Core,07/02/2024,Other Costs,Capital Directorate,President Kennedy School Academy,DU00104419,"-46,269.00",PF2 - Revenue Grants
Department for Education,Core,07/02/2024,Other Costs,Capital Directorate,President Kennedy School Academy,DU00106046,"46,269.00",PF2 - Revenue Grants
Department for Education,Core,07/02/2024,Other Costs,Capital Directorate,President Kennedy School Academy,DU00106048,"1,994.61",PF2 - Revenue Grants
Department for Education,Core,07/02/2024,Other Costs,Capital Directorate,South Shore Academy,DU00104426,"-29,034.00",PF2 - Revenue Grants
Department for Education,Core,07/02/2024,Other Costs,Capital Directorate,South Shore Academy,DU00106049,"29,034.00",PF2 - Revenue Grants
Department for Education,Core,07/02/2024,Other Costs,Capital Directorate,South Shore Academy,DU00106052,"1,669.01",PF2 - Revenue Grants
Department for Education,Core,07/02/2024,Other Costs,Capital Directorate,The Queen Elizabeth Academy,DU00106055,"1,745.10",PF2 - Revenue Grants
Department for Education,Core,07/02/2024,Other Costs,Capital Directorate,Park Vale Academy,DU00104433,"-29,205.00",PF2 - Revenue Grants
Department for Education,Core,07/02/2024,Other Costs,Capital Directorate,Park Vale Academy,DU00106056,"29,205.00",PF2 - Revenue Grants
Department for Education,Core,07/02/2024,Other Costs,Capital Directorate,Park Vale Academy,DU00106058,845.79,PF2 - Revenue Grants
Department for Education,Core,05/02/2024,Other Costs,Capital Directorate,Westfield Academy,DU00101068,"45,975.00",PF2 - Revenue Grants
Department for Education,Core,05/02/2024,Other Costs,Capital Directorate,Westfield Academy,DU00104436,"-45,975.00",PF2 - Revenue Grants
Department for Education,Core,05/02/2024,Other Costs,Capital Directorate,Westfield Academy,DU00104439,-701.25,PF2 - Revenue Grants
Department for Education,Core,07/02/2024,Other Costs,Capital Directorate,Bedlington Academy,DU00104440,"-30,108.00",PF2 - Revenue Grants
Department for Education,Core,07/02/2024,Other Costs,Capital Directorate,Bedlington Academy,DU00106059,"30,108.00",PF2 - Revenue Grants
Department for Education,Core,07/02/2024,Other Costs,Capital Directorate,Bedlington Academy,DU00106060,895.15,PF2 - Revenue Grants
Department for Education,Core,26/02/2024,Other Goods and Services,Capital Directorate,Yorkshire Learning Partnership (Project Co) Ltd,D-PINV063363,"1,134,591.03",Service element of lease
Department for Education,Core,26/02/2024,Other Goods and Services,Capital Directorate,Gt Neps Limited,D-PINV063358,"1,183,339.37",Service element of lease
Department for Education,Core,26/02/2024,Other Goods and Services,Capital Directorate,Hlr Schools Limited,D-PINV063360,"1,279,128.56",Service element of lease
Department for Education,Core,26/02/2024,Other Goods and Services,Capital Directorate,Psbp Nw Projectco Limited,D-PINV063362,"1,080,185.06",Service element of lease
Department for Education,Core,26/02/2024,Other Goods and Services,Capital Directorate,Psbp Midlands Limited,D-PINV063383,"87,829.43",Service element of lease
Department for Education,Core,26/02/2024,Other Goods and Services,Capital Directorate,Psbp Midlands Limited,D-PINV063383,"1,294,919.25",Service element of lease
Department for Education,Core,05/02/2024,Other Costs,Capital Directorate,Dixons Cottingley Academy,DU00101074,"36,258.00",PF2 - Revenue Grants
Department for Education,Core,05/02/2024,Other Costs,Capital Directorate,Dixons Cottingley Academy,DU00104442,"-36,258.00",PF2 - Revenue Grants
Department for Education,Core,05/02/2024,Other Costs,Capital Directorate,Dixons Cottingley Academy,DU00104445,"-1,345.90",PF2 - Revenue Grants
Department for Education,Core,07/02/2024,Other Costs,Capital Directorate,Carlton Bolling,DU00104446,"-47,292.00",PF2 - Revenue Grants
Department for Education,Core,07/02/2024,Other Costs,Capital Directorate,Carlton Bolling,DU00106061,"47,292.00",PF2 - Revenue Grants
Department for Education,Core,07/02/2024,Other Costs,Capital Directorate,Carlton Bolling,DU00106064,29.16,PF2 - Revenue Grants
Department for Education,Core,07/02/2024,Other Costs,Capital Directorate,Laurence Jackson School,DU00104450,"-41,328.00",PF2 - Revenue Grants
Department for Education,Core,07/02/2024,Other Costs,Capital Directorate,Laurence Jackson School,DU00106065,"41,328.00",PF2 - Revenue Grants
Department for Education,Core,07/02/2024,Other Costs,Capital Directorate,Laurence Jackson School,DU00106066,"-2,514.39",PF2 - Revenue Grants
Department for Education,Core,06/02/2024,Other Costs,Capital Directorate,Seaham High School,DU00102787,"36,288.00",PF2 - Revenue Grants
Department for Education,Core,06/02/2024,Other Costs,Capital Directorate,Seaham High School,DU00104452,"-36,288.00",PF2 - Revenue Grants
Department for Education,Core,05/02/2024,Other Costs,Capital Directorate,Stopsley High School,DU00101089,"40,923.00",PF2 - Revenue Grants
Department for Education,Core,05/02/2024,Other Costs,Capital Directorate,Stopsley High School,DU00104457,"-40,923.00",PF2 - Revenue Grants
Department for Education,Core,05/02/2024,Other Costs,Capital Directorate,Stopsley High School,DU00104459,"-1,021.21",PF2 - Revenue Grants
Department for Education,Core,05/02/2024,Other Costs,Capital Directorate,Hetton Academy,DU00101092,"29,751.00",PF2 - Revenue Grants
Department for Education,Core,05/02/2024,Other Costs,Capital Directorate,Hetton Academy,DU00104460,"-29,751.00",PF2 - Revenue Grants
Department for Education,Core,05/02/2024,Other Costs,Capital Directorate,Hetton Academy,DU00104461,218.69,PF2 - Revenue Grants
Department for Education,Core,07/02/2024,Other Costs,Capital Directorate,"Whitcliffe Mount, A Share Academy",DU00104463,"-37,884.00",PF2 - Revenue Grants
Department for Education,Core,07/02/2024,Other Costs,Capital Directorate,"Whitcliffe Mount, A Share Academy",DU00106068,"37,884.00",PF2 - Revenue Grants
Department for Education,Core,07/02/2024,Other Costs,Capital Directorate,"Whitcliffe Mount, A Share Academy",DU00106070,393.89,PF2 - Revenue Grants
Department for Education,Core,07/02/2024,Grants Expenditure,Capital Directorate,Exeter Diocesan Board Of Finance Church,D-CINV006132,"211,753.40",Current grants - Local Government
Department for Education,Core,07/02/2024,Grants Expenditure,Capital Directorate,Exeter Diocesan Board Of Finance Church,D-CINV006133,"211,753.42",Current grants - Local Government
Department for Education,Core,29/02/2024,Grants Expenditure,Capital Directorate,Exeter Diocesan Board Of Finance Church,D-CINV006363,"211,753.42",Current grants - Local Government
Department for Education,Core,16/02/2024,Grants Expenditure,Capital Directorate,Stmc Birmingham Diocese Account,D-CINV006205,"105,756.90",Current grants - Local Government
Department for Education,Core,16/02/2024,Grants Expenditure,Capital Directorate,Cardinal Heenan School Services Ltd (Jar,D-CINV006204,"76,245.32",Current grants - Local Government
Department for Education,Core,09/02/2024,Grants Expenditure,Capital Directorate,Redcar Pfi,D-CINV006181,"194,251.02",Current grants - Local Government
Department for Education,Core,07/02/2024,Grants Expenditure,Capital Directorate,Trustees Of Twickenham Parochial Schools,D-CINV006102,"627,459.57",Current grants - Local Government
Department for Education,Core,07/02/2024,Grants Expenditure,Capital Directorate,Jfs - Unitary Charge Account,D-CINV006131,"337,978.95",Current grants - Local Government
Department for Education,Core,16/02/2024,Grants Expenditure,Capital Directorate,West Northamptonshire Council,D-CINV006206,"109,102.00",Current grants - Local Government
Department for Education,Core,16/02/2024,Grants Expenditure,Capital Directorate,West Northamptonshire Council,D-CINV006256,"109,102.00",Current grants - Local Government
Department for Education,Core,13/02/2024,Grants Expenditure,Capital Directorate,Psbp Midlands Limited,D-PINV062632,"43,986.24",Capital grants - Private Sector
Department for Education,Core,13/02/2024,Grants Expenditure,Capital Directorate,Psbp Midlands Limited,D-PINV062633,"31,625.64",Capital grants - Private Sector
Department for Education,Core,13/02/2024,Grants Expenditure,Capital Directorate,Psbp Midlands Limited,D-PINV062634,"139,796.28",Capital grants - Private Sector
Department for Education,Core,15/02/2024,Other Goods and Services,Capital Directorate,Bloom Procurement Services Ltd,D-PINV063186,"46,943.42",Professional Services
Department for Education,Core,09/02/2024,Other Goods and Services,Capital Directorate,Rider Levett Bucknall Uk Limited,D-PINV062962,"175,784.90",Professional Services - Property Services
Department for Education,Core,01/02/2024,Other Goods and Services,Capital Directorate,Faithful And Gould,D-PINV062647,"172,583.46",Professional Services - Property Services
Department for Education,Core,26/02/2024,Other Goods and Services,Capital Directorate,Faithful And Gould,D-PINV063492,"128,238.39",Professional Services - Property Services
Department for Education,Core,26/02/2024,Other Goods and Services,Capital Directorate,Aecom Ltd,D-PINV063480,"108,055.45",Professional Services - Property Services
Department for Education,Core,13/02/2024,Other Goods and Services,Capital Directorate,Arcadis Llp,D-PINV063042,"83,549.96",Professional Services - Property Services
Department for Education,Core,07/02/2024,Other Goods and Services,Capital Directorate,Valuation Office Agency,D-PINV062802,"481,607.47",Professional Services - Property Services
Department for Education,Core,13/02/2024,Consultancy,Capital Directorate,Arcadis Llp,D-PINV063003,"55,720.00",Consultancy
Department for Education,Core,05/02/2024,Grants Expenditure,Capital Directorate,Bouygues Uk,D-PINV062272,"171,399.31",Capital grants - Academy Trust
Department for Education,Core,29/02/2024,Grants Expenditure,Capital Directorate,Bouygues Uk,D-PINV063484,"970,154.74",Capital grants - Academy Trust
Department for Education,Core,23/02/2024,Grants Expenditure,Capital Directorate,Bridgwater And Taunton College,D-CINV006315,"607,518.00",Capital Grants � FE Colleges 
Department for Education,Core,14/02/2024,Grants Expenditure,Capital Directorate,Bam Construction Limited,D-PINV062206,"317,070.59",Capital grants - Academy Trust
Department for Education,Core,09/02/2024,Grants Expenditure,Capital Directorate,Bam Construction Limited,D-PINV062790,"329,784.06",Capital grants - Academy Trust
Department for Education,Core,27/02/2024,Grants Expenditure,Capital Directorate,Morgan Sindall Construction And Infrastructure Ltd,D-PINV063458,"519,635.75",Capital grants - Academy Trust
Department for Education,Core,27/02/2024,Grants Expenditure,Capital Directorate,Morgan Sindall Construction And Infrastructure Ltd,D-PINV063459,"1,382,304.76",Capital grants - Academy Trust
Department for Education,Core,14/02/2024,Grants Expenditure,Capital Directorate,Bowmer And Kirkland Limited,D-PINV063025,"976,343.16",Capital grants - Academy Trust
Department for Education,Core,27/02/2024,Grants Expenditure,Capital Directorate,Bowmer And Kirkland Limited,D-PINV063081,"469,622.84",Capital grants - Academy Trust
Department for Education,Core,02/02/2024,Grants Expenditure,Capital Directorate,Kier Construction Southern,D-PINV062554,"270,420.40",Capital grants - Academy Trust
Department for Education,Core,14/02/2024,Grants Expenditure,Capital Directorate,Kier Construction Southern,D-PINV063031,"1,080,212.45",Capital grants - Academy Trust
Department for Education,Core,23/02/2024,Grants Expenditure,Capital Directorate,Kier Construction Southern,D-PINV063263,"180,120.31",Capital grants - Academy Trust
Department for Education,Core,27/02/2024,Grants Expenditure,Capital Directorate,Kier Construction Eastern,D-PINV063264,"246,180.29",Capital grants - Academy Trust
Department for Education,Core,14/02/2024,Grants Expenditure,Capital Directorate,Wates Construction Limited,D-PINV063026,"48,582.96",Capital grants - Academy Trust
Department for Education,Core,08/02/2024,Grants Expenditure,Capital Directorate,Arcadis Llp,D-PINV062697,"31,214.29",Capital grants - Academy Trust
Department for Education,Core,08/02/2024,Grants Expenditure,Capital Directorate,Portakabin Limited,D-PINV062768,"58,947.84",Capital grants - Academy Trust
Department for Education,Core,06/02/2024,Grants Expenditure,Capital Directorate,Portakabin Limited,D-PINV062769,"182,738.40",Capital grants - Academy Trust
Department for Education,Core,06/02/2024,Grants Expenditure,Capital Directorate,Portakabin Limited,D-PINV062770,"182,738.40",Capital grants - Academy Trust
Department for Education,Core,27/02/2024,Grants Expenditure,Capital Directorate,Cadman Construction Limited,D-PINV062785,"47,474.56",Capital grants - Academy Trust
Department for Education,Core,07/02/2024,Grants Expenditure,Capital Directorate,Bam Construction Limited,D-PINV062767,"480,133.07",Capital grants - Academy Trust
Department for Education,Core,08/02/2024,Grants Expenditure,Capital Directorate,Bam Construction Limited,D-PINV062786,"522,378.67",Capital grants - Academy Trust
Department for Education,Core,15/02/2024,Grants Expenditure,Capital Directorate,Bam Construction Limited,D-PINV062871,"1,328,977.37",Capital grants - Academy Trust
Department for Education,Core,20/02/2024,Grants Expenditure,Capital Directorate,Bam Construction Limited,D-PINV063156,"2,551,779.18",Capital grants - Academy Trust
Department for Education,Core,20/02/2024,Grants Expenditure,Capital Directorate,Bam Construction Limited,D-PINV063162,"515,343.73",Capital grants - Academy Trust
Department for Education,Core,20/02/2024,Grants Expenditure,Capital Directorate,Bam Construction Limited,D-PINV063261,"1,402,888.45",Capital grants - Academy Trust
Department for Education,Core,20/02/2024,Grants Expenditure,Capital Directorate,Bam Construction Limited,D-PINV063275,"357,889.44",Capital grants - Academy Trust
Department for Education,Core,23/02/2024,Grants Expenditure,Capital Directorate,Bam Construction Limited,D-PINV063419,"1,335,366.49",Capital grants - Academy Trust
Department for Education,Core,26/02/2024,Grants Expenditure,Capital Directorate,Bam Construction Limited,D-PINV063460,"423,460.04",Capital grants - Academy Trust
Department for Education,Core,29/02/2024,Grants Expenditure,Capital Directorate,Isg Construction Limited,D-PINV063485,"245,672.98",Capital grants - Academy Trust
Department for Education,Core,27/02/2024,Grants Expenditure,Capital Directorate,The King Edmund School,D-PINV063410,"97,504.44",Capital grants - Academy Trust
Department for Education,Core,09/02/2024,Grants Expenditure,Capital Directorate,Galliford Try Building Ltd,D-PINV062864,"627,515.60",Capital grants - Academy Trust
Department for Education,Core,27/02/2024,Grants Expenditure,Capital Directorate,Galliford Try Building Ltd,D-PINV062876,"192,415.63",Capital grants - Academy Trust
Department for Education,Core,19/02/2024,Grants Expenditure,Capital Directorate,Galliford Try Building Ltd,D-PINV063154,"265,790.46",Capital grants - Academy Trust
Department for Education,Core,16/02/2024,Grants Expenditure,Capital Directorate,Galliford Try Building Ltd,D-PINV063157,"978,718.74",Capital grants - Academy Trust
Department for Education,Core,21/02/2024,Grants Expenditure,Capital Directorate,Galliford Try Building Ltd,D-PINV063286,"2,272,601.68",Capital grants - Academy Trust
Department for Education,Core,27/02/2024,Grants Expenditure,Capital Directorate,Galliford Try Building Ltd,D-PINV063417,"809,391.17",Capital grants - Academy Trust
Department for Education,Core,27/02/2024,Grants Expenditure,Capital Directorate,Galliford Try Building Ltd,D-PINV063515,"419,394.97",Capital grants - Academy Trust
Department for Education,Core,01/02/2024,Grants Expenditure,Capital Directorate,Willmott Dixon Construction Limited,D-PINV062649,"1,684,595.71",Capital grants - Academy Trust
Department for Education,Core,19/02/2024,Grants Expenditure,Capital Directorate,Morgan Sindall Construction And Infrastructure Ltd,D-PINV062635,"298,399.20",Capital grants - Academy Trust
Department for Education,Core,13/02/2024,Grants Expenditure,Capital Directorate,Morgan Sindall Construction And Infrastructure Ltd,D-PINV063039,"1,773,806.24",Capital grants - Academy Trust
Department for Education,Core,16/02/2024,Grants Expenditure,Capital Directorate,Morgan Sindall Construction And Infrastructure Ltd,D-PINV063172,"1,160,436.66",Capital grants - Academy Trust
Department for Education,Core,29/02/2024,Grants Expenditure,Capital Directorate,Morgan Sindall Construction And Infrastructure Ltd,D-PINV063595,"192,768.00",Capital grants - Academy Trust
Department for Education,Core,23/02/2024,Grants Expenditure,Capital Directorate,Bowmer And Kirkland Limited,D-PINV060996,"453,120.65",Capital grants - Academy Trust
Department for Education,Core,02/02/2024,Grants Expenditure,Capital Directorate,Bowmer And Kirkland Limited,D-PINV062653,"615,853.48",Capital grants - Academy Trust
Department for Education,Core,05/02/2024,Grants Expenditure,Capital Directorate,Bowmer And Kirkland Limited,D-PINV062739,"431,372.56",Capital grants - Academy Trust
Department for Education,Core,16/02/2024,Grants Expenditure,Capital Directorate,Bowmer And Kirkland Limited,D-PINV063166,"2,177,188.48",Capital grants - Academy Trust
Department for Education,Core,16/02/2024,Grants Expenditure,Capital Directorate,Bowmer And Kirkland Limited,D-PINV063174,"1,000,361.12",Capital grants - Academy Trust
Department for Education,Core,21/02/2024,Grants Expenditure,Capital Directorate,Bowmer And Kirkland Limited,D-PINV063211,"350,365.26",Capital grants - Academy Trust
Department for Education,Core,19/02/2024,Grants Expenditure,Capital Directorate,Bowmer And Kirkland Limited,D-PINV063221,"928,483.19",Capital grants - Academy Trust
Department for Education,Core,21/02/2024,Grants Expenditure,Capital Directorate,Bowmer And Kirkland Limited,D-PINV063266,"643,158.16",Capital grants - Academy Trust
Department for Education,Core,27/02/2024,Grants Expenditure,Capital Directorate,Reds10 Uk Limited,D-PINV061913,"30,754.36",Capital grants - Academy Trust
Department for Education,Core,02/02/2024,Grants Expenditure,Capital Directorate,Reds10 Uk Limited,D-PINV062650,"226,401.60",Capital grants - Academy Trust
Department for Education,Core,07/02/2024,Grants Expenditure,Capital Directorate,Reds10 Uk Limited,D-PINV062760,"482,253.07",Capital grants - Academy Trust
Department for Education,Core,09/02/2024,Grants Expenditure,Capital Directorate,Reds10 Uk Limited,D-PINV062885,"28,770.20",Capital grants - Academy Trust
Department for Education,Core,13/02/2024,Grants Expenditure,Capital Directorate,Kier Construction Southern,D-PINV062990,"834,829.78",Capital grants - Academy Trust
Department for Education,Core,16/02/2024,Grants Expenditure,Capital Directorate,Kier Construction Scotland,D-PINV063024,"454,041.48",Capital grants - Academy Trust
Department for Education,Core,22/02/2024,Grants Expenditure,Capital Directorate,Kier Construction Scotland,D-PINV063321,"1,684,951.00",Capital grants - Academy Trust
Department for Education,Core,13/02/2024,Grants Expenditure,Capital Directorate,Kier Construction Eastern,D-PINV062884,"1,136,479.34",Capital grants - Academy Trust
Department for Education,Core,16/02/2024,Grants Expenditure,Capital Directorate,Kier Construction Eastern,D-PINV063169,"510,785.24",Capital grants - Academy Trust
Department for Education,Core,27/02/2024,Grants Expenditure,Capital Directorate,Kier Construction Eastern,D-PINV063267,"2,257,291.60",Capital grants - Academy Trust
Department for Education,Core,21/02/2024,Grants Expenditure,Capital Directorate,Tilbury Douglas Construction Limited,D-PINV062520,"271,842.43",Capital grants - Academy Trust
Department for Education,Core,06/02/2024,Grants Expenditure,Capital Directorate,Tilbury Douglas Construction Limited,D-PINV062766,"50,900.42",Capital grants - Academy Trust
Department for Education,Core,14/02/2024,Grants Expenditure,Capital Directorate,Tilbury Douglas Construction Limited,D-PINV063065,"527,026.48",Capital grants - Academy Trust
Department for Education,Core,21/02/2024,Grants Expenditure,Capital Directorate,Tilbury Douglas Construction Limited,D-PINV063262,"943,306.57",Capital grants - Academy Trust
Department for Education,Core,21/02/2024,Grants Expenditure,Capital Directorate,Tilbury Douglas Construction Limited,D-PINV063322,"224,883.79",Capital grants - Academy Trust
Department for Education,Core,22/02/2024,Grants Expenditure,Capital Directorate,Tilbury Douglas Construction Limited,D-PINV063393,"603,620.26",Capital grants - Academy Trust
Department for Education,Core,29/02/2024,Grants Expenditure,Capital Directorate,Tilbury Douglas Construction Limited,D-PINV063516,"158,759.66",Capital grants - Academy Trust
Department for Education,Core,14/02/2024,Grants Expenditure,Capital Directorate,Conlon Construction Ltd,D-PINV063153,"202,012.55",Capital grants - Academy Trust
Department for Education,Core,07/02/2024,Grants Expenditure,Capital Directorate,Turner And Townsend,D-PINV062781,"43,358.86",Capital grants - Academy Trust
Department for Education,Core,13/02/2024,Grants Expenditure,Capital Directorate,Turner And Townsend,D-PINV063022,"104,189.66",Capital grants - Academy Trust
Department for Education,Core,09/02/2024,Grants Expenditure,Capital Directorate,Faithful And Gould,D-PINV062943,"90,355.80",Capital grants - Academy Trust
Department for Education,Core,07/02/2024,Grants Expenditure,Capital Directorate,Mott Macdonald Limited,D-PINV062792,"67,230.24",Capital grants - Academy Trust
Department for Education,Core,08/02/2024,Grants Expenditure,Capital Directorate,Mott Macdonald Limited,D-PINV062870,"26,717.00",Capital grants - Academy Trust
Department for Education,Core,14/02/2024,Grants Expenditure,Capital Directorate,Mott Macdonald Limited,D-PINV063051,"54,429.60",Capital grants - Academy Trust
Department for Education,Core,14/02/2024,Grants Expenditure,Capital Directorate,Mott Macdonald Limited,D-PINV063052,"34,272.00",Capital grants - Academy Trust
Department for Education,Core,14/02/2024,Grants Expenditure,Capital Directorate,Mott Macdonald Limited,D-PINV063053,"40,588.80",Capital grants - Academy Trust
Department for Education,Core,14/02/2024,Grants Expenditure,Capital Directorate,Mott Macdonald Limited,D-PINV063054,"43,118.40",Capital grants - Academy Trust
Department for Education,Core,14/02/2024,Grants Expenditure,Capital Directorate,Mott Macdonald Limited,D-PINV063055,"35,896.80",Capital grants - Academy Trust
Department for Education,Core,14/02/2024,Grants Expenditure,Capital Directorate,Mott Macdonald Limited,D-PINV063056,"43,448.40",Capital grants - Academy Trust
Department for Education,Core,14/02/2024,Grants Expenditure,Capital Directorate,Mott Macdonald Limited,D-PINV063090,"30,670.80",Capital grants - Academy Trust
Department for Education,Core,14/02/2024,Grants Expenditure,Capital Directorate,Wates Construction Limited,D-PINV063049,"496,235.00",Capital grants - Academy Trust
Department for Education,Core,21/02/2024,Grants Expenditure,Capital Directorate,Wates Construction Limited,D-PINV063213,"39,056.24",Capital grants - Academy Trust
Department for Education,Core,21/02/2024,Grants Expenditure,Capital Directorate,Wates Construction Limited,D-PINV063220,"870,448.43",Capital grants - Academy Trust
Department for Education,Core,19/02/2024,Grants Expenditure,Capital Directorate,Wates Construction Limited,D-PINV063224,"1,856,144.84",Capital grants - Academy Trust
Department for Education,Core,22/02/2024,Grants Expenditure,Capital Directorate,Wates Construction Limited,D-PINV063265,"74,823.44",Capital grants - Academy Trust
Department for Education,Core,27/02/2024,Grants Expenditure,Capital Directorate,Wates Construction Limited,D-PINV063423,"251,959.82",Capital grants - Academy Trust
Department for Education,Core,29/02/2024,Grants Expenditure,Capital Directorate,Wates Construction Limited,D-PINV063509,"69,288.20",Capital grants - Academy Trust
Department for Education,Core,29/02/2024,Grants Expenditure,Capital Directorate,Wates Construction Limited,D-PINV063511,"193,800.43",Capital grants - Academy Trust
Department for Education,Core,05/02/2024,Grants Expenditure,Capital Directorate,Arcadis Llp,D-PINV062687,"30,336.94",Capital grants - Academy Trust
Department for Education,Core,14/02/2024,Grants Expenditure,Capital Directorate,Arcadis Llp,D-PINV063007,"52,273.45",Capital grants - Academy Trust
Department for Education,Core,14/02/2024,Grants Expenditure,Capital Directorate,Arcadis Llp,D-PINV063045,"80,907.00",Capital grants - Academy Trust
Department for Education,Core,08/02/2024,Grants Expenditure,Capital Directorate,Portakabin Limited,D-PINV061908,"171,603.86",Capital grants - Academy Trust
Department for Education,Core,02/02/2024,Grants Expenditure,Capital Directorate,Portakabin Limited,D-PINV062654,"31,413.70",Capital grants - Academy Trust
Department for Education,Core,05/02/2024,Grants Expenditure,Capital Directorate,Portakabin Limited,D-PINV062685,"55,660.80",Capital grants - Academy Trust
Department for Education,Core,09/02/2024,Grants Expenditure,Capital Directorate,Portakabin Limited,D-PINV062882,"55,660.80",Capital grants - Academy Trust
Department for Education,Core,23/02/2024,Grants Expenditure,Capital Directorate,Mace Limited,D-PINV062202,"49,875.24",Capital grants - Academy Trust
Department for Education,Core,13/02/2024,Grants Expenditure,Capital Directorate,Mace Limited,D-PINV062947,"34,208.16",Capital grants - Academy Trust
Department for Education,Core,13/02/2024,Grants Expenditure,Capital Directorate,Mace Limited,D-PINV063073,"57,040.50",Capital grants - Academy Trust
Department for Education,Core,23/02/2024,Grants Expenditure,Capital Directorate,Mace Limited,D-PINV063182,"61,863.18",Capital grants - Academy Trust
Department for Education,Core,23/02/2024,Grants Expenditure,Capital Directorate,Mace Limited,D-PINV063391,"27,292.80",Capital grants - Academy Trust
Department for Education,Core,26/02/2024,Grants Expenditure,Capital Directorate,Mace Limited,D-PINV063473,"27,292.80",Capital grants - Academy Trust
Department for Education,Core,27/02/2024,Grants Expenditure,Capital Directorate,Mace Limited,D-PINV063502,"25,638.00",Capital grants - Academy Trust
Department for Education,Core,13/02/2024,Grants Expenditure,Capital Directorate,Gleeds Management Services Limited,D-PINV061341,"44,400.00",Capital grants - Academy Trust
Department for Education,Core,13/02/2024,Grants Expenditure,Capital Directorate,Gleeds Management Services Limited,D-PINV062483,"33,623.88",Capital grants - Academy Trust
Department for Education,Core,12/02/2024,Grants Expenditure,Capital Directorate,Gleeds Management Services Limited,D-PINV062999,"28,305.84",Capital grants - Academy Trust
Department for Education,Core,14/02/2024,Grants Expenditure,Capital Directorate,Kier Western And Wales,D-PINV063097,"408,374.65",Capital grants - Academy Trust
Department for Education,Core,19/02/2024,Grants Expenditure,Capital Directorate,Kier Western And Wales,D-PINV063171,"1,410,293.09",Capital grants - Academy Trust
Department for Education,Core,13/02/2024,Grants Expenditure,Capital Directorate,Henry Boot Construction Limited,D-PINV063035,"889,091.48",Capital grants - Academy Trust
Department for Education,Core,21/02/2024,Grants Expenditure,Capital Directorate,Wsp Uk Limited,D-PCR001452,"-34,540.10",Capital grants - Academy Trust
Department for Education,Core,02/02/2024,Grants Expenditure,Capital Directorate,Wsp Uk Limited,D-PINV062698,"28,783.42",Capital grants - Academy Trust
Department for Education,Core,21/02/2024,Grants Expenditure,Capital Directorate,Wsp Uk Limited,D-PINV063089,"145,813.24",Capital grants - Academy Trust
Department for Education,Core,27/02/2024,Grants Expenditure,Capital Directorate,Computeam Limited,D-PCR001453,"-89,278.60",Capital grants - Academy Trust
Department for Education,Core,27/02/2024,Grants Expenditure,Capital Directorate,Computeam Limited,D-PINV058200,"89,278.60",Capital grants - Academy Trust
Department for Education,Core,27/02/2024,Grants Expenditure,Capital Directorate,Computeam Limited,D-PINV062734,"70,428.28",Capital grants - Academy Trust
Department for Education,Core,27/02/2024,Grants Expenditure,Capital Directorate,Computer Systems In Education Limited,D-PINV063536,"31,848.92",Capital grants - Academy Trust
Department for Education,Core,02/02/2024,Grants Expenditure,Capital Directorate,Gleeds Advisory Limited,D-PINV062660,"49,974.17",Capital grants - Academy Trust
Department for Education,Core,26/02/2024,Grants Expenditure,Capital Directorate,Gleeds Advisory Limited,D-PINV063481,"33,582.00",Capital grants - Academy Trust
Department for Education,Core,27/02/2024,Grants Expenditure,Capital Directorate,Stone Technologies Ltd,D-PINV060265,"43,099.51",Capital grants - Academy Trust
Department for Education,Core,27/02/2024,Grants Expenditure,Capital Directorate,Baxall Construction Limited,D-PINV063098,"722,255.90",Capital grants - Academy Trust
Department for Education,Core,15/02/2024,Grants Expenditure,Capital Directorate,Baxall Construction Limited,D-PINV063150,"267,576.89",Capital grants - Academy Trust
Department for Education,Core,20/02/2024,Grants Expenditure,Capital Directorate,Barking And Dagenham London Borough Council,CL071653,"701,434.19",Capital grants - Local Government
Department for Education,Core,20/02/2024,Grants Expenditure,Capital Directorate,Leeds City Council,CL071655,"2,304,389.92",Capital grants - Local Government
Department for Education,Core,20/02/2024,Grants Expenditure,Capital Directorate,London Borough Of Tower Hamlets,CL071654,"2,733,652.00",Capital grants - Local Government
Department for Education,Core,29/02/2024,Grants Expenditure,Capital Directorate,Star Academies,D-CINV006239,"509,846.77",Capital grants - Academy Trust
Department for Education,Core,29/02/2024,Other Costs ,Capital Directorate,Star Academies,D-CINV006239,"101,969.35",Capital grants - Academy Trust 
Department for Education,Core,19/02/2024,Grants Expenditure,Capital Directorate,T And B (Contractors) Limited,D-PINV063163,"345,758.14",Capital grants - Academy Trust
Department for Education,Core,09/02/2024,Grants Expenditure,Capital Directorate,Womble Bond Dickinson (Uk) Llp (Client Account) ,D-PINV062920,"79,836.00",Capital grants - Academy Trust
Department for Education,Core,21/02/2024,Grants Expenditure,Capital Directorate,Reach2 Academy Trust,D-CINV006262,"78,795.78",Capital grants - Academy Trust
Department for Education,Core,09/02/2024,Grants Expenditure,Capital Directorate,Activate Learning Education Trust,D-CINV006118,"29,304.49",Capital grants - Academy Trust
Department for Education,Core,09/02/2024,Other Costs ,Capital Directorate,Activate Learning Education Trust,D-CINV006118,"5,858.92",Capital grants - Academy Trust 
Department for Education,Core,09/02/2024,Grants Expenditure,Capital Directorate,Activate Learning Education Trust,D-CINV006124,"26,516.44",Capital grants - Academy Trust
Department for Education,Core,09/02/2024,Other Costs ,Capital Directorate,Activate Learning Education Trust,D-CINV006124,"5,303.32",Capital grants - Academy Trust 
Department for Education,Core,16/02/2024,Grants Expenditure,Capital Directorate,Bam Construction Limited,D-PINV063159,"78,117.98",Capital grants - Academy Trust
Department for Education,Core,02/02/2024,Grants Expenditure,Capital Directorate,Bilingual Primary School - Brighton And Hove,D-CINV006110,"89,312.68",Capital grants - Academy Trust
Department for Education,Core,02/02/2024,Other Costs ,Capital Directorate,Bilingual Primary School - Brighton And Hove,D-CINV006110,"17,862.54",Capital grants - Academy Trust 
Department for Education,Core,29/02/2024,Grants Expenditure,Capital Directorate,Bullers Wood School,D-CINV006338,"61,100.00",Capital grants - Academy Trust
Department for Education,Core,29/02/2024,Grants Expenditure,Capital Directorate,The Charter School Bermonsey,D-CINV006336,"116,635.43",Capital grants - Academy Trust
Department for Education,Core,06/02/2024,Grants Expenditure,Capital Directorate,Isg Construction Limited,D-PINV062713,"607,737.70",Capital grants - Academy Trust
Department for Education,Core,07/02/2024,Grants Expenditure,Capital Directorate,Isg Construction Limited,D-PINV062738,"63,810.86",Capital grants - Academy Trust
Department for Education,Core,08/02/2024,Grants Expenditure,Capital Directorate,Isg Construction Limited,D-PINV062833,"498,659.89",Capital grants - Academy Trust
Department for Education,Core,20/02/2024,Grants Expenditure,Capital Directorate,Isg Construction Limited,D-PINV062861,"1,032,633.10",Capital grants - Academy Trust
Department for Education,Core,14/02/2024,Grants Expenditure,Capital Directorate,Isg Construction Limited,D-PINV062937,"109,431.11",Capital grants - Academy Trust
Department for Education,Core,13/02/2024,Grants Expenditure,Capital Directorate,Isg Construction Limited,D-PINV063034,"1,033,146.19",Capital grants - Academy Trust
Department for Education,Core,26/02/2024,Grants Expenditure,Capital Directorate,Isg Construction Limited,D-PINV063463,"732,446.96",Capital grants - Academy Trust
Department for Education,Core,29/02/2024,Grants Expenditure,Capital Directorate,King'S Leadership Academy Warrington,D-CINV006337,"43,552.59",Capital grants - Academy Trust
Department for Education,Core,07/02/2024,Grants Expenditure,Capital Directorate,Market Field Learning Community,D-CINV006126,"26,109.00",Capital grants - Academy Trust
Department for Education,Core,07/02/2024,Other Costs ,Capital Directorate,Market Field Learning Community,D-CINV006126,"5,221.79",Capital grants - Academy Trust 
Department for Education,Core,21/02/2024,Grants Expenditure,Capital Directorate,Market Field Learning Community,D-CINV006250,"51,508.25",Capital grants - Academy Trust
Department for Education,Core,29/02/2024,Grants Expenditure,Capital Directorate,Shireland Collegiate Academy Trust,D-CINV006290,"289,221.34",Capital grants - Academy Trust
Department for Education,Core,09/02/2024,Grants Expenditure,Capital Directorate,The Eden Academy,D-CINV006129,"32,271.80",Capital grants - Academy Trust
Department for Education,Core,09/02/2024,Other Costs ,Capital Directorate,The Eden Academy,D-CINV006129,"6,454.36",Capital grants - Academy Trust 
Department for Education,Core,21/02/2024,Grants Expenditure,Capital Directorate,The Gatwick School,D-CINV006210,"57,949.00",Capital grants - Academy Trust
Department for Education,Core,14/02/2024,Grants Expenditure,Capital Directorate,The Rivers C Of E Multi Academy Trust,D-CINV005969,"126,860.92",Capital grants - Academy Trust
Department for Education,Core,14/02/2024,Other Costs ,Capital Directorate,The Rivers C Of E Multi Academy Trust,D-CINV005969,"25,372.18",Capital grants - Academy Trust 
Department for Education,Core,21/02/2024,Grants Expenditure,Capital Directorate,Valley Invicta Academies Trust,D-CINV006272,"68,673.89",Capital grants - Academy Trust
Department for Education,Core,23/02/2024,Grants Expenditure,Capital Directorate,Algeco Uk Limited,D-PINV063048,"886,973.16",Capital grants - Academy Trust
Department for Education,Core,09/02/2024,Grants Expenditure,Capital Directorate,Galliford Try Building Ltd,D-PINV062791,"532,059.80",Capital grants - Academy Trust
Department for Education,Core,23/02/2024,Grants Expenditure,Capital Directorate,Galliford Try Building Ltd,D-PINV063421,"32,377.22",Capital grants - Academy Trust
Department for Education,Core,23/02/2024,Grants Expenditure,Capital Directorate,Galliford Try Building Ltd,D-PINV063424,"161,358.30",Capital grants - Academy Trust
Department for Education,Core,09/02/2024,Grants Expenditure,Capital Directorate,Morgan Sindall Construction And Infrastructure Ltd,D-PINV062918,"129,111.24",Capital grants - Academy Trust
Department for Education,Core,14/02/2024,Grants Expenditure,Capital Directorate,Morgan Sindall Construction And Infrastructure Ltd,D-PINV063149,"613,680.08",Capital grants - Academy Trust
Department for Education,Core,21/02/2024,Grants Expenditure,Capital Directorate,Morgan Sindall Construction And Infrastructure Ltd,D-PINV063173,"494,917.74",Capital grants - Academy Trust
Department for Education,Core,29/02/2024,Grants Expenditure,Capital Directorate,Morgan Sindall Construction And Infrastructure Ltd,D-PINV063176,"202,784.08",Capital grants - Academy Trust
Department for Education,Core,23/02/2024,Grants Expenditure,Capital Directorate,Morgan Sindall Construction And Infrastructure Ltd,D-PINV063217,"371,746.32",Capital grants - Academy Trust
Department for Education,Core,29/02/2024,Grants Expenditure,Capital Directorate,Morgan Sindall Construction And Infrastructure Ltd,D-PINV063592,"120,236.39",Capital grants - Academy Trust
Department for Education,Core,15/02/2024,Grants Expenditure,Capital Directorate,Bowmer And Kirkland Limited,D-PINV062470,"736,927.26",Capital grants - Academy Trust
Department for Education,Core,07/02/2024,Grants Expenditure,Capital Directorate,Bowmer And Kirkland Limited,D-PINV062789,"2,425,777.06",Capital grants - Academy Trust
Department for Education,Core,16/02/2024,Grants Expenditure,Capital Directorate,Bowmer And Kirkland Limited,D-PINV063152,"1,969,419.32",Capital grants - Academy Trust
Department for Education,Core,16/02/2024,Grants Expenditure,Capital Directorate,Bowmer And Kirkland Limited,D-PINV063158,"193,266.29",Capital grants - Academy Trust
Department for Education,Core,23/02/2024,Grants Expenditure,Capital Directorate,Bowmer And Kirkland Limited,D-PINV063164,"2,074,320.00",Capital grants - Academy Trust
Department for Education,Core,23/02/2024,Grants Expenditure,Capital Directorate,Bowmer And Kirkland Limited,D-PINV063167,"912,489.11",Capital grants - Academy Trust
Department for Education,Core,20/02/2024,Grants Expenditure,Capital Directorate,Bowmer And Kirkland Limited,D-PINV063178,"348,581.74",Capital grants - Academy Trust
Department for Education,Core,19/02/2024,Grants Expenditure,Capital Directorate,Bowmer And Kirkland Limited,D-PINV063222,"819,032.15",Capital grants - Academy Trust
Department for Education,Core,20/02/2024,Grants Expenditure,Capital Directorate,Bowmer And Kirkland Limited,D-PINV063268,"1,763,716.08",Capital grants - Academy Trust
Department for Education,Core,21/02/2024,Grants Expenditure,Capital Directorate,Bowmer And Kirkland Limited,D-PINV063285,"297,699.04",Capital grants - Academy Trust
Department for Education,Core,21/02/2024,Grants Expenditure,Capital Directorate,Bowmer And Kirkland Limited,D-PINV063320,"1,648,929.59",Capital grants - Academy Trust
Department for Education,Core,23/02/2024,Grants Expenditure,Capital Directorate,Bowmer And Kirkland Limited,D-PINV063416,"240,954.72",Capital grants - Academy Trust
Department for Education,Core,29/02/2024,Grants Expenditure,Capital Directorate,Reds10 Uk Limited,D-PINV062834,"1,774,932.88",Capital grants - Academy Trust
Department for Education,Core,23/02/2024,Grants Expenditure,Capital Directorate,Reds10 Uk Limited,D-PINV063283,"2,866,232.18",Capital grants - Academy Trust
Department for Education,Core,02/02/2024,Grants Expenditure,Capital Directorate,Kier London,D-PINV062559,"393,305.11",Capital grants - Academy Trust
Department for Education,Core,06/02/2024,Grants Expenditure,Capital Directorate,Kier London,D-PINV062728,"675,302.75",Capital grants - Academy Trust
Department for Education,Core,14/02/2024,Grants Expenditure,Capital Directorate,Kier London,D-PINV063023,"362,845.66",Capital grants - Academy Trust
Department for Education,Core,21/02/2024,Grants Expenditure,Capital Directorate,Kier London,D-PINV063284,"264,338.71",Capital grants - Academy Trust
Department for Education,Core,23/02/2024,Grants Expenditure,Capital Directorate,Kier London,D-PINV063429,"207,919.63",Capital grants - Academy Trust
Department for Education,Core,07/02/2024,Grants Expenditure,Capital Directorate,Kier Construction Southern,D-PINV062788,"1,455,688.58",Capital grants - Academy Trust
Department for Education,Core,14/02/2024,Grants Expenditure,Capital Directorate,Kier Construction Southern,D-PINV063037,"598,690.07",Capital grants - Academy Trust
Department for Education,Core,14/02/2024,Grants Expenditure,Capital Directorate,Kier Construction Southern,D-PINV063041,"765,225.56",Capital grants - Academy Trust
Department for Education,Core,27/02/2024,Grants Expenditure,Capital Directorate,Kier Construction Southern,D-PINV063489,"785,546.74",Capital grants - Academy Trust
Department for Education,Core,27/02/2024,Grants Expenditure,Capital Directorate,Kier Construction Eastern,D-PCR001457,"-588,827.33",Capital grants - Academy Trust
Department for Education,Core,23/02/2024,Grants Expenditure,Capital Directorate,Kier Construction Eastern,D-PINV063411,"3,031,594.98",Capital grants - Academy Trust
Department for Education,Core,06/02/2024,Grants Expenditure,Capital Directorate,Jacobs Uk Ltd,D-PINV062773,"31,828.00",Capital grants - Academy Trust
Department for Education,Core,15/02/2024,Grants Expenditure,Capital Directorate,Tilbury Douglas Construction Limited,D-PINV063155,"366,478.87",Capital grants - Academy Trust
Department for Education,Core,21/02/2024,Grants Expenditure,Capital Directorate,Tilbury Douglas Construction Limited,D-PINV063202,"514,675.97",Capital grants - Academy Trust
Department for Education,Core,20/02/2024,Grants Expenditure,Capital Directorate,Tilbury Douglas Construction Limited,D-PINV063208,"788,287.48",Capital grants - Academy Trust
Department for Education,Core,20/02/2024,Grants Expenditure,Capital Directorate,Tilbury Douglas Construction Limited,D-PINV063215,"875,086.20",Capital grants - Academy Trust
Department for Education,Core,23/02/2024,Grants Expenditure,Capital Directorate,Tilbury Douglas Construction Limited,D-PINV063418,"325,264.54",Capital grants - Academy Trust
Department for Education,Core,29/02/2024,Grants Expenditure,Capital Directorate,Tilbury Douglas Construction Limited,D-PINV063510,"63,472.72",Capital grants - Academy Trust
Department for Education,Core,27/02/2024,Grants Expenditure,Capital Directorate,Conlon Construction Ltd,D-PINV063508,"344,848.96",Capital grants - Academy Trust
Department for Education,Core,13/02/2024,Grants Expenditure,Capital Directorate,Turner And Townsend,D-PINV062748,"29,826.70",Capital grants - Academy Trust
Department for Education,Core,02/02/2024,Grants Expenditure,Capital Directorate,Faithful And Gould,D-PINV062666,"44,844.76",Capital grants - Academy Trust
Department for Education,Core,27/02/2024,Grants Expenditure,Capital Directorate,Faithful And Gould,D-PINV063539,"27,216.00",Capital grants - Academy Trust
Department for Education,Core,05/02/2024,Grants Expenditure,Capital Directorate,Mott Macdonald Limited,D-PINV062736,"27,312.00",Capital grants - Academy Trust
Department for Education,Core,14/02/2024,Grants Expenditure,Capital Directorate,Mott Macdonald Limited,D-PINV063017,"28,746.00",Capital grants - Academy Trust
Department for Education,Core,13/02/2024,Grants Expenditure,Capital Directorate,Wates Construction Limited,D-PINV062841,"342,983.15",Capital grants - Academy Trust
Department for Education,Core,09/02/2024,Grants Expenditure,Capital Directorate,Wates Construction Limited,D-PINV062883,"282,170.42",Capital grants - Academy Trust
Department for Education,Core,15/02/2024,Grants Expenditure,Capital Directorate,Wates Construction Limited,D-PINV062971,"387,718.26",Capital grants - Academy Trust
Department for Education,Core,13/02/2024,Grants Expenditure,Capital Directorate,Wates Construction Limited,D-PINV063033,"97,277.68",Capital grants - Academy Trust
Department for Education,Core,16/02/2024,Grants Expenditure,Capital Directorate,Wates Construction Limited,D-PINV063165,"11,140,368.73",Capital grants - Academy Trust
Department for Education,Core,05/02/2024,Grants Expenditure,Capital Directorate,Arcadis Llp,D-PINV062655,"35,209.32",Capital grants - Academy Trust
Department for Education,Core,05/02/2024,Grants Expenditure,Capital Directorate,Arcadis Llp,D-PINV062656,"43,518.94",Capital grants - Academy Trust
Department for Education,Core,08/02/2024,Grants Expenditure,Capital Directorate,Arcadis Llp,D-PINV062670,"32,488.76",Capital grants - Academy Trust
Department for Education,Core,22/02/2024,Grants Expenditure,Capital Directorate,Arcadis Llp,D-PINV063273,"25,087.45",Capital grants - Academy Trust
Department for Education,Core,23/02/2024,Grants Expenditure,Capital Directorate,Portakabin Limited,D-PINV063414,"1,098,211.02",Capital grants - Academy Trust
Department for Education,Core,29/02/2024,Grants Expenditure,Capital Directorate,G.F. Tomlinson Building Limited,D-PINV063574,"199,020.65",Capital grants - Academy Trust
Department for Education,Core,27/02/2024,Grants Expenditure,Capital Directorate,Mace Limited,D-PCR001410,"-33,580.80",Capital grants - Academy Trust
Department for Education,Core,12/02/2024,Grants Expenditure,Capital Directorate,Mace Limited,D-PINV062953,"30,360.00",Capital grants - Academy Trust
Department for Education,Core,13/02/2024,Grants Expenditure,Capital Directorate,Mace Limited,D-PINV063077,"64,356.00",Capital grants - Academy Trust
Department for Education,Core,13/02/2024,Grants Expenditure,Capital Directorate,Mace Limited,D-PINV063079,"40,759.87",Capital grants - Academy Trust
Department for Education,Core,13/02/2024,Grants Expenditure,Capital Directorate,Mace Limited,D-PINV063080,"32,340.00",Capital grants - Academy Trust
Department for Education,Core,23/02/2024,Grants Expenditure,Capital Directorate,Mace Limited,D-PINV063185,"25,291.20",Capital grants - Academy Trust
Department for Education,Core,23/02/2024,Grants Expenditure,Capital Directorate,Mace Limited,D-PINV063375,"31,625.57",Capital grants - Academy Trust
Department for Education,Core,22/02/2024,Grants Expenditure,Capital Directorate,Mace Limited,D-PINV063378,"60,390.00",Capital grants - Academy Trust
Department for Education,Core,05/02/2024,Grants Expenditure,Capital Directorate,Bevan Brittan Llp,D-PINV062558,"316,484.74",Capital grants - Academy Trust
Department for Education,Core,19/02/2024,Grants Expenditure,Capital Directorate,Bevan Brittan Llp,D-PINV063233,"500,000.00",Current grants - Academy Trust
Department for Education,Core,13/02/2024,Grants Expenditure,Capital Directorate,Gleeds Management Services Limited,D-PINV060220,"46,260.71",Capital grants - Academy Trust
Department for Education,Core,23/02/2024,Grants Expenditure,Capital Directorate,Gleeds Management Services Limited,D-PINV061851,"25,651.02",Capital grants - Academy Trust
Department for Education,Core,12/02/2024,Grants Expenditure,Capital Directorate,Gleeds Management Services Limited,D-PINV063001,"44,926.91",Capital grants - Academy Trust
Department for Education,Core,23/02/2024,Grants Expenditure,Capital Directorate,Gleeds Management Services Limited,D-PINV063288,"28,276.80",Capital grants - Academy Trust
Department for Education,Core,16/02/2024,Grants Expenditure,Capital Directorate,Spatial Initiative Ltd,D-PINV063177,"370,776.61",Capital grants - Academy Trust
Department for Education,Core,07/02/2024,Grants Expenditure,Capital Directorate,Prosper Learning Trust,D-CINV006083,"53,962.38",Capital grants - Academy Trust
Department for Education,Core,07/02/2024,Other Costs ,Capital Directorate,Prosper Learning Trust,D-CINV006083,"10,792.48",Capital grants - Academy Trust 
Department for Education,Core,14/02/2024,Grants Expenditure,Capital Directorate,Mcavoy Modular Offsite Limited,D-PINV063143,"615,856.97",Capital grants - Academy Trust
Department for Education,Core,02/02/2024,Grants Expenditure,Capital Directorate,Bohunt Horsham,D-CINV006107,"37,186.71",Capital grants - Academy Trust
Department for Education,Core,19/02/2024,Grants Expenditure,Capital Directorate,Sir Frederick Gibberd College,D-CINV006254,"-414,012.46",Capital grants - Academy Trust 
Department for Education,Core,19/02/2024,Grants Expenditure,Capital Directorate,Sir Frederick Gibberd College,D-CINV006254,"614,145.38",Capital grants - Academy Trust
Department for Education,Core,19/02/2024,Other Costs ,Capital Directorate,Sir Frederick Gibberd College,D-CINV006254,"40,026.49",Capital grants - Academy Trust 
Department for Education,Core,06/02/2024,Grants Expenditure,Capital Directorate,Countryside Properties (Uk) Ltd,D-PINV058571,"349,849.06",Capital grants - Academy Trust
Department for Education,Core,29/02/2024,Grants Expenditure,Capital Directorate,Hujjat Primary School,D-CINV006326,"21,444.06",Capital grants - Academy Trust
Department for Education,Core,29/02/2024,Other Costs ,Capital Directorate,Hujjat Primary School,D-CINV006326,"4,288.81",Capital grants - Academy Trust 
Department for Education,Core,09/02/2024,Grants Expenditure,Capital Directorate,Vinci Construction Uk Limited,D-PINV062840,"999,722.40",Capital grants - Academy Trust
Department for Education,Core,14/02/2024,Grants Expenditure,Capital Directorate,Wsp Uk Limited,D-PINV063139,"38,768.38",Capital grants - Academy Trust
Department for Education,Core,05/02/2024,Grants Expenditure,Capital Directorate,Mclaren Construction Limited,D-PINV062714,"315,025.20",Capital grants - Academy Trust
Department for Education,Core,23/02/2024,IS/IT,Capital Directorate,Mri Software Limited,D-PINV063448,"25,440.04",End User Software and Hardware
Department for Education,Core,23/02/2024,IS/IT,Capital Directorate,Mri Software Limited,D-PINV063449,"39,000.00",End User Software and Hardware
Department for Education,Core,13/02/2024,Grants Expenditure,Capital Directorate,Transport For London ,D-PINV062893,"201,587.66",Capital grants - Academy Trust
Department for Education,Core,09/02/2024,Grants Expenditure,Capital Directorate,Tetra Tech Limited,D-PINV062978,"26,286.12",Capital grants - Academy Trust
Department for Education,Core,20/02/2024,Grants Expenditure,Capital Directorate,Mills And Reeve Llp Client Account,D-PINV063282,"29,310.56",Capital grants - Academy Trust
Department for Education,Core,23/02/2024,Grants Expenditure,Capital Directorate,Preston Hedges Academy Trust,D-CINV006253,"95,528.40",Capital grants - Academy Trust 
Department for Education,Core,16/02/2024,Grants Expenditure,Capital Directorate,Tarka Learning Partnership,D-CINV006227,"38,315.18",Capital grants - Academy Trust
Department for Education,Core,16/02/2024,Other Costs ,Capital Directorate,Tarka Learning Partnership,D-CINV006227,"7,663.04",Capital grants - Academy Trust 
Department for Education,Core,14/02/2024,Grants Expenditure,Capital Directorate,University Of Liverpool Mathematics School,D-CINV006164,"40,702.71",Capital grants - Academy Trust
Department for Education,Core,14/02/2024,Other Costs ,Capital Directorate,University Of Liverpool Mathematics School,D-CINV006164,"8,140.54",Capital grants - Academy Trust 
Department for Education,Core,16/02/2024,Grants Expenditure,Capital Directorate,Lancaster University School Of Mathematics,D-CINV006197,"63,658.79",Capital grants - Academy Trust
Department for Education,Core,16/02/2024,Other Costs ,Capital Directorate,Lancaster University School Of Mathematics,D-CINV006197,"12,731.76",Capital grants - Academy Trust 
Department for Education,Core,09/02/2024,Grants Expenditure,Capital Directorate,Ove Arup And Partners Limited,D-PINV062880,"72,600.00",Capital grants - Academy Trust
Department for Education,Core,29/02/2024,Grants Expenditure,Capital Directorate,The Skills Hub,D-CINV006283,"168,045.00",Capital grants - Academy Trust
Department for Education,Core,29/02/2024,Other Costs ,Capital Directorate,The Skills Hub,D-CINV006283,"33,609.00",Capital grants - Academy Trust 
Department for Education,Core,21/02/2024,Grants Expenditure,Capital Directorate,Barnsley Metropolitan Borough Council,D-PINV063290,"34,270.45",Current grants - Academy Trust
Department for Education,Core,23/02/2024,Grants Expenditure,Capital Directorate,Eric Wright Construction Limited,D-PINV063319,"213,118.79",Current grants - Academy Trust
Department for Education,Core,02/02/2024,Grants Expenditure,Capital Directorate,Portakabin Limited,D-PINV062694,"38,259.00",Current grants - Academy Trust
Department for Education,Core,27/02/2024,Grants Expenditure,Capital Directorate,Portakabin Limited,D-PINV063503,"27,720.76",Current grants - Academy Trust
Department for Education,Core,01/02/2024,Grants Expenditure,Capital Directorate,Rimon Jewish Primary School,DU00104227,"29,750.00",Current grants - Academy Trust
Department for Education,Core,01/02/2024,Grants Expenditure,Capital Directorate,Canary Wharf College 3,DU00104224,"66,311.42",Current grants - Academy Trust
Department for Education,Core,01/02/2024,Grants Expenditure,Capital Directorate,Kensington Aldridge Academy,DU00104218,"29,680.00",Current grants - Academy Trust
Department for Education,Core,09/02/2024,Grants Expenditure,Capital Directorate,Ridgeland Properties Ltd,D-PINV062825,"122,364.00",Current grants - Academy Trust
Department for Education,Core,13/02/2024,Grants Expenditure,Capital Directorate,M.M.C. Investments Limited,D-PINV060857,"117,500.00",Current grants - Academy Trust
Department for Education,Core,21/02/2024,Grants Expenditure,Capital Directorate,The Keystone Academy,D-PINV063291,"69,317.90",Current grants - Academy Trust
Department for Education,Core,20/02/2024,Grants Expenditure,Capital Directorate,Oasis Academy Temple Quarter,DU00105952,"33,800.00",Current grants - Academy Trust
Department for Education,Core,29/02/2024,Other Goods and Services,Capital Directorate,Faithful And Gould,D-PINV063537,"153,273.60",Professional Services
Department for Education,Core,29/02/2024,Other Goods and Services,Capital Directorate,Arcadis Llp,D-PINV062765,"142,772.11",Professional Services
Department for Education,Core,20/02/2024,Grants Expenditure,Capital Directorate,Barton Peveril Sixth Form College,CAY163519,"42,987.00",Capital Grants � FE Colleges 
Department for Education,Core,20/02/2024,Grants Expenditure,Capital Directorate,Cardinal Newman College,CAY163384,"371,249.00",Capital Grants � FE Colleges 
Department for Education,Core,20/02/2024,Grants Expenditure,Capital Directorate,Franklin College,CAY163476,"72,569.00",Capital Grants � FE Colleges 
Department for Education,Core,20/02/2024,Grants Expenditure,Capital Directorate,Ashmole Academy,CAY163540,"61,800.00",Capital grants - Academy Trust
Department for Education,Core,20/02/2024,Grants Expenditure,Capital Directorate,Langley Hall Primary Academy,CAY163366,"44,464.00",Capital grants - Academy Trust
Department for Education,Core,20/02/2024,Grants Expenditure,Capital Directorate,Alexandra Park School,CAY163365,"177,318.00",Capital grants - Academy Trust
Department for Education,Core,20/02/2024,Grants Expenditure,Capital Directorate,Ashcombe Primary School,CAY163231,"368,471.00",Capital grants - Academy Trust
Department for Education,Core,20/02/2024,Grants Expenditure,Capital Directorate,Aylesford School Warwick,CAY163334,"284,208.00",Capital grants - Academy Trust
Department for Education,Core,20/02/2024,Grants Expenditure,Capital Directorate,Barlow Hall Primary School,CAY163381,"97,621.00",Capital grants - Academy Trust
Department for Education,Core,20/02/2024,Grants Expenditure,Capital Directorate,Barrow 1618 Cofe Free School,CAY163475,"77,231.00",Capital grants - Academy Trust
Department for Education,Core,20/02/2024,Grants Expenditure,Capital Directorate,Barton Court Grammar School,CAY163393,"287,924.00",Capital grants - Academy Trust
Department for Education,Core,20/02/2024,Grants Expenditure,Capital Directorate,Beacon Academy,CAY163363,"317,580.00",Capital grants - Academy Trust
Department for Education,Core,20/02/2024,Grants Expenditure,Capital Directorate,Beal High School,CAY163396,"46,623.00",Capital grants - Academy Trust
Department for Education,Core,20/02/2024,Grants Expenditure,Capital Directorate,Beck Primary School,CAY163379,"66,822.00",Capital grants - Academy Trust
Department for Education,Core,20/02/2024,Grants Expenditure,Capital Directorate,Beechview Academy,CAY163400,"73,228.00",Capital grants - Academy Trust
Department for Education,Core,20/02/2024,Grants Expenditure,Capital Directorate,Belleville Primary School,CAY163567,"130,769.00",Capital grants - Academy Trust
Department for Education,Core,20/02/2024,Grants Expenditure,Capital Directorate,Bengeworth Ce Academy,CAY163376,"69,448.00",Capital grants - Academy Trust
Department for Education,Core,20/02/2024,Grants Expenditure,Capital Directorate,Bentley Wood High School,CAY163203,"46,694.00",Capital grants - Academy Trust
Department for Education,Core,20/02/2024,Grants Expenditure,Capital Directorate,Beths Grammar School,CAY163340,"203,607.00",Capital grants - Academy Trust
Department for Education,Core,20/02/2024,Grants Expenditure,Capital Directorate,Biggleswade Academy,CAY163391,"53,068.00",Capital grants - Academy Trust
Department for Education,Core,20/02/2024,Grants Expenditure,Capital Directorate,Bishops Cleeve Primary Academy,CAY163419,"56,910.00",Capital grants - Academy Trust
Department for Education,Core,20/02/2024,Grants Expenditure,Capital Directorate,Blue Coat Church Of England Academy,CAY163409,"41,255.00",Capital grants - Academy Trust
Department for Education,Core,20/02/2024,Grants Expenditure,Capital Directorate,Borden Grammar School,CAY163390,"129,783.00",Capital grants - Academy Trust
Department for Education,Core,20/02/2024,Grants Expenditure,Capital Directorate,Borden Grammar School,CAY163412,"50,239.00",Capital grants - Academy Trust
Department for Education,Core,20/02/2024,Grants Expenditure,Capital Directorate,Bournemouth School,CAY163345,"197,306.00",Capital grants - Academy Trust
Department for Education,Core,20/02/2024,Grants Expenditure,Capital Directorate,Brayton Academy,CAY163387,"62,347.00",Capital grants - Academy Trust
Department for Education,Core,20/02/2024,Grants Expenditure,Capital Directorate,Brayton Academy,CAY163487,"122,725.00",Capital grants - Academy Trust
Department for Education,Core,20/02/2024,Grants Expenditure,Capital Directorate,Brockington College,CAY163352,"54,367.00",Capital grants - Academy Trust
Department for Education,Core,20/02/2024,Grants Expenditure,Capital Directorate,Brookvale Groby Learning Campus,CAY163474,"71,621.00",Capital grants - Academy Trust
Department for Education,Core,20/02/2024,Grants Expenditure,Capital Directorate,Brookvale Groby Learning Campus,CAY163513,"67,638.00",Capital grants - Academy Trust
Department for Education,Core,20/02/2024,Grants Expenditure,Capital Directorate,Brownlow Primary School,CAY163452,"26,635.00",Capital grants - Academy Trust
Department for Education,Core,20/02/2024,Grants Expenditure,Capital Directorate,Burnt Ash Primary School,CAY163457,"62,027.00",Capital grants - Academy Trust
Department for Education,Core,20/02/2024,Grants Expenditure,Capital Directorate,Cannock Chase High School,CAY163501,"35,131.00",Capital grants - Academy Trust
Department for Education,Core,20/02/2024,Grants Expenditure,Capital Directorate,Carwarden House Community School,CAY163574,"75,572.00",Capital grants - Academy Trust
Department for Education,Core,20/02/2024,Grants Expenditure,Capital Directorate,Castercliff Primary School,CAY163347,"62,027.00",Capital grants - Academy Trust
Department for Education,Core,20/02/2024,Grants Expenditure,Capital Directorate,Chase High School,CAY163571,"139,667.00",Capital grants - Academy Trust
Department for Education,Core,20/02/2024,Grants Expenditure,Capital Directorate,Chatham Grammar,CAY163344,"44,771.00",Capital grants - Academy Trust
Department for Education,Core,20/02/2024,Grants Expenditure,Capital Directorate,Chatham Grammar,CAY163355,"45,451.00",Capital grants - Academy Trust
Department for Education,Core,20/02/2024,Grants Expenditure,Capital Directorate,Chatsworth High School And Community College,CAY163529,"493,642.00",Capital grants - Academy Trust
Department for Education,Core,20/02/2024,Grants Expenditure,Capital Directorate,Cheltenham Bournside School And Sixth Form Centre,CAY163350,"130,968.00",Capital grants - Academy Trust
Department for Education,Core,20/02/2024,Grants Expenditure,Capital Directorate,Cheney School,CAY163448,"84,204.00",Capital grants - Academy Trust
Department for Education,Core,20/02/2024,Grants Expenditure,Capital Directorate,Chetwynde School,CAY163511,"32,959.00",Capital grants - Academy Trust
Department for Education,Core,20/02/2024,Grants Expenditure,Capital Directorate,Christ Church Church Of England Primary School,CAY163489,"39,613.00",Capital grants - Academy Trust
Department for Education,Core,20/02/2024,Grants Expenditure,Capital Directorate,Christopher Whitehead Language College,CAY163486,"42,408.00",Capital grants - Academy Trust
Department for Education,Core,20/02/2024,Grants Expenditure,Capital Directorate,Churchfields Primary School,CAY163579,"43,176.00",Capital grants - Academy Trust
Department for Education,Core,20/02/2024,Grants Expenditure,Capital Directorate,Codsall Middle School,CAY163368,"79,157.00",Capital grants - Academy Trust
Department for Education,Core,20/02/2024,Grants Expenditure,Capital Directorate,Colne Primet Academy,CAY163358,"51,777.00",Capital grants - Academy Trust
Department for Education,Core,20/02/2024,Grants Expenditure,Capital Directorate,Ortu Corringham Primary School And Nursery,CAY163353,"40,724.00",Capital grants - Academy Trust
Department for Education,Core,20/02/2024,Grants Expenditure,Capital Directorate,Denbigh School,CAY163249,"120,425.00",Capital grants - Academy Trust
Department for Education,Core,20/02/2024,Grants Expenditure,Capital Directorate,Devonport High School For Girls,CAY163432,"59,185.00",Capital grants - Academy Trust
Department for Education,Core,20/02/2024,Grants Expenditure,Capital Directorate,Dodworth St John The Baptist Cofe Primary Academy,CAY163373,"100,160.00",Capital grants - Academy Trust
Department for Education,Core,20/02/2024,Grants Expenditure,Capital Directorate,East Barnet School,CAY163434,"68,834.00",Capital grants - Academy Trust
Department for Education,Core,20/02/2024,Grants Expenditure,Capital Directorate,Elburton Primary School,CAY163446,"60,647.00",Capital grants - Academy Trust
Department for Education,Core,20/02/2024,Grants Expenditure,Capital Directorate,Elton Community Primary School,CAY163533,"37,886.00",Capital grants - Academy Trust
Department for Education,Core,20/02/2024,Grants Expenditure,Capital Directorate,Eppleton Academy Primary School,CAY163503,"63,955.00",Capital grants - Academy Trust
Department for Education,Core,20/02/2024,Grants Expenditure,Capital Directorate,Fairlands Primary School,CAY163397,"75,000.00",Capital grants - Academy Trust
Department for Education,Core,20/02/2024,Grants Expenditure,Capital Directorate,Falmouth School,CAY163343,"30,660.00",Capital grants - Academy Trust
Department for Education,Core,20/02/2024,Grants Expenditure,Capital Directorate,Fernvale Primary School,CAY163505,"66,312.00",Capital grants - Academy Trust
Department for Education,Core,20/02/2024,Grants Expenditure,Capital Directorate,Foxborough Primary School,CAY163398,"78,733.00",Capital grants - Academy Trust
Department for Education,Core,20/02/2024,Grants Expenditure,Capital Directorate,Gorsefield Primary School,CAY163380,"26,737.00",Capital grants - Academy Trust
Department for Education,Core,20/02/2024,Grants Expenditure,Capital Directorate,Gotherington Primary School,CAY163439,"91,305.00",Capital grants - Academy Trust
Department for Education,Core,20/02/2024,Grants Expenditure,Capital Directorate,Gotherington Primary School,CAY163440,"73,000.00",Capital grants - Academy Trust
Department for Education,Core,20/02/2024,Grants Expenditure,Capital Directorate,Great Malvern Primary School,CAY163477,"29,711.00",Capital grants - Academy Trust
Department for Education,Core,20/02/2024,Grants Expenditure,Capital Directorate,Greensted Primary School And Nursery,CAY163464,"95,079.00",Capital grants - Academy Trust
Department for Education,Core,20/02/2024,Grants Expenditure,Capital Directorate,Grove Park Primary School,CAY163582,"33,418.00",Capital grants - Academy Trust
Department for Education,Core,20/02/2024,Grants Expenditure,Capital Directorate,Gunthorpe Primary School,CAY163399,"70,651.00",Capital grants - Academy Trust
Department for Education,Core,20/02/2024,Grants Expenditure,Capital Directorate,Hartsdown Academy,CAY163471,"78,722.00",Capital grants - Academy Trust
Department for Education,Core,20/02/2024,Grants Expenditure,Capital Directorate,Hartwell Primary School,CAY163478,"75,793.00",Capital grants - Academy Trust
Department for Education,Core,20/02/2024,Grants Expenditure,Capital Directorate,Haydon School,CAY163341,"50,000.00",Capital grants - Academy Trust
Department for Education,Core,20/02/2024,Grants Expenditure,Capital Directorate,Heathside School,CAY163603,"254,368.00",Capital grants - Academy Trust
Department for Education,Core,20/02/2024,Grants Expenditure,Capital Directorate,Hedingham School And Sixth Form,CAY163405,"110,096.00",Capital grants - Academy Trust
Department for Education,Core,20/02/2024,Grants Expenditure,Capital Directorate,Hennock Community Primary School,CAY163542,"32,792.00",Capital grants - Academy Trust
Department for Education,Core,20/02/2024,Grants Expenditure,Capital Directorate,The Henry Moore Primary School,CAY163428,"130,600.00",Capital grants - Academy Trust
Department for Education,Core,20/02/2024,Grants Expenditure,Capital Directorate,Herschel Grammar School,CAY163572,"135,557.00",Capital grants - Academy Trust
Department for Education,Core,20/02/2024,Grants Expenditure,Capital Directorate,Holbrook Academy,CAY163508,"38,003.00",Capital grants - Academy Trust
Department for Education,Core,20/02/2024,Grants Expenditure,Capital Directorate,Holy Cross College,CAY163472,"25,100.00",Capital grants - Academy Trust
Department for Education,Core,20/02/2024,Grants Expenditure,Capital Directorate,Homewood School And Sixth Form Centre,CAY163414,"87,593.00",Capital grants - Academy Trust
Department for Education,Core,20/02/2024,Grants Expenditure,Capital Directorate,Horbury Primary Academy,CAY163377,"25,257.00",Capital grants - Academy Trust
Department for Education,Core,20/02/2024,Grants Expenditure,Capital Directorate,Janet Duke Primary School,CAY163361,"61,864.00",Capital grants - Academy Trust
Department for Education,Core,20/02/2024,Grants Expenditure,Capital Directorate,Joydens Wood Junior School,CAY163496,"121,748.00",Capital grants - Academy Trust
Department for Education,Core,20/02/2024,Grants Expenditure,Capital Directorate,Kesgrave High School,CAY163385,"46,696.00",Capital grants - Academy Trust
Department for Education,Core,20/02/2024,Grants Expenditure,Capital Directorate,Kesgrave High School,CAY163436,"46,218.00",Capital grants - Academy Trust
Department for Education,Core,20/02/2024,Grants Expenditure,Capital Directorate,King Ethelbert School,CAY163577,"78,353.00",Capital grants - Academy Trust
Department for Education,Core,20/02/2024,Grants Expenditure,Capital Directorate,Kingsbury High School,CAY163346,"374,970.00",Capital grants - Academy Trust
Department for Education,Core,20/02/2024,Grants Expenditure,Capital Directorate,Langtree School,CAY163444,"104,564.00",Capital grants - Academy Trust
Department for Education,Core,20/02/2024,Grants Expenditure,Capital Directorate,Lavington School,CAY163426,"38,450.00",Capital grants - Academy Trust
Department for Education,Core,20/02/2024,Grants Expenditure,Capital Directorate,Lee Chapel Primary School,CAY163438,"30,892.00",Capital grants - Academy Trust
Department for Education,Core,20/02/2024,Grants Expenditure,Capital Directorate,Lees Primary School,CAY163359,"52,463.00",Capital grants - Academy Trust
Department for Education,Core,20/02/2024,Grants Expenditure,Capital Directorate,Lent Rise School,CAY163516,"121,065.00",Capital grants - Academy Trust
Department for Education,Core,20/02/2024,Grants Expenditure,Capital Directorate,Little Hill Primary,CAY163499,"112,679.00",Capital grants - Academy Trust
Department for Education,Core,20/02/2024,Grants Expenditure,Capital Directorate,King Edward Vi Lordswood School For Girls,CAY163433,"145,763.00",Capital grants - Academy Trust
Department for Education,Core,20/02/2024,Grants Expenditure,Capital Directorate,Lydd Primary School,CAY163522,"61,196.00",Capital grants - Academy Trust
Department for Education,Core,20/02/2024,Grants Expenditure,Capital Directorate,Lyons Hall School,CAY163493,"73,160.00",Capital grants - Academy Trust
Department for Education,Core,20/02/2024,Grants Expenditure,Capital Directorate,Macmillan Academy,CAY163378,"60,435.00",Capital grants - Academy Trust
Department for Education,Core,20/02/2024,Grants Expenditure,Capital Directorate,Maghull High School,CAY163443,"47,711.00",Capital grants - Academy Trust
Department for Education,Core,20/02/2024,Grants Expenditure,Capital Directorate,Mayville Primary School,CAY163411,"61,313.00",Capital grants - Academy Trust
Department for Education,Core,20/02/2024,Grants Expenditure,Capital Directorate,Monk'S Walk School,CAY163554,"163,371.00",Capital grants - Academy Trust
Department for Education,Core,20/02/2024,Grants Expenditure,Capital Directorate,Mountfields Lodge School,CAY163206,"29,823.00",Capital grants - Academy Trust
Department for Education,Core,20/02/2024,Grants Expenditure,Capital Directorate,New Bradwell Primary School,CAY163209,"34,047.00",Capital grants - Academy Trust
Department for Education,Core,20/02/2024,Grants Expenditure,Capital Directorate,Newall Green Primary School,CAY163217,"60,020.00",Capital grants - Academy Trust
Department for Education,Core,20/02/2024,Grants Expenditure,Capital Directorate,Newlands Spring Primary And Nursery School,CAY163383,"69,398.00",Capital grants - Academy Trust
Department for Education,Core,20/02/2024,Grants Expenditure,Capital Directorate,Newport Girls' High School Academy,CAY163484,"29,736.00",Capital grants - Academy Trust
Department for Education,Core,20/02/2024,Grants Expenditure,Capital Directorate,Northgate Primary School,CAY163491,"50,267.00",Capital grants - Academy Trust
Department for Education,Core,20/02/2024,Grants Expenditure,Capital Directorate,Northwold Primary School,CAY163230,"144,654.00",Capital grants - Academy Trust
Department for Education,Core,20/02/2024,Grants Expenditure,Capital Directorate,Oakwood Park Grammar School,CAY163413,"60,179.00",Capital grants - Academy Trust
Department for Education,Core,20/02/2024,Grants Expenditure,Capital Directorate,Ossett Academy And Sixth Form College,CAY163589,"38,664.00",Capital grants - Academy Trust
Department for Education,Core,20/02/2024,Grants Expenditure,Capital Directorate,Our Lady And St. Joseph Catholic Academy,CAY163523,"30,611.00",Capital grants - Academy Trust
Department for Education,Core,20/02/2024,Grants Expenditure,Capital Directorate,Outwoods Primary School,CAY163521,"57,905.00",Capital grants - Academy Trust
Department for Education,Core,20/02/2024,Grants Expenditure,Capital Directorate,Parkfield Community School,CAY163364,"60,248.00",Capital grants - Academy Trust
Department for Education,Core,20/02/2024,Grants Expenditure,Capital Directorate,Passmores Academy,CAY163442,"198,565.00",Capital grants - Academy Trust
Department for Education,Core,20/02/2024,Grants Expenditure,Capital Directorate,Perryfields Junior School,CAY163488,"106,946.00",Capital grants - Academy Trust
Department for Education,Core,20/02/2024,Grants Expenditure,Capital Directorate,Queen Elizabeth'S Girls' School,CAY163560,"39,235.00",Capital grants - Academy Trust
Department for Education,Core,20/02/2024,Grants Expenditure,Capital Directorate,Queens Park Community School,CAY163506,"130,727.00",Capital grants - Academy Trust
Department for Education,Core,20/02/2024,Grants Expenditure,Capital Directorate,Queen'S Park High School,CAY163404,"97,335.00",Capital grants - Academy Trust
Department for Education,Core,20/02/2024,Grants Expenditure,Capital Directorate,Queen'S Park High School,CAY163587,"124,209.00",Capital grants - Academy Trust
Department for Education,Core,20/02/2024,Grants Expenditure,Capital Directorate,River Mead School,CAY163216,"57,156.00",Capital grants - Academy Trust
Department for Education,Core,20/02/2024,Grants Expenditure,Capital Directorate,Rooks Heath School,CAY163342,"335,000.00",Capital grants - Academy Trust
Department for Education,Core,20/02/2024,Grants Expenditure,Capital Directorate,Rosedale Primary School,CAY163370,"84,023.00",Capital grants - Academy Trust
Department for Education,Core,20/02/2024,Grants Expenditure,Capital Directorate,Royal Rise Primary School,CAY163462,"81,234.00",Capital grants - Academy Trust
Department for Education,Core,20/02/2024,Grants Expenditure,Capital Directorate,Runwell Community Primary School,CAY163480,"38,776.00",Capital grants - Academy Trust
Department for Education,Core,20/02/2024,Grants Expenditure,Capital Directorate,Sale Grammar School,CAY163202,"123,220.00",Capital grants - Academy Trust
Department for Education,Core,20/02/2024,Grants Expenditure,Capital Directorate,Salisbury Road Primary School,CAY163348,"63,609.00",Capital grants - Academy Trust
Department for Education,Core,20/02/2024,Grants Expenditure,Capital Directorate,Sharples School,CAY163562,"146,190.00",Capital grants - Academy Trust
Department for Education,Core,20/02/2024,Grants Expenditure,Capital Directorate,Shaw Primary Academy,CAY163354,"67,743.00",Capital grants - Academy Trust
Department for Education,Core,20/02/2024,Grants Expenditure,Capital Directorate,Shenfield High School,CAY163335,"36,973.00",Capital grants - Academy Trust
Department for Education,Core,20/02/2024,Grants Expenditure,Capital Directorate,Sherard Primary School,CAY163463,"49,734.00",Capital grants - Academy Trust
Department for Education,Core,20/02/2024,Grants Expenditure,Capital Directorate,Sherard Primary School,CAY163527,"66,075.00",Capital grants - Academy Trust
Department for Education,Core,20/02/2024,Grants Expenditure,Capital Directorate,Simon Balle All-Through School,CAY163389,"100,164.00",Capital grants - Academy Trust
Department for Education,Core,20/02/2024,Grants Expenditure,Capital Directorate,Skelmanthorpe Academy,CAY163458,"83,939.00",Capital grants - Academy Trust
Department for Education,Core,20/02/2024,Grants Expenditure,Capital Directorate,Somerby Primary School,CAY163453,"40,045.00",Capital grants - Academy Trust
Department for Education,Core,20/02/2024,Grants Expenditure,Capital Directorate,South Axholme Academy,CAY163552,"100,758.00",Capital grants - Academy Trust
Department for Education,Core,20/02/2024,Grants Expenditure,Capital Directorate,Southborough High School,CAY163388,"69,234.00",Capital grants - Academy Trust
Department for Education,Core,20/02/2024,Grants Expenditure,Capital Directorate,Southgate School,CAY163557,"132,487.00",Capital grants - Academy Trust
Department for Education,Core,20/02/2024,Grants Expenditure,Capital Directorate,St Anne'S Catholic School,CAY163360,"53,853.00",Capital grants - Academy Trust
Department for Education,Core,20/02/2024,Grants Expenditure,Capital Directorate,St Anthony'S Catholic Primary School,CAY163525,"32,439.00",Capital grants - Academy Trust
Department for Education,Core,20/02/2024,Grants Expenditure,Capital Directorate,St Bartholomew'S Church Of England Primary School,CAY163410,"26,823.00",Capital grants - Academy Trust
Department for Education,Core,20/02/2024,Grants Expenditure,Capital Directorate,St. James The Great R.C. Primary And Nursery School,CAY163403,"80,230.00",Capital grants - Academy Trust
Department for Education,Core,20/02/2024,Grants Expenditure,Capital Directorate,St. James The Great R.C. Primary And Nursery School,CAY163558,"110,029.00",Capital grants - Academy Trust
Department for Education,Core,20/02/2024,Grants Expenditure,Capital Directorate,St John'S Primary School,CAY163500,"64,372.00",Capital grants - Academy Trust
Department for Education,Core,20/02/2024,Grants Expenditure,Capital Directorate,St Joseph'S College,CAY163215,"128,221.00",Capital grants - Academy Trust
Department for Education,Core,20/02/2024,Grants Expenditure,Capital Directorate,St Mary'S Church Of England High School (Va),CAY163205,"36,216.00",Capital grants - Academy Trust
Department for Education,Core,20/02/2024,Grants Expenditure,Capital Directorate,St Matthew'S Cofe Primary School,CAY163449,"32,588.00",Capital grants - Academy Trust
Department for Education,Core,20/02/2024,Grants Expenditure,Capital Directorate,St Patricks Church Of England Primary Academy,CAY163375,"61,188.00",Capital grants - Academy Trust
Department for Education,Core,20/02/2024,Grants Expenditure,Capital Directorate,St Silas Church Of England Primary School,CAY163576,"34,650.00",Capital grants - Academy Trust
Department for Education,Core,20/02/2024,Grants Expenditure,Capital Directorate,St Thomas More Catholic School And Sixth Form College,CAY163454,"42,178.00",Capital grants - Academy Trust
Department for Education,Core,20/02/2024,Grants Expenditure,Capital Directorate,St. Augustine'S Academy,CAY163497,"69,340.00",Capital grants - Academy Trust
Department for Education,Core,20/02/2024,Grants Expenditure,Capital Directorate,Stokesley School,CAY163455,"170,853.00",Capital grants - Academy Trust
Department for Education,Core,20/02/2024,Grants Expenditure,Capital Directorate,Stokesley School,CAY163551,"105,718.00",Capital grants - Academy Trust
Department for Education,Core,20/02/2024,Grants Expenditure,Capital Directorate,Sunbury Manor School,CAY163427,"39,675.00",Capital grants - Academy Trust
Department for Education,Core,20/02/2024,Grants Expenditure,Capital Directorate,Thamesmead School,CAY163441,"120,431.00",Capital grants - Academy Trust
Department for Education,Core,20/02/2024,Grants Expenditure,Capital Directorate,Thamesmead School,CAY163569,"96,246.00",Capital grants - Academy Trust
Department for Education,Core,20/02/2024,Grants Expenditure,Capital Directorate,Belleville Wix Academy,CAY163566,"190,017.00",Capital grants - Academy Trust
Department for Education,Core,20/02/2024,Grants Expenditure,Capital Directorate,The Blue Coat School,CAY163473,"83,261.00",Capital grants - Academy Trust
Department for Education,Core,20/02/2024,Grants Expenditure,Capital Directorate,The Blue School,CAY163369,"85,091.00",Capital grants - Academy Trust
Department for Education,Core,20/02/2024,Grants Expenditure,Capital Directorate,The Charles Dickens School,CAY163408,"111,654.00",Capital grants - Academy Trust
Department for Education,Core,20/02/2024,Grants Expenditure,Capital Directorate,The Henrietta Barnett School,CAY163445,"28,975.00",Capital grants - Academy Trust
Department for Education,Core,20/02/2024,Grants Expenditure,Capital Directorate,The King John School,CAY163415,"68,939.00",Capital grants - Academy Trust
Department for Education,Core,20/02/2024,Grants Expenditure,Capital Directorate,The King John School,CAY163585,"116,878.00",Capital grants - Academy Trust
Department for Education,Core,20/02/2024,Grants Expenditure,Capital Directorate,The Lincoln Manor Leas Infants School,CAY163504,"77,265.00",Capital grants - Academy Trust
Department for Education,Core,20/02/2024,Grants Expenditure,Capital Directorate,The Oldershaw School,CAY163357,"33,014.00",Capital grants - Academy Trust
Department for Education,Core,20/02/2024,Grants Expenditure,Capital Directorate,The Piggott School,CAY163568,"51,028.00",Capital grants - Academy Trust
Department for Education,Core,20/02/2024,Grants Expenditure,Capital Directorate,The Sele School,CAY163416,"76,163.00",Capital grants - Academy Trust
Department for Education,Core,20/02/2024,Grants Expenditure,Capital Directorate,The Weatheralls Primary School,CAY163546,"51,486.00",Capital grants - Academy Trust
Department for Education,Core,20/02/2024,Grants Expenditure,Capital Directorate,The Westgate School,CAY163220,"113,167.00",Capital grants - Academy Trust
Department for Education,Core,20/02/2024,Grants Expenditure,Capital Directorate,The Weston Road Academy,CAY163502,"44,667.00",Capital grants - Academy Trust
Department for Education,Core,20/02/2024,Grants Expenditure,Capital Directorate,Therfield School,CAY163553,"129,843.00",Capital grants - Academy Trust
Department for Education,Core,20/02/2024,Grants Expenditure,Capital Directorate,Thomas Alleyne'S High School,CAY163386,"48,203.00",Capital grants - Academy Trust
Department for Education,Core,20/02/2024,Grants Expenditure,Capital Directorate,Thornden School,CAY163417,"118,635.00",Capital grants - Academy Trust
Department for Education,Core,20/02/2024,Grants Expenditure,Capital Directorate,Thurstable School Sports College And Sixth Form Centre,CAY163204,"164,768.00",Capital grants - Academy Trust
Department for Education,Core,20/02/2024,Grants Expenditure,Capital Directorate,Thurstable School Sports College And Sixth Form Centre,CAY163395,"85,481.00",Capital grants - Academy Trust
Department for Education,Core,20/02/2024,Grants Expenditure,Capital Directorate,Trevelyan Middle School,CAY163402,"84,323.00",Capital grants - Academy Trust
Department for Education,Core,20/02/2024,Grants Expenditure,Capital Directorate,Walkwood Church Of England Middle School,CAY163421,"104,168.00",Capital grants - Academy Trust
Department for Education,Core,20/02/2024,Grants Expenditure,Capital Directorate,Wentworth Primary School,CAY163602,"140,104.74",Capital grants - Academy Trust
Department for Education,Core,20/02/2024,Grants Expenditure,Capital Directorate,Werrington Primary School,CAY163392,"209,920.00",Capital grants - Academy Trust
Department for Education,Core,20/02/2024,Grants Expenditure,Capital Directorate,Westbridge Academy,CAY163578,"28,468.00",Capital grants - Academy Trust
Department for Education,Core,20/02/2024,Grants Expenditure,Capital Directorate,Westfield Academy,CAY163420,"107,421.00",Capital grants - Academy Trust
Department for Education,Core,20/02/2024,Grants Expenditure,Capital Directorate,Westwoodside Church Of England Academy,CAY163498,"86,396.00",Capital grants - Academy Trust
Department for Education,Core,20/02/2024,Grants Expenditure,Capital Directorate,Wickham Market Primary School,CAY163580,"26,877.00",Capital grants - Academy Trust
Department for Education,Core,20/02/2024,Grants Expenditure,Capital Directorate,Wigston Academy,CAY163556,"197,891.00",Capital grants - Academy Trust
Department for Education,Core,20/02/2024,Grants Expenditure,Capital Directorate,Wildern School,CAY163570,"167,462.00",Capital grants - Academy Trust
Department for Education,Core,20/02/2024,Grants Expenditure,Capital Directorate,William De Ferrers School,CAY163573,"63,814.00",Capital grants - Academy Trust
Department for Education,Core,20/02/2024,Grants Expenditure,Capital Directorate,Willowcroft Community School,CAY163450,"57,568.00",Capital grants - Academy Trust
Department for Education,Core,20/02/2024,Grants Expenditure,Capital Directorate,Woodlands Primary School,CAY163514,"135,219.00",Capital grants - Academy Trust
Department for Education,Core,20/02/2024,Grants Expenditure,Capital Directorate,Woodside Academy,CAY163207,"43,230.00",Capital grants - Academy Trust
Department for Education,Core,20/02/2024,Grants Expenditure,Capital Directorate,Woodside High School,CAY163214,"91,149.00",Capital grants - Academy Trust
Department for Education,Core,20/02/2024,Grants Expenditure,Capital Directorate,Bolton St Catherine'S Academy,CAY163531,"96,071.00",Capital grants - Academy Trust
Department for Education,Core,20/02/2024,Grants Expenditure,Capital Directorate,Sanders Draper,CAY163555,"110,000.00",Capital grants - Academy Trust
Department for Education,Core,20/02/2024,Grants Expenditure,Capital Directorate,The Python Hill Academy,CAY163492,"156,647.00",Capital grants - Academy Trust
Department for Education,Core,20/02/2024,Grants Expenditure,Capital Directorate,Keston Primary School,CAY163351,"82,905.00",Capital grants - Academy Trust
Department for Education,Core,20/02/2024,Grants Expenditure,Capital Directorate,Treviglas Academy,CAY163218,"55,259.00",Capital grants - Academy Trust
Department for Education,Core,20/02/2024,Grants Expenditure,Capital Directorate,Oak Tree Primary School,CAY163465,"92,014.00",Capital grants - Academy Trust
Department for Education,Core,20/02/2024,Grants Expenditure,Capital Directorate,Colmers Farm Primary School,CAY163479,"79,768.00",Capital grants - Academy Trust
Department for Education,Core,20/02/2024,Grants Expenditure,Capital Directorate,Dean Cofe School,CAY163466,"27,314.00",Capital grants - Academy Trust
Department for Education,Core,20/02/2024,Grants Expenditure,Capital Directorate,Hyde Park Infants' School,CAY163495,"55,510.00",Capital grants - Academy Trust
Department for Education,Core,20/02/2024,Grants Expenditure,Capital Directorate,Springfield Junior School,CAY163401,"49,299.00",Capital grants - Academy Trust
Department for Education,Core,20/02/2024,Grants Expenditure,Capital Directorate,Houndsfield Primary School,CAY163394,"49,467.00",Capital grants - Academy Trust
Department for Education,Core,20/02/2024,Grants Expenditure,Capital Directorate,Aveley Primary School,CAY163210,"31,842.00",Capital grants - Academy Trust
Department for Education,Core,20/02/2024,Grants Expenditure,Capital Directorate,Kew Woods Primary School,CAY163422,"178,960.00",Capital grants - Academy Trust
Department for Education,Core,20/02/2024,Grants Expenditure,Capital Directorate,Kew Woods Primary School,CAY163423,"151,395.00",Capital grants - Academy Trust
Department for Education,Core,20/02/2024,Grants Expenditure,Capital Directorate,Central Lancaster High School,CAY163349,"152,996.00",Capital grants - Academy Trust
Department for Education,Core,20/02/2024,Grants Expenditure,Capital Directorate,Tennyson Road Primary School,CAY163510,"61,027.00",Capital grants - Academy Trust
Department for Education,Core,20/02/2024,Grants Expenditure,Capital Directorate,The Harbour School,CAY163418,"81,507.00",Capital grants - Academy Trust
Department for Education,Core,20/02/2024,Grants Expenditure,Capital Directorate,Hawthorn Primary School,CAY163469,"45,642.00",Capital grants - Academy Trust
Department for Education,Core,20/02/2024,Grants Expenditure,Capital Directorate,Ramsey Manor Lower School,CAY163507,"94,308.00",Capital grants - Academy Trust
Department for Education,Core,20/02/2024,Grants Expenditure,Capital Directorate,Woodhouse West Primary School,CAY163470,"55,068.00",Capital grants - Academy Trust
Department for Education,Core,20/02/2024,Grants Expenditure,Capital Directorate,Whaley Thorns Primary School,CAY163211,"66,489.00",Capital grants - Academy Trust
Department for Education,Core,20/02/2024,Grants Expenditure,Capital Directorate,Knaphill School,CAY163565,"175,846.00",Capital grants - Academy Trust
Department for Education,Core,20/02/2024,Grants Expenditure,Capital Directorate,De Vere Primary School,CAY163367,"33,498.00",Capital grants - Academy Trust
Department for Education,Core,20/02/2024,Grants Expenditure,Capital Directorate,North West Kent Alternative Provision Service,CAY163538,"224,969.00",Capital grants - Academy Trust
Department for Education,Core,20/02/2024,Grants Expenditure,Capital Directorate,Redscope Primary School,CAY163536,"82,280.00",Capital grants - Academy Trust
Department for Education,Core,20/02/2024,Grants Expenditure,Capital Directorate,Redscope Primary School,CAY163537,"141,988.00",Capital grants - Academy Trust
Department for Education,Core,20/02/2024,Grants Expenditure,Capital Directorate,"Sacred Heart Catholic Primary School, A Voluntary Academy",CAY163219,"90,665.00",Capital grants - Academy Trust
Department for Education,Core,20/02/2024,Grants Expenditure,Capital Directorate,Dogsthorpe Infant School,CAY163212,"48,451.00",Capital grants - Academy Trust
Department for Education,Core,20/02/2024,Grants Expenditure,Capital Directorate,Halterworth Primary School,CAY163539,"62,928.00",Capital grants - Academy Trust
Department for Education,Core,20/02/2024,Grants Expenditure,Capital Directorate,Roman Fields Academy,CAY163374,"51,587.00",Capital grants - Academy Trust
Department for Education,Core,20/02/2024,Grants Expenditure,Capital Directorate,Lutton St Nicholas Primary Academy,CAY163530,"69,560.00",Capital grants - Academy Trust
Department for Education,Core,20/02/2024,Grants Expenditure,Capital Directorate,Kingsway Park High School,CAY163382,"41,686.00",Capital grants - Academy Trust
Department for Education,Core,20/02/2024,Grants Expenditure,Capital Directorate,Oswaldtwistle West End Primary School,CAY163532,"25,063.00",Capital grants - Academy Trust
Department for Education,Core,20/02/2024,Grants Expenditure,Capital Directorate,Birches Green Infant School,CAY163541,"74,025.00",Capital grants - Academy Trust
Department for Education,Core,20/02/2024,Grants Expenditure,Capital Directorate,Stocksbridge Nursery Infant School,CAY163490,"129,711.00",Capital grants - Academy Trust
Department for Education,Core,20/02/2024,Grants Expenditure,Capital Directorate,Uplands Academy,CAY163362,"183,082.00",Capital grants - Academy Trust
Department for Education,Core,20/02/2024,Grants Expenditure,Capital Directorate,Ravenhurst Primary School,CAY163517,"33,826.00",Capital grants - Academy Trust
Department for Education,Core,20/02/2024,Grants Expenditure,Capital Directorate,Leigh Academy Bexley,CAY163559,"160,320.00",Capital grants - Academy Trust
Department for Education,Core,20/02/2024,Grants Expenditure,Capital Directorate,Leigh Academy Bexley,CAY163564,"260,275.00",Capital grants - Academy Trust
Department for Education,Core,20/02/2024,Grants Expenditure,Capital Directorate,Lansdown Park Academy,CAY163461,"64,304.00",Capital grants - Academy Trust
Department for Education,Core,20/02/2024,Grants Expenditure,Capital Directorate,Star Academies,CAY163244,"52,208.10",Capital grants - Academy Trust
Department for Education,Core,20/02/2024,Grants Expenditure,Capital Directorate,Dixons Academies Trust,CAY163297,"123,519.00",Capital grants - Academy Trust
Department for Education,Core,20/02/2024,Grants Expenditure,Capital Directorate,Excelsior Multi Academy Trust,CAY163241,"42,980.00",Capital grants - Academy Trust
Department for Education,Core,20/02/2024,Grants Expenditure,Capital Directorate,Leigh Academies Trust,CAY163251,"49,785.00",Capital grants - Academy Trust
Department for Education,Core,20/02/2024,Grants Expenditure,Capital Directorate,London South East Academies Trust,CAY163221,"100,000.00",Capital grants - Academy Trust
Department for Education,Core,20/02/2024,Grants Expenditure,Capital Directorate,Oasis Community Learning,CAY163232,"100,858.00",Capital grants - Academy Trust
Department for Education,Core,20/02/2024,Grants Expenditure,Capital Directorate,Ormiston Academies Trust,CAY163336,"191,574.30",Capital grants - Academy Trust
Department for Education,Core,20/02/2024,Grants Expenditure,Capital Directorate,Outwood Grange Academies Trust,CAY163337,"400,000.00",Capital grants - Academy Trust
Department for Education,Core,20/02/2024,Grants Expenditure,Capital Directorate,Outwood Grange Academies Trust,CAY163338,"234,000.00",Capital grants - Academy Trust
Department for Education,Core,20/02/2024,Grants Expenditure,Capital Directorate,Qed Academy Trust,CAY163253,"65,850.00",Capital grants - Academy Trust
Department for Education,Core,20/02/2024,Grants Expenditure,Capital Directorate,The Pioneer Academy,CAY163200,"50,000.00",Capital grants - Academy Trust
Department for Education,Core,20/02/2024,Grants Expenditure,Capital Directorate,The Rowan Learning Trust,CAY163247,"55,183.00",Capital grants - Academy Trust
Department for Education,Core,20/02/2024,Grants Expenditure,Capital Directorate,Hamwic Education Trust,CAY163245,"50,262.00",Capital grants - Academy Trust
Department for Education,Core,22/02/2024,Grants Expenditure,Capital Directorate,Tilbury Douglas Construction Limited,D-PINV063237,"556,340.35",Capital grants - Academy Trust
Department for Education,Core,20/02/2024,Grants Expenditure,Capital Directorate,Three Spires Trust,CAY163250,"109,660.50",Capital grants - Academy Trust
Department for Education,Core,20/02/2024,Grants Expenditure,Capital Directorate,St Teresa Of Calcutta Academy Trust,CAY163222,"46,629.00",Capital grants - Academy Trust
Department for Education,Core,06/02/2024,Consultancy,Legal Adviser's Office,The Government Legal Department,CORE-PINV-071466,"30,500.00",Consultancy - Legal
Department for Education,Core,06/02/2024,Consultancy,Legal Adviser's Office,The Government Legal Department,CORE-PINV-071467,"2,108,750.00",Consultancy - Legal
Department for Education,Core,07/02/2024,Other Goods and Services,Curriculum and General Qualifications,Future Academies,CORE-PINV-072379,"140,000.00",Professional Services
Department for Education,Core,07/02/2024,Other Goods and Services,Curriculum and General Qualifications,Future Academies,CORE-PINV-072379,"163,323.66",Professional Services
Department for Education,Core,01/02/2024,Other Goods and Services,Curriculum and General Qualifications,Ucl Consultants Ltd,CORE-PCR-002733,"-268,437.54",Professional Services
Department for Education,Core,01/02/2024,Other Goods and Services,Curriculum and General Qualifications,Ucl Consultants Ltd,CORE-PINV-071807,"268,437.54",Professional Services
Department for Education,Core,05/02/2024,Other Goods and Services,Curriculum and General Qualifications,Ucl Consultants Ltd,CORE-PINV-072283,"321,624.29",Professional Services - Education Services
Department for Education,Core,29/02/2024,Grants Expenditure,Curriculum and General Qualifications,Blackpool Borough Council,CORE-MAIN-052726,"57,598.50",Current grants - Local Government
Department for Education,Core,13/02/2024,Grants Expenditure,Curriculum and General Qualifications,West London Free School Primary,CORE-MAIN-052569,"192,834.96",Current grants - Academy Trust
Department for Education,Core,29/02/2024,Grants Expenditure,Curriculum and General Qualifications,West London Free School Primary,CORE-MAIN-052713,"68,404.55",Current grants - Academy Trust
Department for Education,Core,29/02/2024,Grants Expenditure,Curriculum and General Qualifications,Westclyst Community Primary School,CORE-MAIN-052706,"74,000.00",Current grants - Academy Trust
Department for Education,Core,29/02/2024,Grants Expenditure,Curriculum and General Qualifications,Flying High Trust,CORE-MAIN-052707,"57,465.67",Current grants - Academy Trust
Department for Education,Core,29/02/2024,Grants Expenditure,Curriculum and General Qualifications,Ilsham Church Of England Academy,CORE-MAIN-052709,"74,000.00",Current grants - Academy Trust
Department for Education,Core,29/02/2024,Grants Expenditure,Curriculum and General Qualifications,Kingsnorth Church Of England Primary School,CORE-MAIN-052712,"72,844.96",Current grants - Academy Trust
Department for Education,Core,29/02/2024,Grants Expenditure,Curriculum and General Qualifications,Lacey Green Primary Academy,CORE-MAIN-052714,"73,999.99",Current grants - Academy Trust
Department for Education,Core,13/02/2024,Grants Expenditure,Curriculum and General Qualifications,Springhill Catholic Primary School,CORE-MAIN-052570,"180,544.50",Current grants - Academy Trust
Department for Education,Core,29/02/2024,Grants Expenditure,Curriculum and General Qualifications,Springhill Catholic Primary School,CORE-MAIN-052724,"74,000.00",Current grants - Academy Trust
Department for Education,Core,29/02/2024,Grants Expenditure,Curriculum and General Qualifications,The Greetland Academy,CORE-MAIN-052708,"59,825.79",Current grants - Academy Trust
Department for Education,Core,29/02/2024,Grants Expenditure,Curriculum and General Qualifications,The St John Bosco Catholic Academy,CORE-MAIN-052725,"66,280.85",Current grants - Academy Trust
Department for Education,Core,13/02/2024,Grants Expenditure,Curriculum and General Qualifications,The Wensum Trust,CORE-MAIN-052572,"201,980.00",Current grants - Academy Trust
Department for Education,Core,29/02/2024,Grants Expenditure,Curriculum and General Qualifications,The Wensum Trust,CORE-MAIN-052730,"53,301.36",Current grants - Academy Trust
Department for Education,Core,29/02/2024,Grants Expenditure,Curriculum and General Qualifications,Trenance Learning Academy,CORE-MAIN-052711,"70,441.78",Current grants - Academy Trust
Department for Education,Core,29/02/2024,Grants Expenditure,Curriculum and General Qualifications,Whiston Worrygoose Junior And Infant School,CORE-MAIN-052715,"49,472.95",Current grants - Academy Trust
Department for Education,Core,29/02/2024,Grants Expenditure,Curriculum and General Qualifications,Witham St Hughs Academy,CORE-MAIN-052733,"74,000.00",Current grants - Academy Trust
Department for Education,Core,29/02/2024,Grants Expenditure,Curriculum and General Qualifications,Westgarth Primary School,CORE-MAIN-052731,"73,801.63",Current grants - Academy Trust
Department for Education,Core,29/02/2024,Grants Expenditure,Curriculum and General Qualifications,Childer Thornton Primary School,CORE-MAIN-052705,"69,240.96",Current grants - Academy Trust
Department for Education,Core,29/02/2024,Grants Expenditure,Curriculum and General Qualifications,Cumberland Council,CORE-MAIN-052720,"74,000.00",Current grants - Local Government
Department for Education,Core,29/02/2024,Grants Expenditure,Curriculum and General Qualifications,Little Sutton Primary School,CORE-MAIN-052716,"73,646.42",Current grants - Local Government
Department for Education,Core,29/02/2024,Grants Expenditure,Curriculum and General Qualifications,St Wilfrid'S English Hub,CORE-MAIN-052728,"66,906.02",Current grants - Private Sector
Department for Education,Core,29/02/2024,Grants Expenditure,Curriculum and General Qualifications,All Souls Ce Primary School,CORE-MAIN-052703,"74,000.00",Current grants - Local Government
Department for Education,Core,29/02/2024,Grants Expenditure,Curriculum and General Qualifications,Myland Primary School,CORE-MAIN-052717,"50,644.69",Current grants - Local Government
Department for Education,Core,29/02/2024,Grants Expenditure,Curriculum and General Qualifications,Yorkshire Endeavour Academy Trust,CORE-MAIN-052734,"50,290.77",Current grants - Academy Trust
Department for Education,Core,29/02/2024,Grants Expenditure,Curriculum and General Qualifications,Burley And Woodhead Ce Primary School,CORE-MAIN-052704,"68,458.68",Current grants - Local Government
Department for Education,Core,29/02/2024,Grants Expenditure,Curriculum and General Qualifications,New Wave Federation,CORE-MAIN-052719,"63,409.75",Current grants - Private Sector
Department for Education,Core,29/02/2024,Grants Expenditure,Curriculum and General Qualifications,Outwood Grange Services Ltd,CORE-MAIN-052721,"63,923.46",Current grants - Private Sector
Department for Education,Core,09/02/2024,Other Goods and Services,Curriculum and General Qualifications,The Full English Education Ltd,CORE-PINV-072622,"32,914.00",Professional Services - Education Services
Department for Education,Core,29/02/2024,Grants Expenditure,Curriculum and General Qualifications,Ramsbury English Hub,CORE-MAIN-052722,"74,000.00",Current grants - Local Government
Department for Education,Core,13/02/2024,Grants Expenditure,Curriculum and General Qualifications,St Michael'S Church Of England Primary School,CORE-MAIN-052571,"191,949.36",Current grants - Academy Trust
Department for Education,Core,29/02/2024,Grants Expenditure,Curriculum and General Qualifications,St Michael'S Church Of England Primary School,CORE-MAIN-052727,"61,862.54",Current grants - Academy Trust
Department for Education,Core,29/02/2024,Grants Expenditure,Curriculum and General Qualifications,The Holocaust Educational Trust,CORE-MAIN-052694,"270,061.00",Current grants - Private Sector
Department for Education,Core,29/02/2024,Grants Expenditure,Curriculum and General Qualifications,Ucl Institute Of Education,CORE-MAIN-052693,"120,648.55",Current grants - Private Sector
Department for Education,Core,05/02/2024,Grants Expenditure,Curriculum and General Qualifications,The Hammond School Limited,CORE-MAIN-052490,"67,479.00",Current grants - Private Sector
Department for Education,Core,29/02/2024,Grants Expenditure,Curriculum and General Qualifications,The Hammond School Limited,CORE-MAIN-052699,"448,886.94",Current grants - Private Sector
Department for Education,Core,13/02/2024,Grants Expenditure,Curriculum and General Qualifications,The Yehudi Menuhin School,CORE-MAIN-052573,"75,287.00",Current grants - Private Sector
Department for Education,Core,13/02/2024,Grants Expenditure,Curriculum and General Qualifications,Centre For Young Musicians,CORE-MAIN-052576,"81,803.10",Current grants - Private Sector
Department for Education,Core,29/02/2024,Grants Expenditure,Curriculum and General Qualifications,The Purcell School,CORE-MAIN-052698,"1,400,409.20",Current grants - Private Sector
Department for Education,Core,29/02/2024,Grants Expenditure,Curriculum and General Qualifications,Yorkshire Young Musicians,CORE-MAIN-052700,"92,694.75",Current grants - Private Sector
Department for Education,Core,13/02/2024,Grants Expenditure,Curriculum and General Qualifications,Trinity Laban Conservatoire Of Music And Dance,CORE-MAIN-052575,"42,035.10",Current grants - Private Sector
Department for Education,Core,29/02/2024,Grants Expenditure,Curriculum and General Qualifications,Trinity Laban Conservatoire Of Music And Dance,CORE-MAIN-052696,"124,724.95",Current grants - Private Sector
Department for Education,Core,29/02/2024,Grants Expenditure,Curriculum and General Qualifications,National Centre For Circus Arts,CUPS0077453,"37,733.40",Current grants - Private Sector
Department for Education,Core,29/02/2024,Grants Expenditure,Curriculum and General Qualifications,Dance North,CORE-MAIN-052697,"78,721.50",Current grants - Private Sector
Department for Education,Core,29/02/2024,Grants Expenditure,Curriculum and General Qualifications,Sage Gateshead,CORE-MAIN-052701,"46,626.50",Current grants - Private Sector
Department for Education,Core,13/02/2024,Grants Expenditure,Curriculum and General Qualifications,Contemporary Dance Trust Limited,CORE-MAIN-052577,"81,053.10",Current grants - Private Sector
Department for Education,Core,29/02/2024,Grants Expenditure,Curriculum and General Qualifications,Fabric Charitable Incorporated Organisation,CORE-MAIN-052702,"73,668.40",Current grants - Private Sector
Department for Education,Core,29/02/2024,Grants Expenditure,Curriculum and General Qualifications,Choir Schools Association Bursary Trust Ltd,CORE-MAIN-052692,"144,200.00",Current grants - Private Sector
Department for Education,Core,13/02/2024,Grants Expenditure,Curriculum and General Qualifications,Royal College Of Music,CORE-MAIN-052574,"41,572.50",Current grants - Private Sector
Department for Education,Core,29/02/2024,Grants Expenditure,Curriculum and General Qualifications,Royal College Of Music,CORE-MAIN-052695,"48,041.60",Current grants - Private Sector
Department for Education,Core,29/02/2024,Grants Expenditure,Curriculum and General Qualifications,Flying High Trust,CUPS0076548,"-35,183.74",Current grants - Academy Trust
Department for Education,Core,29/02/2024,Grants Expenditure,Curriculum and General Qualifications,Lacey Green Primary Academy,CUPS0076549,"-37,270.40",Current grants - Academy Trust
Department for Education,Core,29/02/2024,Grants Expenditure,Curriculum and General Qualifications,Whiston Worrygoose Junior And Infant School,CUPS0076546,"-46,949.00",Current grants - Academy Trust
Department for Education,Core,29/02/2024,Grants Expenditure,Curriculum and General Qualifications,Witham St Hughs Academy,CUPS0076558,"-35,199.33",Current grants - Academy Trust
Department for Education,Core,29/02/2024,Grants Expenditure,Curriculum and General Qualifications,New Wave Federation,CUPS0076545,"-41,758.76",Current grants - Private Sector
Department for Education,Core,05/02/2024,Grants Expenditure,Curriculum and General Qualifications,The Education Endowment Foundation,CUPS0076364,"2,503,594.00",Current grants - Private Sector
Department for Education,Core,01/02/2024,Other Goods and Services,Teaching Workforce: Teachers and Tutors Directorate (TAT),Education Development Trust,CORE-PINV-071671,"220,884.00",Professional Services
Department for Education,Core,27/02/2024,Other Goods and Services,Teaching Workforce: Teachers and Tutors Directorate (TAT),Education Development Trust,CORE-PINV-073628,"220,199.00",Professional Services
Department for Education,Core,14/02/2024,Other Goods and Services,Teaching Workforce: Teachers and Tutors Directorate (TAT),Tribal Education Limited,CORE-PINV-072773,"88,681.00",Professional Services
Department for Education,Core,13/02/2024,Other Goods and Services,Teaching Workforce: Teachers and Tutors Directorate (TAT),Arvato Limited,CORE-PINV-072837,"37,702.46",Professional Services
Department for Education,Core,22/02/2024,Other Goods and Services,Teaching Workforce: Teachers and Tutors Directorate (TAT),Cognition Education,CORE-PCR-002803,"-65,000.00",Professional Services
Department for Education,Core,22/02/2024,Other Goods and Services,Teaching Workforce: Teachers and Tutors Directorate (TAT),Cognition Education,CORE-PINV-072839,"244,870.00",Professional Services
Department for Education,Core,21/02/2024,Other Goods and Services,Curriculum and General Qualifications,Stem Learning Ltd,CORE-PINV-073460,"829,166.76",Professional Services - Education Services
Department for Education,Core,05/02/2024,Learning and Development,Curriculum and General Qualifications,Tribal Education Limited,CORE-PINV-072274,"430,821.19",Training and Development - Coaching
Department for Education,Core,02/02/2024,Other Goods and Services,Curriculum and General Qualifications,Mathematics In Education And Industry,CORE-PINV-072123,"767,643.00",Professional Services - Education Services
Department for Education,Core,15/02/2024,Other Goods and Services,Curriculum and General Qualifications,Mathematics In Education And Industry,CORE-PINV-073082,"891,343.00",Professional Services - Education Services
Department for Education,Core,02/02/2024,Grants Expenditure,Curriculum and General Qualifications,University Of Cambridge,CORE-PINV-072154,"309,547.50",Current grants - Private Sector
Department for Education,Core,05/02/2024,Grants Expenditure,Curriculum and General Qualifications,Stem Learning Ltd,CORE-MAIN-052492,"25,860.00",Current grants - Private Sector
Department for Education,Core,05/02/2024,Grants Expenditure,Curriculum and General Qualifications,Stem Learning Ltd,CORE-MAIN-052491,"1,229,394.77",Current grants - Private Sector
Department for Education,Core,19/02/2024,Other Goods and Services,Children's Social Care - Safeguarding and Workforce,The Office For The Police And Crime Commissioner For Norfolk,CORE-PINV-073259,"153,414.64",Research and Evaluation
Department for Education,Core,29/02/2024,Grants Expenditure,Children's Social Care - Safeguarding and Workforce,Leeds City Council,CORE-MAIN-052737,"165,283.00",Current grants - Local Government
Department for Education,Core,29/02/2024,Grants Expenditure,Children's Social Care - Safeguarding and Workforce,North Yorkshire County Council,CORE-MAIN-052736,"25,825.87",Current grants - Local Government
Department for Education,Core,29/02/2024,Grants Expenditure,Children's Social Care - Safeguarding and Workforce,Somerset Council,CORE-MAIN-052735,"85,701.00",Current grants - Local Government
Department for Education,Core,12/02/2024,Other Goods and Services,Children's Social Care - Safeguarding and Workforce,Social Finance Vcb Limited,CORE-PINV-072558,"101,442.00",Professional Services
Department for Education,Core,05/02/2024,Grants Expenditure,Children's Social Care - Safeguarding and Workforce,Barnet London Borough Council,CORE-MAIN-052495,"84,082.37",Current grants - Local Government
Department for Education,Core,29/02/2024,Grants Expenditure,Children's Social Care - Safeguarding and Workforce,Barnet London Borough Council,CORE-MAIN-052740,"29,845.34",Current grants - Local Government
Department for Education,Core,13/02/2024,Grants Expenditure,Children's Social Care - Safeguarding and Workforce,North Yorkshire County Council,CORE-MAIN-052580,"64,497.65",Capital grants - Local Government
Department for Education,Core,29/02/2024,Grants Expenditure,Children's Social Care - Safeguarding and Workforce,Warrington Borough Council,CORE-MAIN-052738,"147,630.28",Current grants - Local Government
Department for Education,Core,05/02/2024,Grants Expenditure,Children's Social Care - Safeguarding and Workforce,Essex County Council,CORE-MAIN-052494,"178,344.00",Current grants - Local Government
Department for Education,Core,05/02/2024,Grants Expenditure,Children's Social Care - Safeguarding and Workforce,Somerset Council,CORE-MAIN-052493,"204,940.00",Current grants - Local Government
Department for Education,Core,22/02/2024,Other Goods and Services,Children's Social Care - Safeguarding and Workforce,Farsight Consulting Limited,CORE-PINV-073395,"32,188.50",Professional Services
Department for Education,Core,20/02/2024,Other Goods and Services,Children's Social Care - Safeguarding and Workforce,Farsight Consulting Limited,CORE-PINV-073396,"41,040.00",Professional Services
Department for Education,Core,15/02/2024,Other Goods and Services,Children's Social Care - Safeguarding and Workforce,Talent International (Uk) Ltd,CORE-PINV-073031,"81,261.60",Professional Services
Department for Education,Core,15/02/2024,Other Goods and Services,Children's Social Care - Safeguarding and Workforce,Talent International (Uk) Ltd,CORE-PINV-073040,"36,567.60",Professional Services
Department for Education,Core,07/02/2024,Other Goods and Services,Children's Social Care - Safeguarding and Workforce,Vsc Plus Limited,CORE-PINV-072370,"102,841.00",Professional Services - Education Services
Department for Education,Core,08/02/2024,Grants,Children's Social Care - Safeguarding and Workforce,Skills For Care Ltd,CORE-PINV-072585,"35,462.50",Professional Services - Grants and Awards
